OrganisationNameLabel,OrganisationURI,EffectiveDate,Directorate/ServiceWhereExpenditureIncurred,ServiceCategoryLabel,ServiceCategoryURI,Supplier,SupplierRegisteredCompany Number,PaymentDate,TransactionNumber,NetAmount,IrrecoverableVAT,PurposeOfSpend,ProcurementClassification:ProclassLabel,ProcrementClassification:ProClassCode
South Lakeland District Council,http://opendatacommunities.org/id/district-council/south-lakeland,31/03/2020,Business Support Community Services,Cultural Environmental Regulatory & Planning Services,http://opendatacommunities.org/def/concept/finance/sercop/objective/104,Public Health England,,09/03/2020,92461,428.4,0,Cockle Sample Testing,221100,Health & Safety� Maintenance
South Lakeland District Council,http://opendatacommunities.org/id/district-council/south-lakeland,31/03/2020,Environment and Housing,Central Services,http://opendatacommunities.org/def/concept/finance/sercop/objective/102,RH Environmental Limited,,04/03/2020,92491,198,0,Training  - HMOs,202100,Financial Services Subscriptions
South Lakeland District Council,http://opendatacommunities.org/id/district-council/south-lakeland,31/03/2020,Leisure and Wellbeing,Cultural Environmental Regulatory & Planning Services,http://opendatacommunities.org/def/concept/finance/sercop/objective/104,CONTINENTAL LANDSCAPES LTD,2108452,11/03/2020,92601,2170.28,0,For disposal of waste to Kendal Fell,391310,Construction Open Spaces Construction
South Lakeland District Council,http://opendatacommunities.org/id/district-council/south-lakeland,31/03/2020,Development Management,Cultural Environmental Regulatory & Planning Services,http://opendatacommunities.org/def/concept/finance/sercop/objective/104,LAMBERT SMITH HAMPTON GROUP,2521225,09/03/2020,92667,1400,0,"Viability Appraisal SL/2018/0311, Land",191700,Facilities Property Management
South Lakeland District Council,http://opendatacommunities.org/id/district-council/south-lakeland,31/03/2020,Development Management,Cultural Environmental Regulatory & Planning Services,http://opendatacommunities.org/def/concept/finance/sercop/objective/104,The Oyster Partnership,5020374,09/03/2020,92775,1202.9,0,Supply of Contract workers for Planning,261300,HR Recruitment & Assessment
South Lakeland District Council,http://opendatacommunities.org/id/district-council/south-lakeland,31/03/2020,Development Management,Cultural Environmental Regulatory & Planning Services,http://opendatacommunities.org/def/concept/finance/sercop/objective/104,The Oyster Partnership,5020374,09/03/2020,92776,2811.9,0,Supply of Contract workers for Planning,261300,HR Recruitment & Assessment
South Lakeland District Council,http://opendatacommunities.org/id/district-council/south-lakeland,31/03/2020,Business Support Community Services,Cultural Environmental Regulatory & Planning Services,http://opendatacommunities.org/def/concept/finance/sercop/objective/104,CHRIS BOWKER LTD,1642561,09/03/2020,92827,45,0,Inspection of electrical work under,101100,Building Electrical
South Lakeland District Council,http://opendatacommunities.org/id/district-council/south-lakeland,31/03/2020,Human Resources,Central Services,http://opendatacommunities.org/def/concept/finance/sercop/objective/102,LAKES TRAINING SOLUTIONS LTD,7541345,04/03/2020,92929,1000,0,Customer Service Training ,261500,HR Training & Conferences
South Lakeland District Council,http://opendatacommunities.org/id/district-council/south-lakeland,31/03/2020,Development Management,Cultural Environmental Regulatory & Planning Services,http://opendatacommunities.org/def/concept/finance/sercop/objective/104,The Oyster Partnership,5020374,02/03/2020,92942,1223.6,0,Supply of Contract workers for Planning,261300,HR Recruitment & Assessment
South Lakeland District Council,http://opendatacommunities.org/id/district-council/south-lakeland,31/03/2020,Development Management,Cultural Environmental Regulatory & Planning Services,http://opendatacommunities.org/def/concept/finance/sercop/objective/104,The Oyster Partnership,5020374,02/03/2020,92944,2846.9,0,Supply of Contract workers for Planning,261300,HR Recruitment & Assessment
South Lakeland District Council,http://opendatacommunities.org/id/district-council/south-lakeland,31/03/2020,Business Support Community Services,Cultural Environmental Regulatory & Planning Services,http://opendatacommunities.org/def/concept/finance/sercop/objective/104,RIGHT 2 WORK,,02/03/2020,92947,5004,0,Bulky waste collection,321010,Social Care Adult Advice & Counselling
South Lakeland District Council,http://opendatacommunities.org/id/district-council/south-lakeland,31/03/2020,Kendal Town Hall,Cultural Environmental Regulatory & Planning Services,http://opendatacommunities.org/def/concept/finance/sercop/objective/104,CUMBRIA WASTE RECYCLING LTD,3162439,04/03/2020,92989,183.75,0,Collection of mixed waste from Kendal,182012,Environment Waste Management Recycling
South Lakeland District Council,http://opendatacommunities.org/id/district-council/south-lakeland,31/03/2020,Printing Section,Central Services,http://opendatacommunities.org/def/concept/finance/sercop/objective/102,Complete Business Solutions Group Ltd,7931407,09/03/2020,93024,194.75,0,Xerox 21-up rounded corner labels,279999,ICT Not Elsewhere Classified
South Lakeland District Council,http://opendatacommunities.org/id/district-council/south-lakeland,31/03/2020,Business Support Community Services,SLDC as Agent,,CIVICA UK LTD,1628868,16/03/2020,93099,8731.18,0,Cumbria Choice 2020 - 2021,271600,ICT Software Customised & Bespoke
South Lakeland District Council,http://opendatacommunities.org/id/district-council/south-lakeland,31/03/2020,Business Support Community Services,SLDC as Agent,,CIVICA UK LTD,1628868,16/03/2020,93104,2104.12,0,Cumbria Choice 2020 - 2021,271600,ICT Software Customised & Bespoke
South Lakeland District Council,http://opendatacommunities.org/id/district-council/south-lakeland,31/03/2020,Printing Section,Central Services,http://opendatacommunities.org/def/concept/finance/sercop/objective/102,LAKES TRAINING SOLUTIONS LTD,7541345,04/03/2020,93109,575,0,Locality Training: Dealing with,261500,HR Training & Conferences
South Lakeland District Council,http://opendatacommunities.org/id/district-council/south-lakeland,31/03/2020,Electoral Services,Central Services,http://opendatacommunities.org/def/concept/finance/sercop/objective/102,Idox Software Ltd,2933889,27/03/2020,93121,8342.09,0,AVantGuard license and annual,271600,ICT Software Customised & Bespoke
South Lakeland District Council,http://opendatacommunities.org/id/district-council/south-lakeland,31/03/2020,Westmorland Centre Parking Office,Highways & Transport Services,http://opendatacommunities.org/def/concept/finance/sercop/objective/107,METRIC GROUP LIMITED,2560839,27/03/2020,93134,215.79,0,Cost of repairs to vandalised machine,359999,Street & Traffic Not Elsewhere Classifie
South Lakeland District Council,http://opendatacommunities.org/id/district-council/south-lakeland,31/03/2020,Social Enterprise Admin,Cultural Environmental Regulatory & Planning Services,http://opendatacommunities.org/def/concept/finance/sercop/objective/104,NEWSQUEST MEDIA GROUP LTD,3102566,09/03/2020,93143,148.12,0,PUBLIC NOTICES FOR PLANNING 1 APRIL - 31,191000,Facilities Advertising
South Lakeland District Council,http://opendatacommunities.org/id/district-council/south-lakeland,31/03/2020,Electoral Services,Central Services,http://opendatacommunities.org/def/concept/finance/sercop/objective/102,CFH Docmail Ltd,1716891,11/03/2020,93144,135.66,0,General printing,300000,Mail Services
South Lakeland District Council,http://opendatacommunities.org/id/district-council/south-lakeland,31/03/2020,Electoral Services,Central Services,http://opendatacommunities.org/def/concept/finance/sercop/objective/102,CFH Docmail Ltd,1716891,11/03/2020,93148,140.92,0,General printing,300000,Mail Services
South Lakeland District Council,http://opendatacommunities.org/id/district-council/south-lakeland,31/03/2020,Environmental Protection,Central Services,http://opendatacommunities.org/def/concept/finance/sercop/objective/102,CUMBRIA COUNTY COUNCIL,,11/03/2020,93153,54,0,DBS ,908000,Public Bodies Council support services
South Lakeland District Council,http://opendatacommunities.org/id/district-council/south-lakeland,31/03/2020,Environmental Protection,Housing Services,http://opendatacommunities.org/def/concept/finance/sercop/objective/108,CUMBRIA COUNTY COUNCIL,,11/03/2020,93153,54,0,DBS ,908000,Public Bodies Council support services
South Lakeland District Council,http://opendatacommunities.org/id/district-council/south-lakeland,31/03/2020,Leisure and Wellbeing,Cultural Environmental Regulatory & Planning Services,http://opendatacommunities.org/def/concept/finance/sercop/objective/104,Greaves Tree Services,,04/03/2020,93187,2680,0,Emergency call out to clear storm,241600,Horticultural Trees & Shrubs
South Lakeland District Council,http://opendatacommunities.org/id/district-council/south-lakeland,31/03/2020,Case Management Account Mgmt,Central Services,http://opendatacommunities.org/def/concept/finance/sercop/objective/102,ROSEFOX PAPER LIMITED,1655083,09/03/2020,93192,27.11,0,x1000 C5 ice white peel & seal envelopes,341000,Stationery Paper
South Lakeland District Council,http://opendatacommunities.org/id/district-council/south-lakeland,31/03/2020,Revenues and Benefits,Central Services,http://opendatacommunities.org/def/concept/finance/sercop/objective/102,CAPITA BUSINESS SERVICES LTD,2299747,04/03/2020,93206,175,0,Quotation AMT09000V1,261500,HR Training & Conferences
South Lakeland District Council,http://opendatacommunities.org/id/district-council/south-lakeland,31/03/2020,Revenues and Benefits,Central Services,http://opendatacommunities.org/def/concept/finance/sercop/objective/102,CAPITA BUSINESS SERVICES LTD,2299747,04/03/2020,93207,357.5,0,Quotation AMT09000V1,261500,HR Training & Conferences
South Lakeland District Council,http://opendatacommunities.org/id/district-council/south-lakeland,31/03/2020,Revenues and Benefits,Central Services,http://opendatacommunities.org/def/concept/finance/sercop/objective/102,CAPITA BUSINESS SERVICES LTD,2299747,18/03/2020,93208,10049.25,0,AMT08370v1 Agreement Summary - Line 1 -,261500,HR Training & Conferences
South Lakeland District Council,http://opendatacommunities.org/id/district-council/south-lakeland,31/03/2020,Revenues and Benefits,Central Services,http://opendatacommunities.org/def/concept/finance/sercop/objective/102,CAPITA BUSINESS SERVICES LTD,2299747,04/03/2020,93210,501.1,0,AMT08370v1 Agreement Summary - Line 1 -,261500,HR Training & Conferences
South Lakeland District Council,http://opendatacommunities.org/id/district-council/south-lakeland,31/03/2020,Financial Services,Central Services,http://opendatacommunities.org/def/concept/finance/sercop/objective/102,CAPITA BUSINESS SERVICES LTD,2299747,04/03/2020,93211,10400,0,Consultancy days Revs n Bens,261500,HR Training & Conferences
South Lakeland District Council,http://opendatacommunities.org/id/district-council/south-lakeland,31/03/2020,Human Resources,Central Services,http://opendatacommunities.org/def/concept/finance/sercop/objective/102,Kilvington Solicitors,,04/03/2020,93212,350,0,Solicitor Fees for Settlement,261200,HR Professional & Advisory Services
South Lakeland District Council,http://opendatacommunities.org/id/district-council/south-lakeland,31/03/2020,Human Resources,Central Services,http://opendatacommunities.org/def/concept/finance/sercop/objective/102,LAKES TRAINING SOLUTIONS LTD,7541345,04/03/2020,93216,500,0,Customer Service Training ,261500,HR Training & Conferences
South Lakeland District Council,http://opendatacommunities.org/id/district-council/south-lakeland,31/03/2020,Environment and Housing,Housing,http://opendatacommunities.org/def/concept/finance/sercop/objective/108,Homes For Ulverston CLT Ltd,,04/03/2020,93230,750,0,H4US Brewery Development Additional,250000,Housing
South Lakeland District Council,http://opendatacommunities.org/id/district-council/south-lakeland,31/03/2020,Case Management People,Housing Services,http://opendatacommunities.org/def/concept/finance/sercop/objective/108,JLA LTD,1094178,04/03/2020,93231,461.47,0,Washing machine call out and repair,131100,Cleaning & Janitorial Laundry Equipment
South Lakeland District Council,http://opendatacommunities.org/id/district-council/south-lakeland,31/03/2020,Case Management People,Housing Services,http://opendatacommunities.org/def/concept/finance/sercop/objective/108,KENDAL HOSTEL,,04/03/2020,93233,346,0,11 nights accommodation,261000,HR Accommodation
South Lakeland District Council,http://opendatacommunities.org/id/district-council/south-lakeland,31/03/2020,Business Support Community Services,Housing Services,http://opendatacommunities.org/def/concept/finance/sercop/objective/108,Ashberry Recruitment,7202591,04/03/2020,93234,430.82,0,Agency staff at Town View Fields,261300,HR Recruitment & Assessment
South Lakeland District Council,http://opendatacommunities.org/id/district-council/south-lakeland,31/03/2020,Business Support Community Services,Cultural Environmental Regulatory & Planning Services,http://opendatacommunities.org/def/concept/finance/sercop/objective/104,ARCO LIMITED,133804,04/03/2020,93236,64.48,0,Cleaning materials,141100,Clothing Protective
South Lakeland District Council,http://opendatacommunities.org/id/district-council/south-lakeland,31/03/2020,Business Support Community Services,Cultural Environmental Regulatory & Planning Services,http://opendatacommunities.org/def/concept/finance/sercop/objective/104,ARCO LIMITED,133804,04/03/2020,93237,113.61,0,Cleaning materials,141100,Clothing Protective
South Lakeland District Council,http://opendatacommunities.org/id/district-council/south-lakeland,31/03/2020,Business Support Community Services,Cultural Environmental Regulatory & Planning Services,http://opendatacommunities.org/def/concept/finance/sercop/objective/104,ARCO LIMITED,133804,04/03/2020,93238,6.58,0,Cleaning materials,141100,Clothing Protective
South Lakeland District Council,http://opendatacommunities.org/id/district-council/south-lakeland,31/03/2020,Business Support Community Services,Cultural Environmental Regulatory & Planning Services,http://opendatacommunities.org/def/concept/finance/sercop/objective/104,M G D LTD,,04/03/2020,93242,35,0,MOTs 2019/20,381400,Vehicle Mgt Maintenance
South Lakeland District Council,http://opendatacommunities.org/id/district-council/south-lakeland,31/03/2020,Business Support Community Services,Cultural Environmental Regulatory & Planning Services,http://opendatacommunities.org/def/concept/finance/sercop/objective/104,M G D LTD,,04/03/2020,93243,35,0,MOTs 2019/20,381400,Vehicle Mgt Maintenance
South Lakeland District Council,http://opendatacommunities.org/id/district-council/south-lakeland,31/03/2020,Business Support Community Services,Cultural Environmental Regulatory & Planning Services,http://opendatacommunities.org/def/concept/finance/sercop/objective/104,FUCHS LUBRICANTS (UK) PLC,2412689,04/03/2020,93244,405.9,0,Oil,381100,Vehicle Mgt Fuel
South Lakeland District Council,http://opendatacommunities.org/id/district-council/south-lakeland,31/03/2020,Business Support Community Services,Cultural Environmental Regulatory & Planning Services,http://opendatacommunities.org/def/concept/finance/sercop/objective/104,EK MOTOR FACTORS LTD,838524,04/03/2020,93245,50.75,0,Parts,381400,Vehicle Mgt Maintenance
South Lakeland District Council,http://opendatacommunities.org/id/district-council/south-lakeland,31/03/2020,Business Support Community Services,Cultural Environmental Regulatory & Planning Services,http://opendatacommunities.org/def/concept/finance/sercop/objective/104,EK MOTOR FACTORS LTD,838524,04/03/2020,93246,36.23,0,Parts,381400,Vehicle Mgt Maintenance
South Lakeland District Council,http://opendatacommunities.org/id/district-council/south-lakeland,31/03/2020,Business Support Community Services,Cultural Environmental Regulatory & Planning Services,http://opendatacommunities.org/def/concept/finance/sercop/objective/104,EK MOTOR FACTORS LTD,838524,04/03/2020,93247,5.98,0,Parts,381400,Vehicle Mgt Maintenance
South Lakeland District Council,http://opendatacommunities.org/id/district-council/south-lakeland,31/03/2020,Business Support Community Services,Cultural Environmental Regulatory & Planning Services,http://opendatacommunities.org/def/concept/finance/sercop/objective/104,CUMBRIA TRUCK CENTRE LTD,4298488,04/03/2020,93248,199.61,0,Parts,381300,Vehicle Mgt Industrial
South Lakeland District Council,http://opendatacommunities.org/id/district-council/south-lakeland,31/03/2020,Kendal Town Hall,Cultural Environmental Regulatory & Planning Services,http://opendatacommunities.org/def/concept/finance/sercop/objective/104,BUNZL CLEANING & HYGIENE SUPPLIES,2902454,04/03/2020,93249,76.65,0,3 x 5 litre mop and shine for KTH,131011,Cleaning & Janitorial Cleaning Materials
South Lakeland District Council,http://opendatacommunities.org/id/district-council/south-lakeland,31/03/2020,Business Support Community Services,Cultural Environmental Regulatory & Planning Services,http://opendatacommunities.org/def/concept/finance/sercop/objective/104,Greenwich Leisure Ltd,,04/03/2020,93250,55630.25,0,Leisure Management Fees- Quarterly,291400,Arts & Leisure Services Sport & Fitness
South Lakeland District Council,http://opendatacommunities.org/id/district-council/south-lakeland,31/03/2020,Business Support Community Services,Cultural Environmental Regulatory & Planning Services,http://opendatacommunities.org/def/concept/finance/sercop/objective/104,RTPI SUBSCRIPTIONS,,04/03/2020,93251,158,0,NAPE SUBSCRIPTION ,391100,Construction Buildings
South Lakeland District Council,http://opendatacommunities.org/id/district-council/south-lakeland,31/03/2020,Development Management,Cultural Environmental Regulatory & Planning Services,http://opendatacommunities.org/def/concept/finance/sercop/objective/104,The Oyster Partnership,5020374,09/03/2020,93254,2811.9,0,Supply of Contract workers for Planning,261300,HR Recruitment & Assessment
South Lakeland District Council,http://opendatacommunities.org/id/district-council/south-lakeland,31/03/2020,Development Management,Cultural Environmental Regulatory & Planning Services,http://opendatacommunities.org/def/concept/finance/sercop/objective/104,The Oyster Partnership,5020374,09/03/2020,93255,1209.65,0,Supply of Contract workers for Planning,261300,HR Recruitment & Assessment
South Lakeland District Council,http://opendatacommunities.org/id/district-council/south-lakeland,31/03/2020,Revenues and Benefits,Central Services,http://opendatacommunities.org/def/concept/finance/sercop/objective/102,ROYAL MAIL GROUP PLC,,04/03/2020,93257,38.53,0,2019-20 Postal Charges a/c 0055114000,301200,Mail Services� Postage
South Lakeland District Council,http://opendatacommunities.org/id/district-council/south-lakeland,31/03/2020,Business Support Community Services,Cultural Environmental Regulatory & Planning Services,http://opendatacommunities.org/def/concept/finance/sercop/objective/104,EK MOTOR FACTORS LTD,838524,04/03/2020,93262,12.38,0,Parts,381400,Vehicle Mgt Maintenance
South Lakeland District Council,http://opendatacommunities.org/id/district-council/south-lakeland,31/03/2020,Business Support Community Services,Cultural Environmental Regulatory & Planning Services,http://opendatacommunities.org/def/concept/finance/sercop/objective/104,EK MOTOR FACTORS LTD,838524,04/03/2020,93277,5.1,0,Parts,381400,Vehicle Mgt Maintenance
South Lakeland District Council,http://opendatacommunities.org/id/district-council/south-lakeland,31/03/2020,Human Resources,Central Services,http://opendatacommunities.org/def/concept/finance/sercop/objective/102,ADECCO UK LIMITED,593232,04/03/2020,93286,871.5,0,Agency staff,261400,HR Temporary & Agency Staff
South Lakeland District Council,http://opendatacommunities.org/id/district-council/south-lakeland,31/03/2020,Support Services,Cultural Environmental Regulatory & Planning Services,http://opendatacommunities.org/def/concept/finance/sercop/objective/104,Carus Green Ltd,7262136,04/03/2020,93292,125,0,Non-refundable deposit for booking the,192110,Facilities Room Hire
South Lakeland District Council,http://opendatacommunities.org/id/district-council/south-lakeland,31/03/2020,Business Support Community Services,Cultural Environmental Regulatory & Planning Services,http://opendatacommunities.org/def/concept/finance/sercop/objective/104,DENNIS EAGLE LTD,3794455,02/03/2020,93298,290.14,0,Parts,381300,Vehicle Mgt Industrial
South Lakeland District Council,http://opendatacommunities.org/id/district-council/south-lakeland,31/03/2020,Human Resources,Central Services,http://opendatacommunities.org/def/concept/finance/sercop/objective/102,MIDLAND SOFTWARE LTD,1852206,01/03/2020,93299,-112.5,0,GDPR 10-04-2019 to 09-07-2019,271600,ICT Software Customised & Bespoke
South Lakeland District Council,http://opendatacommunities.org/id/district-council/south-lakeland,31/03/2020,Human Resources,Central Services,http://opendatacommunities.org/def/concept/finance/sercop/objective/102,MIDLAND SOFTWARE LTD,1852206,01/03/2020,93300,-1655.86,0,GDPR 10-04-2019 to 09-07-2019,271600,ICT Software Customised & Bespoke
South Lakeland District Council,http://opendatacommunities.org/id/district-council/south-lakeland,31/03/2020,Case Management People,Housing Services,http://opendatacommunities.org/def/concept/finance/sercop/objective/108,Ashberry Recruitment,7202591,04/03/2020,93301,1192.19,0,Agency staff provision at Town View,261300,HR Recruitment & Assessment
South Lakeland District Council,http://opendatacommunities.org/id/district-council/south-lakeland,31/03/2020,Human Resources,Central Services,http://opendatacommunities.org/def/concept/finance/sercop/objective/102,THE QUAKER TAPESTRY KENDAL LTD,,09/03/2020,93302,33.5,0, Room hire,291400,Arts & Leisure Services Sport & Fitness
South Lakeland District Council,http://opendatacommunities.org/id/district-council/south-lakeland,31/03/2020,Case Management People,Housing Services,http://opendatacommunities.org/def/concept/finance/sercop/objective/108,Ashberry Recruitment,7202591,04/03/2020,93303,10.24,0,Agency staff provision at Town View,261300,HR Recruitment & Assessment
South Lakeland District Council,http://opendatacommunities.org/id/district-council/south-lakeland,31/03/2020,Case Management Regulatory,Cultural Environmental Regulatory & Planning Services,http://opendatacommunities.org/def/concept/finance/sercop/objective/104,Air Quality Data Management,,09/03/2020,93305,505,0,Lowther Street Air Quality Data,181400,Environment Monitoring
South Lakeland District Council,http://opendatacommunities.org/id/district-council/south-lakeland,31/03/2020,Social Enterprise Admin,Highways & Transport Services,http://opendatacommunities.org/def/concept/finance/sercop/objective/107,BEMROSE BOOTH PARAGON LTD,4891375,09/03/2020,93307,2068,0,"350,000 Aura self adhesive Pay and",191600,Facilities Printing
South Lakeland District Council,http://opendatacommunities.org/id/district-council/south-lakeland,31/03/2020,Leisure and Wellbeing,Cultural Environmental Regulatory & Planning Services,http://opendatacommunities.org/def/concept/finance/sercop/objective/104,CONTINENTAL LANDSCAPES LTD,2108452,09/03/2020,93310,3265.5,0,Extra works for arboriculture for April,391310,Construction Open Spaces Construction
South Lakeland District Council,http://opendatacommunities.org/id/district-council/south-lakeland,31/03/2020,Leisure and Wellbeing,Highways & Transport Services,http://opendatacommunities.org/def/concept/finance/sercop/objective/107,CONTINENTAL LANDSCAPES LTD,2108452,09/03/2020,93311,13.06,0,Parks Routine Maintenance,391310,Construction Open Spaces Construction
South Lakeland District Council,http://opendatacommunities.org/id/district-council/south-lakeland,31/03/2020,Leisure and Wellbeing,Highways & Transport Services,http://opendatacommunities.org/def/concept/finance/sercop/objective/107,CONTINENTAL LANDSCAPES LTD,2108452,09/03/2020,93311,130.55,0,Parks Routine Maintenance,391310,Construction Open Spaces Construction
South Lakeland District Council,http://opendatacommunities.org/id/district-council/south-lakeland,31/03/2020,Leisure and Wellbeing,Highways & Transport Services,http://opendatacommunities.org/def/concept/finance/sercop/objective/107,CONTINENTAL LANDSCAPES LTD,2108452,09/03/2020,93311,1.31,0,Parks Routine Maintenance,391310,Construction Open Spaces Construction
South Lakeland District Council,http://opendatacommunities.org/id/district-council/south-lakeland,31/03/2020,Leisure and Wellbeing,Highways & Transport Services,http://opendatacommunities.org/def/concept/finance/sercop/objective/107,CONTINENTAL LANDSCAPES LTD,2108452,09/03/2020,93311,13.06,0,Parks Routine Maintenance,391310,Construction Open Spaces Construction
South Lakeland District Council,http://opendatacommunities.org/id/district-council/south-lakeland,31/03/2020,Leisure and Wellbeing,Highways & Transport Services,http://opendatacommunities.org/def/concept/finance/sercop/objective/107,CONTINENTAL LANDSCAPES LTD,2108452,09/03/2020,93311,130.55,0,Parks Routine Maintenance,391310,Construction Open Spaces Construction
South Lakeland District Council,http://opendatacommunities.org/id/district-council/south-lakeland,31/03/2020,Leisure and Wellbeing,Highways & Transport Services,http://opendatacommunities.org/def/concept/finance/sercop/objective/107,CONTINENTAL LANDSCAPES LTD,2108452,09/03/2020,93311,13.06,0,Parks Routine Maintenance,391310,Construction Open Spaces Construction
South Lakeland District Council,http://opendatacommunities.org/id/district-council/south-lakeland,31/03/2020,Leisure and Wellbeing,Highways & Transport Services,http://opendatacommunities.org/def/concept/finance/sercop/objective/107,CONTINENTAL LANDSCAPES LTD,2108452,09/03/2020,93311,26.11,0,Parks Routine Maintenance,391310,Construction Open Spaces Construction
South Lakeland District Council,http://opendatacommunities.org/id/district-council/south-lakeland,31/03/2020,Leisure and Wellbeing,Highways & Transport Services,http://opendatacommunities.org/def/concept/finance/sercop/objective/107,CONTINENTAL LANDSCAPES LTD,2108452,09/03/2020,93311,16.32,0,Parks Routine Maintenance,391310,Construction Open Spaces Construction
South Lakeland District Council,http://opendatacommunities.org/id/district-council/south-lakeland,31/03/2020,Leisure and Wellbeing,Highways & Transport Services,http://opendatacommunities.org/def/concept/finance/sercop/objective/107,CONTINENTAL LANDSCAPES LTD,2108452,09/03/2020,93311,163.19,0,Parks Routine Maintenance,391310,Construction Open Spaces Construction
South Lakeland District Council,http://opendatacommunities.org/id/district-council/south-lakeland,31/03/2020,Leisure and Wellbeing,Highways & Transport Services,http://opendatacommunities.org/def/concept/finance/sercop/objective/107,CONTINENTAL LANDSCAPES LTD,2108452,09/03/2020,93311,6.53,0,Parks Routine Maintenance,391310,Construction Open Spaces Construction
South Lakeland District Council,http://opendatacommunities.org/id/district-council/south-lakeland,31/03/2020,Leisure and Wellbeing,Highways & Transport Services,http://opendatacommunities.org/def/concept/finance/sercop/objective/107,CONTINENTAL LANDSCAPES LTD,2108452,09/03/2020,93311,65.28,0,Parks Routine Maintenance,391310,Construction Open Spaces Construction
South Lakeland District Council,http://opendatacommunities.org/id/district-council/south-lakeland,31/03/2020,Leisure and Wellbeing,Highways & Transport Services,http://opendatacommunities.org/def/concept/finance/sercop/objective/107,CONTINENTAL LANDSCAPES LTD,2108452,09/03/2020,93311,26.11,0,Parks Routine Maintenance,391310,Construction Open Spaces Construction
South Lakeland District Council,http://opendatacommunities.org/id/district-council/south-lakeland,31/03/2020,Leisure and Wellbeing,Highways & Transport Services,http://opendatacommunities.org/def/concept/finance/sercop/objective/107,CONTINENTAL LANDSCAPES LTD,2108452,09/03/2020,93311,6.53,0,Parks Routine Maintenance,391310,Construction Open Spaces Construction
South Lakeland District Council,http://opendatacommunities.org/id/district-council/south-lakeland,31/03/2020,Leisure and Wellbeing,Highways & Transport Services,http://opendatacommunities.org/def/concept/finance/sercop/objective/107,CONTINENTAL LANDSCAPES LTD,2108452,09/03/2020,93311,4.24,0,Parks Routine Maintenance,391310,Construction Open Spaces Construction
South Lakeland District Council,http://opendatacommunities.org/id/district-council/south-lakeland,31/03/2020,Leisure and Wellbeing,Highways & Transport Services,http://opendatacommunities.org/def/concept/finance/sercop/objective/107,CONTINENTAL LANDSCAPES LTD,2108452,09/03/2020,93311,6.53,0,Parks Routine Maintenance,391310,Construction Open Spaces Construction
South Lakeland District Council,http://opendatacommunities.org/id/district-council/south-lakeland,31/03/2020,Leisure and Wellbeing,Highways & Transport Services,http://opendatacommunities.org/def/concept/finance/sercop/objective/107,CONTINENTAL LANDSCAPES LTD,2108452,09/03/2020,93311,78.33,0,Parks Routine Maintenance,391310,Construction Open Spaces Construction
South Lakeland District Council,http://opendatacommunities.org/id/district-council/south-lakeland,31/03/2020,Leisure and Wellbeing,Highways & Transport Services,http://opendatacommunities.org/def/concept/finance/sercop/objective/107,CONTINENTAL LANDSCAPES LTD,2108452,09/03/2020,93311,3.26,0,Parks Routine Maintenance,391310,Construction Open Spaces Construction
South Lakeland District Council,http://opendatacommunities.org/id/district-council/south-lakeland,31/03/2020,Leisure and Wellbeing,Highways & Transport Services,http://opendatacommunities.org/def/concept/finance/sercop/objective/107,CONTINENTAL LANDSCAPES LTD,2108452,09/03/2020,93311,5.87,0,Parks Routine Maintenance,391310,Construction Open Spaces Construction
South Lakeland District Council,http://opendatacommunities.org/id/district-council/south-lakeland,31/03/2020,Leisure and Wellbeing,Highways & Transport Services,http://opendatacommunities.org/def/concept/finance/sercop/objective/107,CONTINENTAL LANDSCAPES LTD,2108452,09/03/2020,93311,6.53,0,Parks Routine Maintenance,391310,Construction Open Spaces Construction
South Lakeland District Council,http://opendatacommunities.org/id/district-council/south-lakeland,31/03/2020,Leisure and Wellbeing,Highways & Transport Services,http://opendatacommunities.org/def/concept/finance/sercop/objective/107,CONTINENTAL LANDSCAPES LTD,2108452,09/03/2020,93311,71.8,0,Parks Routine Maintenance,391310,Construction Open Spaces Construction
South Lakeland District Council,http://opendatacommunities.org/id/district-council/south-lakeland,31/03/2020,Leisure and Wellbeing,Highways & Transport Services,http://opendatacommunities.org/def/concept/finance/sercop/objective/107,CONTINENTAL LANDSCAPES LTD,2108452,09/03/2020,93311,137.08,0,Parks Routine Maintenance,391310,Construction Open Spaces Construction
South Lakeland District Council,http://opendatacommunities.org/id/district-council/south-lakeland,31/03/2020,Leisure and Wellbeing,Highways & Transport Services,http://opendatacommunities.org/def/concept/finance/sercop/objective/107,CONTINENTAL LANDSCAPES LTD,2108452,09/03/2020,93311,6.53,0,Parks Routine Maintenance,391310,Construction Open Spaces Construction
South Lakeland District Council,http://opendatacommunities.org/id/district-council/south-lakeland,31/03/2020,Leisure and Wellbeing,Highways & Transport Services,http://opendatacommunities.org/def/concept/finance/sercop/objective/107,CONTINENTAL LANDSCAPES LTD,2108452,09/03/2020,93311,13.06,0,Parks Routine Maintenance,391310,Construction Open Spaces Construction
South Lakeland District Council,http://opendatacommunities.org/id/district-council/south-lakeland,31/03/2020,Leisure and Wellbeing,Highways & Transport Services,http://opendatacommunities.org/def/concept/finance/sercop/objective/107,CONTINENTAL LANDSCAPES LTD,2108452,09/03/2020,93311,13.06,0,Parks Routine Maintenance,391310,Construction Open Spaces Construction
South Lakeland District Council,http://opendatacommunities.org/id/district-council/south-lakeland,31/03/2020,Leisure and Wellbeing,Highways & Transport Services,http://opendatacommunities.org/def/concept/finance/sercop/objective/107,CONTINENTAL LANDSCAPES LTD,2108452,09/03/2020,93311,195.83,0,Parks Routine Maintenance,391310,Construction Open Spaces Construction
South Lakeland District Council,http://opendatacommunities.org/id/district-council/south-lakeland,31/03/2020,Leisure and Wellbeing,Highways & Transport Services,http://opendatacommunities.org/def/concept/finance/sercop/objective/107,CONTINENTAL LANDSCAPES LTD,2108452,09/03/2020,93311,6.53,0,Parks Routine Maintenance,391310,Construction Open Spaces Construction
South Lakeland District Council,http://opendatacommunities.org/id/district-council/south-lakeland,31/03/2020,Leisure and Wellbeing,Highways & Transport Services,http://opendatacommunities.org/def/concept/finance/sercop/objective/107,CONTINENTAL LANDSCAPES LTD,2108452,09/03/2020,93311,58.75,0,Parks Routine Maintenance,391310,Construction Open Spaces Construction
South Lakeland District Council,http://opendatacommunities.org/id/district-council/south-lakeland,31/03/2020,Leisure and Wellbeing,Highways & Transport Services,http://opendatacommunities.org/def/concept/finance/sercop/objective/107,CONTINENTAL LANDSCAPES LTD,2108452,09/03/2020,93311,13.06,0,Parks Routine Maintenance,391310,Construction Open Spaces Construction
South Lakeland District Council,http://opendatacommunities.org/id/district-council/south-lakeland,31/03/2020,Leisure and Wellbeing,Highways & Transport Services,http://opendatacommunities.org/def/concept/finance/sercop/objective/107,CONTINENTAL LANDSCAPES LTD,2108452,09/03/2020,93311,26.11,0,Parks Routine Maintenance,391310,Construction Open Spaces Construction
South Lakeland District Council,http://opendatacommunities.org/id/district-council/south-lakeland,31/03/2020,Leisure and Wellbeing,Highways & Transport Services,http://opendatacommunities.org/def/concept/finance/sercop/objective/107,CONTINENTAL LANDSCAPES LTD,2108452,09/03/2020,93311,19.58,0,Parks Routine Maintenance,391310,Construction Open Spaces Construction
South Lakeland District Council,http://opendatacommunities.org/id/district-council/south-lakeland,31/03/2020,Leisure and Wellbeing,Highways & Transport Services,http://opendatacommunities.org/def/concept/finance/sercop/objective/107,CONTINENTAL LANDSCAPES LTD,2108452,09/03/2020,93311,19.58,0,Parks Routine Maintenance,391310,Construction Open Spaces Construction
South Lakeland District Council,http://opendatacommunities.org/id/district-council/south-lakeland,31/03/2020,Leisure and Wellbeing,Cultural Environmental Regulatory & Planning Services,http://opendatacommunities.org/def/concept/finance/sercop/objective/104,CONTINENTAL LANDSCAPES LTD,2108452,09/03/2020,93311,10444.2,0,Parks Routine Maintenance,391310,Construction Open Spaces Construction
South Lakeland District Council,http://opendatacommunities.org/id/district-council/south-lakeland,31/03/2020,Leisure and Wellbeing,Cultural Environmental Regulatory & Planning Services,http://opendatacommunities.org/def/concept/finance/sercop/objective/104,CONTINENTAL LANDSCAPES LTD,2108452,09/03/2020,93311,26.11,0,Parks Routine Maintenance,391310,Construction Open Spaces Construction
South Lakeland District Council,http://opendatacommunities.org/id/district-council/south-lakeland,31/03/2020,Leisure and Wellbeing,Cultural Environmental Regulatory & Planning Services,http://opendatacommunities.org/def/concept/finance/sercop/objective/104,CONTINENTAL LANDSCAPES LTD,2108452,09/03/2020,93311,50915.46,0,Parks Routine Maintenance,391310,Construction Open Spaces Construction
South Lakeland District Council,http://opendatacommunities.org/id/district-council/south-lakeland,31/03/2020,Leisure and Wellbeing,Cultural Environmental Regulatory & Planning Services,http://opendatacommunities.org/def/concept/finance/sercop/objective/104,CONTINENTAL LANDSCAPES LTD,2108452,09/03/2020,93311,522.21,0,Parks Routine Maintenance,391310,Construction Open Spaces Construction
South Lakeland District Council,http://opendatacommunities.org/id/district-council/south-lakeland,31/03/2020,Leisure and Wellbeing,Cultural Environmental Regulatory & Planning Services,http://opendatacommunities.org/def/concept/finance/sercop/objective/104,CONTINENTAL LANDSCAPES LTD,2108452,09/03/2020,93311,1958.28,0,Parks Routine Maintenance,391310,Construction Open Spaces Construction
South Lakeland District Council,http://opendatacommunities.org/id/district-council/south-lakeland,31/03/2020,Leisure and Wellbeing,External Trading Accounts,,CONTINENTAL LANDSCAPES LTD,2108452,09/03/2020,93311,114.23,0,Parks Routine Maintenance,391310,Construction Open Spaces Construction
South Lakeland District Council,http://opendatacommunities.org/id/district-council/south-lakeland,31/03/2020,Leisure and Wellbeing,Cultural Environmental Regulatory & Planning Services,http://opendatacommunities.org/def/concept/finance/sercop/objective/104,CONTINENTAL LANDSCAPES LTD,2108452,09/03/2020,93312,3946.22,0,Gravedigging for April 2019 - March 2020,391310,Construction Open Spaces Construction
South Lakeland District Council,http://opendatacommunities.org/id/district-council/south-lakeland,31/03/2020,Human Resources,Central Services,http://opendatacommunities.org/def/concept/finance/sercop/objective/102,REDACTIVE MEDIA SALES LTD,3220190,09/03/2020,93313,1000,0,Principal Specialist (Place),261300,HR Recruitment & Assessment
South Lakeland District Council,http://opendatacommunities.org/id/district-council/south-lakeland,31/03/2020,ICT Group,Central Services,http://opendatacommunities.org/def/concept/finance/sercop/objective/102,VODAFONE LIMITED,1471587,27/03/2020,93314,3431.72,0,Mobile Phone call charges. 1st Quarter,271800,ICT Telecommunications Mobile
South Lakeland District Council,http://opendatacommunities.org/id/district-council/south-lakeland,31/03/2020,Revenues and Benefits,SLDC as Agent,,ROYAL MAIL GROUP PLC,,09/03/2020,93316,2092.59,0,2019 - 20 Postal Charges a/c 0198123013,301200,Mail Services� Postage
South Lakeland District Council,http://opendatacommunities.org/id/district-council/south-lakeland,31/03/2020,Kendal Town Hall,External Trading Accounts,,BUSINESS AGAINST CRIME SOUTH LAKELAND,,09/03/2020,93317,125,0,Membership of Business Against Crime,201700,Financial Services Grants
South Lakeland District Council,http://opendatacommunities.org/id/district-council/south-lakeland,31/03/2020,Social Enterprise Admin,Cultural Environmental Regulatory & Planning Services,http://opendatacommunities.org/def/concept/finance/sercop/objective/104,NEWSQUEST MEDIA GROUP LTD,3102566,02/03/2020,93318,190.44,0,PUBLIC NOTICES FOR PLANNING 1 APRIL - 31,191000,Facilities Advertising
South Lakeland District Council,http://opendatacommunities.org/id/district-council/south-lakeland,31/03/2020,Case Management Account Mgmt,Cultural Environmental Regulatory & Planning Services,http://opendatacommunities.org/def/concept/finance/sercop/objective/104,Weasdale Nurseries Ltd,,09/03/2020,93319,1447.7,0,Quotation 19/014394 various trees x671,241600,Horticultural Trees & Shrubs
South Lakeland District Council,http://opendatacommunities.org/id/district-council/south-lakeland,31/03/2020,Business Support Community Services,SLDC as Agent,,CUMBRIA COUNTY COUNCIL,,02/03/2020,93320,54,0,DBS Checks for Taxi Drivers,908000,Public Bodies Council support services
South Lakeland District Council,http://opendatacommunities.org/id/district-council/south-lakeland,31/03/2020,Business Support Community Services,SLDC as Agent,,CUMBRIA COUNTY COUNCIL,,04/03/2020,93321,108,0,DBS Checks for Taxi Drivers,908000,Public Bodies Council support services
South Lakeland District Council,http://opendatacommunities.org/id/district-council/south-lakeland,31/03/2020,Development Implementation,External Trading Accounts,,Ulverston Properties Limited,,09/03/2020,93322,281.67,0,Ulverston Business Centre (6 months),190000,Facilities & Management Services
South Lakeland District Council,http://opendatacommunities.org/id/district-council/south-lakeland,31/03/2020,Development Implementation,Culture and Related Serv,http://opendatacommunities.org/def/concept/finance/sercop/objective/104,R G PARKINS & PARTNERS LTD,4107150,11/03/2020,93323,1972.75,0,Grange Promenade &  Lido Work,152200,Consultancy Technical & Feasibility
South Lakeland District Council,http://opendatacommunities.org/id/district-council/south-lakeland,31/03/2020,Social Enterprise Admin,Cultural Environmental Regulatory & Planning Services,http://opendatacommunities.org/def/concept/finance/sercop/objective/104,NEWSQUEST MEDIA GROUP LTD,3102566,09/03/2020,93324,84.64,0,PUBLIC NOTICES FOR PLANNING 1 APRIL - 31,191000,Facilities Advertising
South Lakeland District Council,http://opendatacommunities.org/id/district-council/south-lakeland,31/03/2020,Development Implementation,Culture and Related Serv,http://opendatacommunities.org/def/concept/finance/sercop/objective/104,LAMBERT SMITH HAMPTON GROUP,2521225,11/03/2020,93325,3000,0,Grange Promenade - Structural Repairs,191700,Facilities Property Management
South Lakeland District Council,http://opendatacommunities.org/id/district-council/south-lakeland,31/03/2020,Development Implementation,Cultural Environmental Regulatory & Planning Services,http://opendatacommunities.org/def/concept/finance/sercop/objective/104,Mickledore Ltd,6651481,02/03/2020,93326,1600,0,CLEP Growth Deal Application Assistance,151000,Consultancy Business
South Lakeland District Council,http://opendatacommunities.org/id/district-council/south-lakeland,31/03/2020,Electoral Services,Central Services,http://opendatacommunities.org/def/concept/finance/sercop/objective/102,STONECROSS MANOR HOTEL,,02/03/2020,93327,83.33,0,Polling station room hire for the,261500,HR Training & Conferences
South Lakeland District Council,http://opendatacommunities.org/id/district-council/south-lakeland,31/03/2020,Case Management Account Mgmt,Central Services,http://opendatacommunities.org/def/concept/finance/sercop/objective/102,Inform CPI Ltd,,02/03/2020,93328,150,0,RV Finder,271600,ICT Software Customised & Bespoke
South Lakeland District Council,http://opendatacommunities.org/id/district-council/south-lakeland,31/03/2020,ICT Group,Central Services,http://opendatacommunities.org/def/concept/finance/sercop/objective/102,BRITISH TELECOMMUNICATIONS PLC,1800000,16/03/2020,93330,60.3,0, Line Rental for Mintworks,279999,ICT Not Elsewhere Classified
South Lakeland District Council,http://opendatacommunities.org/id/district-council/south-lakeland,31/03/2020,Support Services,Cultural Environmental Regulatory & Planning Services,http://opendatacommunities.org/def/concept/finance/sercop/objective/104,CUMBRIA COUNTY COUNCIL,,04/03/2020,93331,750,0,2019/20 Funding Contribution towards,908000,Public Bodies Council support services
South Lakeland District Council,http://opendatacommunities.org/id/district-council/south-lakeland,31/03/2020,Revenues and Benefits,Highways & Transport Services,http://opendatacommunities.org/def/concept/finance/sercop/objective/107,CAPITA BUSINESS SERVICES LTD (NCR),,01/03/2020,93332,432.79,0,2019 - 20 Internet Payment / bank,261500,HR Training & Conferences
South Lakeland District Council,http://opendatacommunities.org/id/district-council/south-lakeland,31/03/2020,Revenues and Benefits,Central Services,http://opendatacommunities.org/def/concept/finance/sercop/objective/102,CAPITA BUSINESS SERVICES LTD (NCR),,01/03/2020,93332,2644.23,0,2019 - 20 Internet Payment / bank,261500,HR Training & Conferences
South Lakeland District Council,http://opendatacommunities.org/id/district-council/south-lakeland,31/03/2020,Development Implementation,Cultural Environmental Regulatory & Planning Services,http://opendatacommunities.org/def/concept/finance/sercop/objective/104,CRUDEN PROPERTY SERVICES LTD,3851237,02/03/2020,93333,2209.61,0,"Hand Dryers for Mintworks, 124 Highgate",391111,Construction Buildings Repair & Mtce
South Lakeland District Council,http://opendatacommunities.org/id/district-council/south-lakeland,31/03/2020,Development Implementation,Cultural Environmental Regulatory & Planning Services,http://opendatacommunities.org/def/concept/finance/sercop/objective/104,Green Small Business,,09/03/2020,93334,149.5,0,Green Small Business Advice,151000,Consultancy Business
South Lakeland District Council,http://opendatacommunities.org/id/district-council/south-lakeland,31/03/2020,Business Support Community Services,Housing Services,http://opendatacommunities.org/def/concept/finance/sercop/objective/108,Callum Robinson,,02/03/2020,93335,415,0,Monthly rent ,250010,Housing Letting Agents
South Lakeland District Council,http://opendatacommunities.org/id/district-council/south-lakeland,31/03/2020,Business Support Community Services,Housing Services,http://opendatacommunities.org/def/concept/finance/sercop/objective/108,FIONA & JOHN ARMER,,02/03/2020,93336,536.98,0,Monthly rent ,250000,Housing
South Lakeland District Council,http://opendatacommunities.org/id/district-council/south-lakeland,31/03/2020,Human Resources,Central Services,http://opendatacommunities.org/def/concept/finance/sercop/objective/102,LAKES TRAINING SOLUTIONS LTD,7541345,04/03/2020,93338,500,0,Customer Service Training ,261500,HR Training & Conferences
South Lakeland District Council,http://opendatacommunities.org/id/district-council/south-lakeland,31/03/2020,Business Support Community Services,Cultural Environmental Regulatory & Planning Services,http://opendatacommunities.org/def/concept/finance/sercop/objective/104,R J MOORHOUSE WELDING & FABRICATIONS,,04/03/2020,93339,395,0,1 piece of 4 x 2 at 8 ft long galvanised,391200,Construction Engineering
South Lakeland District Council,http://opendatacommunities.org/id/district-council/south-lakeland,31/03/2020,Business Support Community Services,Transport Planning Policy,http://opendatacommunities.org/def/concept/finance/sercop/objective/107,ARCO LIMITED,133804,04/03/2020,93340,10.92,0,Cleaning materials,141100,Clothing Protective
South Lakeland District Council,http://opendatacommunities.org/id/district-council/south-lakeland,31/03/2020,Business Support Community Services,Cultural Environmental Regulatory & Planning Services,http://opendatacommunities.org/def/concept/finance/sercop/objective/104,ARCO LIMITED,133804,04/03/2020,93341,17.28,0,Cleaning materials,141100,Clothing Protective
South Lakeland District Council,http://opendatacommunities.org/id/district-council/south-lakeland,31/03/2020,Business Support Community Services,Cultural Environmental Regulatory & Planning Services,http://opendatacommunities.org/def/concept/finance/sercop/objective/104,RPC BPI RECYCLED PRODUCTS,350729,04/03/2020,93342,826,0,"FL0034. Heavy Duty Bin Liner. 27"" x 46""",182013,Environment Waste Mgt Waste Collection
South Lakeland District Council,http://opendatacommunities.org/id/district-council/south-lakeland,31/03/2020,Business Support Community Services,Cultural Environmental Regulatory & Planning Services,http://opendatacommunities.org/def/concept/finance/sercop/objective/104,Tecalemit Garage Equipment Co Ltd,,04/03/2020,93343,71,0,Service lift,101600,Building Hand Tools
South Lakeland District Council,http://opendatacommunities.org/id/district-council/south-lakeland,31/03/2020,Business Support Community Services,Cultural Environmental Regulatory & Planning Services,http://opendatacommunities.org/def/concept/finance/sercop/objective/104,TEAL PATENTS LTD,3212208,04/03/2020,93344,240.3,0,Handwash,111100,Catering Equipment & Utensils
South Lakeland District Council,http://opendatacommunities.org/id/district-council/south-lakeland,31/03/2020,Business Support Community Services,Cultural Environmental Regulatory & Planning Services,http://opendatacommunities.org/def/concept/finance/sercop/objective/104,CUMBRIA TRUCK CENTRE LTD,4298488,04/03/2020,93345,43.99,0,Parts,381300,Vehicle Mgt Industrial
South Lakeland District Council,http://opendatacommunities.org/id/district-council/south-lakeland,31/03/2020,Business Support Community Services,Cultural Environmental Regulatory & Planning Services,http://opendatacommunities.org/def/concept/finance/sercop/objective/104,EK MOTOR FACTORS LTD,838524,04/03/2020,93346,35.76,0,Parts,381400,Vehicle Mgt Maintenance
South Lakeland District Council,http://opendatacommunities.org/id/district-council/south-lakeland,31/03/2020,Business Support Community Services,Cultural Environmental Regulatory & Planning Services,http://opendatacommunities.org/def/concept/finance/sercop/objective/104,LANCASHIRE DAF,,04/03/2020,93347,237,0,Parts,381400,Vehicle Mgt Maintenance
South Lakeland District Council,http://opendatacommunities.org/id/district-council/south-lakeland,31/03/2020,Business Support Community Services,Cultural Environmental Regulatory & Planning Services,http://opendatacommunities.org/def/concept/finance/sercop/objective/104,Masterstaff Limited,2777593,04/03/2020,93348,2131.2,0,Agency staff 2019/20,261300,HR Recruitment & Assessment
South Lakeland District Council,http://opendatacommunities.org/id/district-council/south-lakeland,31/03/2020,Business Support Community Services,Cultural Environmental Regulatory & Planning Services,http://opendatacommunities.org/def/concept/finance/sercop/objective/104,HAKO MACHINES LIMITED,1414225,04/03/2020,93349,1594.56,0,Repair SL193,131000,Cleaning & Janitorial Cleaning Materials
South Lakeland District Council,http://opendatacommunities.org/id/district-council/south-lakeland,31/03/2020,Business Support Community Services,Cultural Environmental Regulatory & Planning Services,http://opendatacommunities.org/def/concept/finance/sercop/objective/104,HAKO MACHINES LIMITED,1414225,04/03/2020,93350,799.93,0,Maintenance 2019/20,131000,Cleaning & Janitorial Cleaning Materials
South Lakeland District Council,http://opendatacommunities.org/id/district-council/south-lakeland,31/03/2020,Business Support Community Services,Cultural Environmental Regulatory & Planning Services,http://opendatacommunities.org/def/concept/finance/sercop/objective/104,VOLVO GROUP UK LTD,2190944,04/03/2020,93351,421,0,parts,381000,Vehicle Mgt Commercial
South Lakeland District Council,http://opendatacommunities.org/id/district-council/south-lakeland,31/03/2020,Business Support Community Services,Cultural Environmental Regulatory & Planning Services,http://opendatacommunities.org/def/concept/finance/sercop/objective/104,S J Bargh,532272,04/03/2020,93352,241.7,0,MOTs 2019/20 & vehicle cleaning,381400,Vehicle Mgt Maintenance
South Lakeland District Council,http://opendatacommunities.org/id/district-council/south-lakeland,31/03/2020,Business Support Community Services,Cultural Environmental Regulatory & Planning Services,http://opendatacommunities.org/def/concept/finance/sercop/objective/104,ALLSTAR BUSINESS SOLUTIONS LTD (NCR),2631112,01/03/2020,93353,4995.45,0,Fuel to 15/02,381600,Vehicle Mgt Leasing
South Lakeland District Council,http://opendatacommunities.org/id/district-council/south-lakeland,31/03/2020,Business Support Community Services,Cultural Environmental Regulatory & Planning Services,http://opendatacommunities.org/def/concept/finance/sercop/objective/104,ALLSTAR BUSINESS SOLUTIONS LTD (NCR),2631112,01/03/2020,93353,56.33,0,Fuel to 15/02,381600,Vehicle Mgt Leasing
South Lakeland District Council,http://opendatacommunities.org/id/district-council/south-lakeland,31/03/2020,Business Support Community Services,Cultural Environmental Regulatory & Planning Services,http://opendatacommunities.org/def/concept/finance/sercop/objective/104,ALLSTAR BUSINESS SOLUTIONS LTD (NCR),2631112,01/03/2020,93353,14537.97,0,Fuel to 15/02,381600,Vehicle Mgt Leasing
South Lakeland District Council,http://opendatacommunities.org/id/district-council/south-lakeland,31/03/2020,Leisure and Wellbeing,Cultural Environmental Regulatory & Planning Services,http://opendatacommunities.org/def/concept/finance/sercop/objective/104,CONTINENTAL LANDSCAPES LTD,2108452,04/03/2020,93354,2170.28,0,For disposal of waste to Kendal Fell,391310,Construction Open Spaces Construction
South Lakeland District Council,http://opendatacommunities.org/id/district-council/south-lakeland,31/03/2020,Leisure and Wellbeing,Cultural Environmental Regulatory & Planning Services,http://opendatacommunities.org/def/concept/finance/sercop/objective/104,CONTINENTAL LANDSCAPES LTD,2108452,04/03/2020,93355,690.78,0,Extra works for arboriculture for April,391310,Construction Open Spaces Construction
South Lakeland District Council,http://opendatacommunities.org/id/district-council/south-lakeland,31/03/2020,Lake Wardens,Cultural Environmental Regulatory & Planning Services,http://opendatacommunities.org/def/concept/finance/sercop/objective/104,THOMAS GRAHAM & SONS LTD,656879,09/03/2020,93360,256.67,0,1 x 20L Hobbyweld 5 Gas *PLUS* - 93%,101400,Building General Materials
South Lakeland District Council,http://opendatacommunities.org/id/district-council/south-lakeland,31/03/2020,Case Management People,Housing Services,http://opendatacommunities.org/def/concept/finance/sercop/objective/108,Robert Hogben,,09/03/2020,93361,1120,0,"Deposit Flat 5, Wheatsheaf Apartments",202000,Financial Services Rents
South Lakeland District Council,http://opendatacommunities.org/id/district-council/south-lakeland,31/03/2020,Support Services,Central Services,http://opendatacommunities.org/def/concept/finance/sercop/objective/102,THOMAS GRAHAM & SONS LTD,656879,09/03/2020,93362,301.26,0,Jangro 2ply Centre Feed Roll x 4 packs,101400,Building General Materials
South Lakeland District Council,http://opendatacommunities.org/id/district-council/south-lakeland,31/03/2020,ICT Group,Central Services,http://opendatacommunities.org/def/concept/finance/sercop/objective/102,PROBRAND LTD,2653446,16/03/2020,93367,962.99,0,MW852/PVR-00002/SP   Microsoft -,271600,ICT Software Customised & Bespoke
South Lakeland District Council,http://opendatacommunities.org/id/district-council/south-lakeland,31/03/2020,Case Management Account Mgmt,Central Services,http://opendatacommunities.org/def/concept/finance/sercop/objective/102,ROSEFOX PAPER LIMITED,1655083,27/03/2020,93368,27.11,0,x1000 C5 ice white peel & seal envelopes,341000,Stationery Paper
South Lakeland District Council,http://opendatacommunities.org/id/district-council/south-lakeland,31/03/2020,Support Services,Central Services,http://opendatacommunities.org/def/concept/finance/sercop/objective/102,Ruskin Museum,,09/03/2020,93370,300,0,Locality donation to fund improved,201700,Financial Services Grants
South Lakeland District Council,http://opendatacommunities.org/id/district-council/south-lakeland,31/03/2020,Business Support Community Services,Cultural Environmental Regulatory & Planning Services,http://opendatacommunities.org/def/concept/finance/sercop/objective/104,SHB Hire Ltd,,09/03/2020,93371,543.75,0,Refrigerated Van for Private Water,381210,Vehicle Mangement- Hire
South Lakeland District Council,http://opendatacommunities.org/id/district-council/south-lakeland,31/03/2020,Financial Services,Central Services,http://opendatacommunities.org/def/concept/finance/sercop/objective/102,GRANT THORNTON UK LLP,OC307742,04/03/2020,93372,10751.25,0,19/20 External Audit Service due,201000,Financial Services Accountancy
South Lakeland District Council,http://opendatacommunities.org/id/district-council/south-lakeland,31/03/2020,Support Services,Housing Services,http://opendatacommunities.org/def/concept/finance/sercop/objective/108,Greenwich Leisure Ltd,,04/03/2020,93374,760,0,Castle Park Half Term Project (76,291400,Arts & Leisure Services Sport & Fitness
South Lakeland District Council,http://opendatacommunities.org/id/district-council/south-lakeland,31/03/2020,Business Support Community Services,Cultural Environmental Regulatory & Planning Services,http://opendatacommunities.org/def/concept/finance/sercop/objective/104,ARCO LIMITED,133804,04/03/2020,93375,387.72,0,Cleaning materials,141100,Clothing Protective
South Lakeland District Council,http://opendatacommunities.org/id/district-council/south-lakeland,31/03/2020,Business Support Community Services,Cultural Environmental Regulatory & Planning Services,http://opendatacommunities.org/def/concept/finance/sercop/objective/104,EK MOTOR FACTORS LTD,838524,04/03/2020,93376,126.91,0,Parts,381400,Vehicle Mgt Maintenance
South Lakeland District Council,http://opendatacommunities.org/id/district-council/south-lakeland,31/03/2020,Business Support Community Services,Cultural Environmental Regulatory & Planning Services,http://opendatacommunities.org/def/concept/finance/sercop/objective/104,EK MOTOR FACTORS LTD,838524,04/03/2020,93377,12.38,0,Parts,381400,Vehicle Mgt Maintenance
South Lakeland District Council,http://opendatacommunities.org/id/district-council/south-lakeland,31/03/2020,Business Support Community Services,Cultural Environmental Regulatory & Planning Services,http://opendatacommunities.org/def/concept/finance/sercop/objective/104,EK MOTOR FACTORS LTD,838524,09/03/2020,93378,16.52,0,Parts,381400,Vehicle Mgt Maintenance
South Lakeland District Council,http://opendatacommunities.org/id/district-council/south-lakeland,31/03/2020,Social Enterprise Admin,Highways & Transport Services,http://opendatacommunities.org/def/concept/finance/sercop/objective/107,THOMAS GRAHAM & SONS LTD,656879,09/03/2020,93379,94.92,0,3 Boxes of Hand Towels,101400,Building General Materials
South Lakeland District Council,http://opendatacommunities.org/id/district-council/south-lakeland,31/03/2020,Business Support Community Services,Cultural Environmental Regulatory & Planning Services,http://opendatacommunities.org/def/concept/finance/sercop/objective/104,A & W COMMERCIALS LTD,2630625,09/03/2020,93380,318.65,0,Hoses,381400,Vehicle Mgt Maintenance
South Lakeland District Council,http://opendatacommunities.org/id/district-council/south-lakeland,31/03/2020,Kendal Town Hall,Cultural Environmental Regulatory & Planning Services,http://opendatacommunities.org/def/concept/finance/sercop/objective/104,THOMAS GRAHAM & SONS LTD,656879,11/03/2020,93381,256.03,0,6 packs of toilet rolls JP07 for KTH,101400,Building General Materials
South Lakeland District Council,http://opendatacommunities.org/id/district-council/south-lakeland,31/03/2020,Development Implementation,Housing Services,http://opendatacommunities.org/def/concept/finance/sercop/objective/108,SoloProtect Limited,,04/03/2020,93382,65.8,0,Solo Protect ID Devices x 4 (first,192212,Facilities Security Equipment
South Lakeland District Council,http://opendatacommunities.org/id/district-council/south-lakeland,31/03/2020,Development Implementation,Cultural Environmental Regulatory & Planning Services,http://opendatacommunities.org/def/concept/finance/sercop/objective/104,WiFi Spark Ltd,,09/03/2020,93383,402.18,0,Kendal Town Centre Wifi Maintenance,271800,ICT Telecommunications Mobile
South Lakeland District Council,http://opendatacommunities.org/id/district-council/south-lakeland,31/03/2020,Development Implementation,Cultural Environmental Regulatory & Planning Services,http://opendatacommunities.org/def/concept/finance/sercop/objective/104,Helen Moriarty,,09/03/2020,93384,855.75,0,Project Management Officer for Bowness,151000,Consultancy Business
South Lakeland District Council,http://opendatacommunities.org/id/district-council/south-lakeland,31/03/2020,ICT Group,Central Services,http://opendatacommunities.org/def/concept/finance/sercop/objective/102,THE QUAKER TAPESTRY KENDAL LTD,,09/03/2020,93387,270,0,Tuesday 4th February 2020 8am - 5pm,291400,Arts & Leisure Services Sport & Fitness
South Lakeland District Council,http://opendatacommunities.org/id/district-council/south-lakeland,31/03/2020,ICT Group,Central Services,http://opendatacommunities.org/def/concept/finance/sercop/objective/102,BRITISH TELECOMMUNICATIONS PLC (DD),,01/03/2020,93388,56.03,0,Kendal Town Council Line Rental,279999,ICT Not Elsewhere Classified
South Lakeland District Council,http://opendatacommunities.org/id/district-council/south-lakeland,31/03/2020,Lake Wardens,Cultural Environmental Regulatory & Planning Services,http://opendatacommunities.org/def/concept/finance/sercop/objective/104,Harmony EPOS Solutions Ltd,9266671,09/03/2020,93389,86,0,3 x Boxes of Thermal PDQ rolls -,111100,Catering Equipment & Utensils
South Lakeland District Council,http://opendatacommunities.org/id/district-council/south-lakeland,31/03/2020,Support Services,External Trading Accounts,,APEX RADIO SYSTEMS LTD,2485670,04/03/2020,93390,68,0,Annual Base Station & Licence Fee for,913000,Technical Support Equipment
South Lakeland District Council,http://opendatacommunities.org/id/district-council/south-lakeland,31/03/2020,Development Implementation,Cultural Environmental Regulatory & Planning Services,http://opendatacommunities.org/def/concept/finance/sercop/objective/104,ORMROD SIGNS LTD,4533430,09/03/2020,93391,25,0,Car Park Sign & Installation for,102400,Building Signage
South Lakeland District Council,http://opendatacommunities.org/id/district-council/south-lakeland,31/03/2020,Development Implementation,Central Services,http://opendatacommunities.org/def/concept/finance/sercop/objective/102,J S Cleaning Services,,09/03/2020,93392,384,0,Cleaner for SLDC - April 2019 Onwards,131010,Cleaning & Janitorial Cleaning Materials
South Lakeland District Council,http://opendatacommunities.org/id/district-council/south-lakeland,31/03/2020,Support Services,Culture and Related Serv,http://opendatacommunities.org/def/concept/finance/sercop/objective/104,GRANGE OVER SANDS TOWN COUNCIL,,09/03/2020,93393,40,0,Hire of Meeting Room for Grange,908000,Public Bodies Council support services
South Lakeland District Council,http://opendatacommunities.org/id/district-council/south-lakeland,31/03/2020,Development Implementation,Central Services,http://opendatacommunities.org/def/concept/finance/sercop/objective/102,LRM Security Ltd,,09/03/2020,93394,36.8,0,Key Holding & Call Out Alarm Response,192213,Facilities Security Manned Guarding
South Lakeland District Council,http://opendatacommunities.org/id/district-council/south-lakeland,31/03/2020,Development Implementation,Cultural Environmental Regulatory & Planning Services,http://opendatacommunities.org/def/concept/finance/sercop/objective/104,LRM Security Ltd,,09/03/2020,93394,18.4,0,Key Holding & Call Out Alarm Response,192213,Facilities Security Manned Guarding
South Lakeland District Council,http://opendatacommunities.org/id/district-council/south-lakeland,31/03/2020,Development Implementation,Cultural Environmental Regulatory & Planning Services,http://opendatacommunities.org/def/concept/finance/sercop/objective/104,LRM Security Ltd,,09/03/2020,93394,18.4,0,Key Holding & Call Out Alarm Response,192213,Facilities Security Manned Guarding
South Lakeland District Council,http://opendatacommunities.org/id/district-council/south-lakeland,31/03/2020,Business Support Community Services,SLDC as Agent,,CUMBRIA COUNTY COUNCIL,,09/03/2020,93395,54,0,DBS Checks for Taxi Drivers,908000,Public Bodies Council support services
South Lakeland District Council,http://opendatacommunities.org/id/district-council/south-lakeland,31/03/2020,Environment and Housing,Central Services,http://opendatacommunities.org/def/concept/finance/sercop/objective/102,APSE,6735100,23/03/2020,93396,249,0,Training ,202100,Financial Services Subscriptions
South Lakeland District Council,http://opendatacommunities.org/id/district-council/south-lakeland,31/03/2020,Customer Services,Central Services,http://opendatacommunities.org/def/concept/finance/sercop/objective/102,CIVICA UK LTD,1628868,04/03/2020,93397,14788.51,0,"Licence , support and maintenance",271600,ICT Software Customised & Bespoke
South Lakeland District Council,http://opendatacommunities.org/id/district-council/south-lakeland,31/03/2020,Customer Services,Housing Services,http://opendatacommunities.org/def/concept/finance/sercop/objective/108,CIVICA UK LTD,1628868,04/03/2020,93397,4550.31,0,"Licence , support and maintenance",271600,ICT Software Customised & Bespoke
South Lakeland District Council,http://opendatacommunities.org/id/district-council/south-lakeland,31/03/2020,Customer Services,Housing Services,http://opendatacommunities.org/def/concept/finance/sercop/objective/108,CIVICA UK LTD,1628868,04/03/2020,93397,3412.73,0,"Licence , support and maintenance",271600,ICT Software Customised & Bespoke
South Lakeland District Council,http://opendatacommunities.org/id/district-council/south-lakeland,31/03/2020,Business Support Community Services,Housing Services,http://opendatacommunities.org/def/concept/finance/sercop/objective/108,Linda Marshall,,04/03/2020,93398,348,0,Emergency accommodation,250000,Housing
South Lakeland District Council,http://opendatacommunities.org/id/district-council/south-lakeland,31/03/2020,Support Services,Central Services,http://opendatacommunities.org/def/concept/finance/sercop/objective/102,GRANTS- MISCELLANEOUS,,09/03/2020,93399,200,0,Locality donation to fund the,201700,Financial Services Grants
South Lakeland District Council,http://opendatacommunities.org/id/district-council/south-lakeland,31/03/2020,Case Management Account Mgmt,Cultural Environmental Regulatory & Planning Services,http://opendatacommunities.org/def/concept/finance/sercop/objective/104,Bergen Arbortech,,09/03/2020,93400,404.25,0,"Removal of windblown cherry tree,",241210,Horticultural Tree Trimming
South Lakeland District Council,http://opendatacommunities.org/id/district-council/south-lakeland,31/03/2020,Support Services,Central Services,http://opendatacommunities.org/def/concept/finance/sercop/objective/102,GRANTS- MISCELLANEOUS,,09/03/2020,93401,1000,0,Locality donation supporting grants to,201700,Financial Services Grants
South Lakeland District Council,http://opendatacommunities.org/id/district-council/south-lakeland,31/03/2020,Business Support Community Services,Cultural Environmental Regulatory & Planning Services,http://opendatacommunities.org/def/concept/finance/sercop/objective/104,RIGHT 2 WORK,,23/03/2020,93402,3310,0,Bulky waste collection,321010,Social Care Adult Advice & Counselling
South Lakeland District Council,http://opendatacommunities.org/id/district-council/south-lakeland,31/03/2020,ICT Group,Central Services,http://opendatacommunities.org/def/concept/finance/sercop/objective/102,IMPROVEMENT & DEVELOPMENT AGENCY,3675577,09/03/2020,93403,1538,0,"LG Inform PLUS renewal, for South",202100,Financial Services Subscriptions
South Lakeland District Council,http://opendatacommunities.org/id/district-council/south-lakeland,31/03/2020,Business Support Community Services,Cultural Environmental Regulatory & Planning Services,http://opendatacommunities.org/def/concept/finance/sercop/objective/104,Haymarket Media Group Ltd,267189,23/03/2020,93404,2795,0,DCP COMPASS ONLINE SUBSCRIPTION (ACCESS,171114,Education Literature
South Lakeland District Council,http://opendatacommunities.org/id/district-council/south-lakeland,31/03/2020,Support Services,Central Services,http://opendatacommunities.org/def/concept/finance/sercop/objective/102,GRANTS- MISCELLANEOUS,,09/03/2020,93405,300,0,Chairman donation to fund the Rotary,201700,Financial Services Grants
South Lakeland District Council,http://opendatacommunities.org/id/district-council/south-lakeland,31/03/2020,Development Management,Cultural Environmental Regulatory & Planning Services,http://opendatacommunities.org/def/concept/finance/sercop/objective/104,M & P Gadsden Ltd,,23/03/2020,93406,67.5,0,Checking of Structural calculations,391000,Construction Architect
South Lakeland District Council,http://opendatacommunities.org/id/district-council/south-lakeland,31/03/2020,Development Management,Cultural Environmental Regulatory & Planning Services,http://opendatacommunities.org/def/concept/finance/sercop/objective/104,M & P Gadsden Ltd,,23/03/2020,93407,50,0,Checking of Structural calculations,391000,Construction Architect
South Lakeland District Council,http://opendatacommunities.org/id/district-council/south-lakeland,31/03/2020,ICT Group,Central Services,http://opendatacommunities.org/def/concept/finance/sercop/objective/102,IT PROFESSIONAL SERVICES (ITPS),,09/03/2020,93409,68.9,0,"Additional SIP call costs, covers until",279999,ICT Not Elsewhere Classified
South Lakeland District Council,http://opendatacommunities.org/id/district-council/south-lakeland,31/03/2020,Support Services,Central Services,http://opendatacommunities.org/def/concept/finance/sercop/objective/102,GRANTS- MISCELLANEOUS,,09/03/2020,93410,250,0,Locality donation to help funding,201700,Financial Services Grants
South Lakeland District Council,http://opendatacommunities.org/id/district-council/south-lakeland,31/03/2020,Leisure and Wellbeing,Cultural Environmental Regulatory & Planning Services,http://opendatacommunities.org/def/concept/finance/sercop/objective/104,ALLSTAR BUSINESS SOLUTIONS LTD (NCR),2631112,01/03/2020,93411,77.98,0,Parks fuel for April 2019 - March 2020,381600,Vehicle Mgt Leasing
South Lakeland District Council,http://opendatacommunities.org/id/district-council/south-lakeland,31/03/2020,ICT Group,Central Services,http://opendatacommunities.org/def/concept/finance/sercop/objective/102,PROBRAND LTD,2653446,18/03/2020,93412,81.2,0,MW852/PVR-00002/SP   Microsoft -,271600,ICT Software Customised & Bespoke
South Lakeland District Council,http://opendatacommunities.org/id/district-council/south-lakeland,31/03/2020,Business Support Community Services,Cultural Environmental Regulatory & Planning Services,http://opendatacommunities.org/def/concept/finance/sercop/objective/104,J R RICHARDSON LTD,2225792,09/03/2020,93413,211.45,0,Vehicle washing consumables,381500,Vehicle Mgt Parts
South Lakeland District Council,http://opendatacommunities.org/id/district-council/south-lakeland,31/03/2020,Business Support Community Services,Cultural Environmental Regulatory & Planning Services,http://opendatacommunities.org/def/concept/finance/sercop/objective/104,TAYLOR ENGINEERING & FABRICATIONS LTD,4989359,09/03/2020,93414,99,0,Parts,391200,Construction Engineering
South Lakeland District Council,http://opendatacommunities.org/id/district-council/south-lakeland,31/03/2020,Business Support Community Services,Cultural Environmental Regulatory & Planning Services,http://opendatacommunities.org/def/concept/finance/sercop/objective/104,TAYLOR ENGINEERING & FABRICATIONS LTD,4989359,09/03/2020,93414,8.95,0,Parts,391200,Construction Engineering
South Lakeland District Council,http://opendatacommunities.org/id/district-council/south-lakeland,31/03/2020,Business Support Community Services,Cultural Environmental Regulatory & Planning Services,http://opendatacommunities.org/def/concept/finance/sercop/objective/104,C T HAYTON LTD,1212766,11/03/2020,93415,32.06,0,Parts,391200,Construction Engineering
South Lakeland District Council,http://opendatacommunities.org/id/district-council/south-lakeland,31/03/2020,ICT Group,Central Services,http://opendatacommunities.org/def/concept/finance/sercop/objective/102,IT PROFESSIONAL SERVICES (ITPS),,11/03/2020,93416,450,0,SSL Certificate - Wildcard Certificate,279999,ICT Not Elsewhere Classified
South Lakeland District Council,http://opendatacommunities.org/id/district-council/south-lakeland,31/03/2020,Environment and Housing,Housing Services,http://opendatacommunities.org/def/concept/finance/sercop/objective/108,James Andrews Recruitment Solutions,6834852,11/03/2020,93417,1632.61,0,Agency worker for Community-led Housing,261400,HR Temporary & Agency Staff
South Lakeland District Council,http://opendatacommunities.org/id/district-council/south-lakeland,31/03/2020,Development Implementation,Central Services,http://opendatacommunities.org/def/concept/finance/sercop/objective/102,Southall Associates Limited,5751804,09/03/2020,93418,595,0,Restructure of Safety Cloud (quote no.,202100,Financial Services Subscriptions
South Lakeland District Council,http://opendatacommunities.org/id/district-council/south-lakeland,31/03/2020,Social Enterprise Admin,Highways & Transport Services,http://opendatacommunities.org/def/concept/finance/sercop/objective/107,ALLSTAR BUSINESS SOLUTIONS LTD (NCR),2631112,01/03/2020,93421,78.32,0,Fuel for Parking Enforcement 2019-20,381600,Vehicle Mgt Leasing
South Lakeland District Council,http://opendatacommunities.org/id/district-council/south-lakeland,31/03/2020,Social Enterprise Admin,Highways & Transport Services,http://opendatacommunities.org/def/concept/finance/sercop/objective/107,ALLSTAR BUSINESS SOLUTIONS LTD (NCR),2631112,01/03/2020,93421,140.82,0,Fuel for Parking Enforcement 2019-20,381600,Vehicle Mgt Leasing
South Lakeland District Council,http://opendatacommunities.org/id/district-council/south-lakeland,31/03/2020,Social Enterprise Admin,Cultural Environmental Regulatory & Planning Services,http://opendatacommunities.org/def/concept/finance/sercop/objective/104,ALLSTAR BUSINESS SOLUTIONS LTD (NCR),2631112,01/03/2020,93421,76.4,0,Fuel for Parking Enforcement 2019-20,381600,Vehicle Mgt Leasing
South Lakeland District Council,http://opendatacommunities.org/id/district-council/south-lakeland,31/03/2020,Technical Team,Cultural Environmental Regulatory & Planning Services,http://opendatacommunities.org/def/concept/finance/sercop/objective/104,Carrington West,,09/03/2020,93422,1795.5,0,AGENCY STAFF PLANNING,159999,Consultancy Not Elsewhere Classified
South Lakeland District Council,http://opendatacommunities.org/id/district-council/south-lakeland,31/03/2020,Human Resources,Central Services,http://opendatacommunities.org/def/concept/finance/sercop/objective/102,Ginger Dog,11132740,23/03/2020,93423,2252.4,0,Ginger Dog February invoice,261500,HR Training & Conferences
South Lakeland District Council,http://opendatacommunities.org/id/district-council/south-lakeland,31/03/2020,ICT Group,Central Services,http://opendatacommunities.org/def/concept/finance/sercop/objective/102,THE QUAKER TAPESTRY KENDAL LTD,,16/03/2020,93425,206,0,Access to Friends Meeting Room from 9am,291400,Arts & Leisure Services Sport & Fitness
South Lakeland District Council,http://opendatacommunities.org/id/district-council/south-lakeland,31/03/2020,Westmorland Centre Parking Office,Highways & Transport Services,http://opendatacommunities.org/def/concept/finance/sercop/objective/107,Orbility,,09/03/2020,93426,1302.56,0,POF machines upgrade to accept new 20,111200,Catering Food & Beverages
South Lakeland District Council,http://opendatacommunities.org/id/district-council/south-lakeland,31/03/2020,Technical Team,Central Services,http://opendatacommunities.org/def/concept/finance/sercop/objective/102,Macdonald & Company Freelance Ltd,3882135,09/03/2020,93427,1998,0,PLANNING CONTRACT STAFF,261400,HR Temporary & Agency Staff
South Lakeland District Council,http://opendatacommunities.org/id/district-council/south-lakeland,31/03/2020,Case Management People,Housing Services,http://opendatacommunities.org/def/concept/finance/sercop/objective/108,HOME GROUP LTD,IP22981R,09/03/2020,93428,219.06,0,Rent in advance ,250000,Housing
South Lakeland District Council,http://opendatacommunities.org/id/district-council/south-lakeland,31/03/2020,Case Management People,Housing Services,http://opendatacommunities.org/def/concept/finance/sercop/objective/108,Landlord,,09/03/2020,93434,440,0,Rent in advance,250000,Housing
South Lakeland District Council,http://opendatacommunities.org/id/district-council/south-lakeland,31/03/2020,Case Management People,Housing Services,http://opendatacommunities.org/def/concept/finance/sercop/objective/108,John Calvert,,09/03/2020,93435,400,0,Rent in advance ,202000,Financial Services Rents
South Lakeland District Council,http://opendatacommunities.org/id/district-council/south-lakeland,31/03/2020,Technical Team,Central Services,http://opendatacommunities.org/def/concept/finance/sercop/objective/102,ADECCO UK LIMITED,593232,18/03/2020,93437,561.92,0,Development Management Contract &,261400,HR Temporary & Agency Staff
South Lakeland District Council,http://opendatacommunities.org/id/district-council/south-lakeland,31/03/2020,Human Resources,Central Services,http://opendatacommunities.org/def/concept/finance/sercop/objective/102,ADECCO UK LIMITED,593232,18/03/2020,93438,871.5,0,Agency staff,261400,HR Temporary & Agency Staff
South Lakeland District Council,http://opendatacommunities.org/id/district-council/south-lakeland,31/03/2020,Case Management People,Central Services,http://opendatacommunities.org/def/concept/finance/sercop/objective/102,ADECCO UK LIMITED,593232,18/03/2020,93439,752.31,0,Agency Staff to cover Affordable,261400,HR Temporary & Agency Staff
South Lakeland District Council,http://opendatacommunities.org/id/district-council/south-lakeland,31/03/2020,Social Enterprise Admin,Highways & Transport Services,http://opendatacommunities.org/def/concept/finance/sercop/objective/107,ALLSTAR BUSINESS SOLUTIONS LTD (NCR),2631112,01/03/2020,93440,117.34,0,Fuel for Parking Enforcement 2019-20,381600,Vehicle Mgt Leasing
South Lakeland District Council,http://opendatacommunities.org/id/district-council/south-lakeland,31/03/2020,Social Enterprise Admin,Highways & Transport Services,http://opendatacommunities.org/def/concept/finance/sercop/objective/107,ALLSTAR BUSINESS SOLUTIONS LTD (NCR),2631112,01/03/2020,93440,118.64,0,Fuel for Parking Enforcement 2019-20,381600,Vehicle Mgt Leasing
South Lakeland District Council,http://opendatacommunities.org/id/district-council/south-lakeland,31/03/2020,Social Enterprise Admin,Cultural Environmental Regulatory & Planning Services,http://opendatacommunities.org/def/concept/finance/sercop/objective/104,ALLSTAR BUSINESS SOLUTIONS LTD (NCR),2631112,01/03/2020,93440,71.75,0,Fuel for Parking Enforcement 2019-20,381600,Vehicle Mgt Leasing
South Lakeland District Council,http://opendatacommunities.org/id/district-council/south-lakeland,31/03/2020,Environment and Housing,Housing Services,http://opendatacommunities.org/def/concept/finance/sercop/objective/108,James Andrews Recruitment Solutions,6834852,09/03/2020,93441,944.16,0,Agency worker for Community-led Housing,261400,HR Temporary & Agency Staff
South Lakeland District Council,http://opendatacommunities.org/id/district-council/south-lakeland,31/03/2020,Business Support Community Services,Central Services,http://opendatacommunities.org/def/concept/finance/sercop/objective/102,The Oyster Partnership,5020374,18/03/2020,93442,660,0,Agency Environmental Health Officer,261300,HR Recruitment & Assessment
South Lakeland District Council,http://opendatacommunities.org/id/district-council/south-lakeland,31/03/2020,Business Support Community Services,Central Services,http://opendatacommunities.org/def/concept/finance/sercop/objective/102,The Oyster Partnership,5020374,18/03/2020,93443,1055.75,0,Agency Environmental Health Officer,261300,HR Recruitment & Assessment
South Lakeland District Council,http://opendatacommunities.org/id/district-council/south-lakeland,31/03/2020,Development Management,Cultural Environmental Regulatory & Planning Services,http://opendatacommunities.org/def/concept/finance/sercop/objective/104,The Oyster Partnership,5020374,23/03/2020,93444,1184,0,Supply of Contract workers for Planning,261300,HR Recruitment & Assessment
South Lakeland District Council,http://opendatacommunities.org/id/district-council/south-lakeland,31/03/2020,Development Management,Cultural Environmental Regulatory & Planning Services,http://opendatacommunities.org/def/concept/finance/sercop/objective/104,The Oyster Partnership,5020374,23/03/2020,93445,2835,0,Supply of Contract workers for Planning,261300,HR Recruitment & Assessment
South Lakeland District Council,http://opendatacommunities.org/id/district-council/south-lakeland,31/03/2020,Case Management Regulatory,Central Services,http://opendatacommunities.org/def/concept/finance/sercop/objective/102,ALLSTAR BUSINESS SOLUTIONS LTD (NCR),2631112,01/03/2020,93446,73.81,0,Fuel - Private Water Van,381600,Vehicle Mgt Leasing
South Lakeland District Council,http://opendatacommunities.org/id/district-council/south-lakeland,31/03/2020,Leisure and Wellbeing,Cultural Environmental Regulatory & Planning Services,http://opendatacommunities.org/def/concept/finance/sercop/objective/104,CONTINENTAL LANDSCAPES LTD,2108452,18/03/2020,93448,100,0,Extra works for arboriculture for April,391310,Construction Open Spaces Construction
South Lakeland District Council,http://opendatacommunities.org/id/district-council/south-lakeland,31/03/2020,Leisure and Wellbeing,Cultural Environmental Regulatory & Planning Services,http://opendatacommunities.org/def/concept/finance/sercop/objective/104,CONTINENTAL LANDSCAPES LTD,2108452,18/03/2020,93448,1381.82,0,Extra works for arboriculture for April,391310,Construction Open Spaces Construction
South Lakeland District Council,http://opendatacommunities.org/id/district-council/south-lakeland,31/03/2020,Westmorland Centre Parking Office,Highways & Transport Services,http://opendatacommunities.org/def/concept/finance/sercop/objective/107,We Love Logos Ltd,,16/03/2020,93449,66.25,0,Regatta trousers,141100,Clothing Protective
South Lakeland District Council,http://opendatacommunities.org/id/district-council/south-lakeland,31/03/2020,Case Management Regulatory,Cultural Environmental Regulatory & Planning Services,http://opendatacommunities.org/def/concept/finance/sercop/objective/104,Sefton Metropolitan Borough Council,,18/03/2020,93450,755,0,Contribution to Northern Coastal Sub,182030,Environment Water Assessment & Treatment
South Lakeland District Council,http://opendatacommunities.org/id/district-council/south-lakeland,31/03/2020,Printing Section,Central Services,http://opendatacommunities.org/def/concept/finance/sercop/objective/102,Konica Minolta Bus Solutions (UK) Ltd,,27/03/2020,93451,1834.93,0,Print Room Clicks,192000,Facilities Reprographics
South Lakeland District Council,http://opendatacommunities.org/id/district-council/south-lakeland,31/03/2020,Democratic and Member Services,Central Services,http://opendatacommunities.org/def/concept/finance/sercop/objective/102,Ulverston Coronation Hall,,18/03/2020,93452,300,0,Locality donation to fund Science &,291300,Arts & Leisure Services Performing Arts
South Lakeland District Council,http://opendatacommunities.org/id/district-council/south-lakeland,31/03/2020,Case Management Account Mgmt,Culture and Related Serv,http://opendatacommunities.org/def/concept/finance/sercop/objective/104,CONTINENTAL LANDSCAPES LTD,2108452,18/03/2020,93454,2000,0,Supply turf and plants for Beresford,391310,Construction Open Spaces Construction
South Lakeland District Council,http://opendatacommunities.org/id/district-council/south-lakeland,31/03/2020,Business Support Community Services,Cultural Environmental Regulatory & Planning Services,http://opendatacommunities.org/def/concept/finance/sercop/objective/104,INNOVATIVE SAFETY SYSTEMS LTD,6875015,16/03/2020,93455,158.5,0,Camera,192200,Facilities Security
South Lakeland District Council,http://opendatacommunities.org/id/district-council/south-lakeland,31/03/2020,Case Management Account Mgmt,Housing Services,http://opendatacommunities.org/def/concept/finance/sercop/objective/108,STAVELEY WITH INGS PARISH COUNCIL,,18/03/2020,93460,1750,0,Contribution to enable setting up of,908000,Public Bodies Council support services
South Lakeland District Council,http://opendatacommunities.org/id/district-council/south-lakeland,31/03/2020,Democratic Services,Central Services,http://opendatacommunities.org/def/concept/finance/sercop/objective/102,St John's Chambers,,09/03/2020,93461,850,0, Case Ref No ,281200,Legal Services General Support
South Lakeland District Council,http://opendatacommunities.org/id/district-council/south-lakeland,31/03/2020,Development Management,Cultural Environmental Regulatory & Planning Services,http://opendatacommunities.org/def/concept/finance/sercop/objective/104,SALFORD CITY COUNCIL,,16/03/2020,93462,45,0,Checking of Structural Calculations for,908000,Public Bodies Council support services
South Lakeland District Council,http://opendatacommunities.org/id/district-council/south-lakeland,31/03/2020,Support Services,Central Services,http://opendatacommunities.org/def/concept/finance/sercop/objective/102,GRANTS- MISCELLANEOUS,,11/03/2020,93463,1150,0,Locality donation from Cllr ,201700,Financial Services Grants
South Lakeland District Council,http://opendatacommunities.org/id/district-council/south-lakeland,31/03/2020,Human Resources,Central Services,http://opendatacommunities.org/def/concept/finance/sercop/objective/102,MIDLAND SOFTWARE LTD,1852206,01/03/2020,93465,3889.75,0,iTrent software,271600,ICT Software Customised & Bespoke
South Lakeland District Council,http://opendatacommunities.org/id/district-council/south-lakeland,31/03/2020,Case Management People,Housing Services,http://opendatacommunities.org/def/concept/finance/sercop/objective/108,HOME GROUP LTD,IP22981R,09/03/2020,93466,1500,0,Rent arrears payment to prevent,250000,Housing
South Lakeland District Council,http://opendatacommunities.org/id/district-council/south-lakeland,31/03/2020,Case Management People,Central Services,http://opendatacommunities.org/def/concept/finance/sercop/objective/102,MORGAN HUNT UK LIMITED,4349535,09/03/2020,93468,1292.61,0,Agency staff,269999,HR Not Elsewhere Classified
South Lakeland District Council,http://opendatacommunities.org/id/district-council/south-lakeland,31/03/2020,Support Services,Central Services,http://opendatacommunities.org/def/concept/finance/sercop/objective/102,Greenwich Leisure Ltd,,16/03/2020,93469,149.2,0,Donation to Kendal Community Football,291400,Arts & Leisure Services Sport & Fitness
South Lakeland District Council,http://opendatacommunities.org/id/district-council/south-lakeland,31/03/2020,Case Management People,Housing,http://opendatacommunities.org/def/concept/finance/sercop/objective/108,Gatesbield Quaker Housing Association,,11/03/2020,93470,72000,0,Community Housing Grant - Gatesbield,250000,Housing
South Lakeland District Council,http://opendatacommunities.org/id/district-council/south-lakeland,31/03/2020,Case Management People,Housing Services,http://opendatacommunities.org/def/concept/finance/sercop/objective/108,Ashberry Recruitment,7202591,11/03/2020,93471,883.24,0,Agency staff provision at Town View,261300,HR Recruitment & Assessment
South Lakeland District Council,http://opendatacommunities.org/id/district-council/south-lakeland,31/03/2020,Support Services,Central Services,http://opendatacommunities.org/def/concept/finance/sercop/objective/102,GRANTS- MISCELLANEOUS,,11/03/2020,93472,500,0,Locality donation to help fund a new,201700,Financial Services Grants
South Lakeland District Council,http://opendatacommunities.org/id/district-council/south-lakeland,31/03/2020,Financial Services,Central Services,http://opendatacommunities.org/def/concept/finance/sercop/objective/102,TIAA Ltd,4546319,11/03/2020,93473,3280,0,19/20 Internal Audit Service Quarterly.,201100,Financial Services Audit
South Lakeland District Council,http://opendatacommunities.org/id/district-council/south-lakeland,31/03/2020,Human Resources,Central Services,http://opendatacommunities.org/def/concept/finance/sercop/objective/102,MIDLAND SOFTWARE LTD,1852206,01/03/2020,93474,9000,0,Initial cost for the new iTrent contract,271600,ICT Software Customised & Bespoke
South Lakeland District Council,http://opendatacommunities.org/id/district-council/south-lakeland,31/03/2020,Case Management People,Housing Services,http://opendatacommunities.org/def/concept/finance/sercop/objective/108,TAMESIDE METROPOLITAN BOROUGH,,11/03/2020,93476,58.4,0,Credit Check provision,202100,Financial Services Subscriptions
South Lakeland District Council,http://opendatacommunities.org/id/district-council/south-lakeland,31/03/2020,Support Services,Central Services,http://opendatacommunities.org/def/concept/finance/sercop/objective/102,KENDAL TOWN COUNCIL,,11/03/2020,93477,1000,0,Locality donation to fund the People's,908000,Public Bodies Council support services
South Lakeland District Council,http://opendatacommunities.org/id/district-council/south-lakeland,31/03/2020,Support Services,Central Services,http://opendatacommunities.org/def/concept/finance/sercop/objective/102,KENDAL TOWN COUNCIL,,11/03/2020,93478,150,0,Locality donation to fund the Climate,908000,Public Bodies Council support services
South Lakeland District Council,http://opendatacommunities.org/id/district-council/south-lakeland,31/03/2020,Support Services,Central Services,http://opendatacommunities.org/def/concept/finance/sercop/objective/102,GRANTS- MISCELLANEOUS,,09/03/2020,93479,1150,0,Locality donation from Cllr ,201700,Financial Services Grants
South Lakeland District Council,http://opendatacommunities.org/id/district-council/south-lakeland,31/03/2020,Support Services,Central Services,http://opendatacommunities.org/def/concept/finance/sercop/objective/102,GRANTS- MISCELLANEOUS,,09/03/2020,93480,150,0,Locality donation to contribute towards,201700,Financial Services Grants
South Lakeland District Council,http://opendatacommunities.org/id/district-council/south-lakeland,31/03/2020,Support Services,Central Services,http://opendatacommunities.org/def/concept/finance/sercop/objective/102,GRANTS- MISCELLANEOUS,,09/03/2020,93481,150,0,Locality donation to contribute towards,201700,Financial Services Grants
South Lakeland District Council,http://opendatacommunities.org/id/district-council/south-lakeland,31/03/2020,Support Services,Central Services,http://opendatacommunities.org/def/concept/finance/sercop/objective/102,GRANTS- MISCELLANEOUS,,09/03/2020,93482,150,0,Locality donation to contribute towards,201700,Financial Services Grants
South Lakeland District Council,http://opendatacommunities.org/id/district-council/south-lakeland,31/03/2020,Support Services,Central Services,http://opendatacommunities.org/def/concept/finance/sercop/objective/102,Greenwich Leisure Ltd,,16/03/2020,93484,250,0,Locality donation to Kendal Community,291400,Arts & Leisure Services Sport & Fitness
South Lakeland District Council,http://opendatacommunities.org/id/district-council/south-lakeland,31/03/2020,Human Resources,Central Services,http://opendatacommunities.org/def/concept/finance/sercop/objective/102,FORBES SOLICITORS,,18/03/2020,93485,537.5,0,Professional Fees Cost from 31.01.20 to,281300,Legal Services Legal Opinion
South Lakeland District Council,http://opendatacommunities.org/id/district-council/south-lakeland,31/03/2020,Kendal Town Hall,Cultural Environmental Regulatory & Planning Services,http://opendatacommunities.org/def/concept/finance/sercop/objective/104,THOMAS GRAHAM & SONS LTD,656879,11/03/2020,93486,39.04,0,16 microburst tranquil air freshener,101400,Building General Materials
South Lakeland District Council,http://opendatacommunities.org/id/district-council/south-lakeland,31/03/2020,Business Support Community Services,Cultural Environmental Regulatory & Planning Services,http://opendatacommunities.org/def/concept/finance/sercop/objective/104,AINSWORTH'S GARAGE,,11/03/2020,93487,31.5,0,Repairs,381400,Vehicle Mgt Maintenance
South Lakeland District Council,http://opendatacommunities.org/id/district-council/south-lakeland,31/03/2020,Business Support Community Services,Cultural Environmental Regulatory & Planning Services,http://opendatacommunities.org/def/concept/finance/sercop/objective/104,TPS Preston,,11/03/2020,93488,37.74,0,Parts,381400,Vehicle Mgt Maintenance
South Lakeland District Council,http://opendatacommunities.org/id/district-council/south-lakeland,31/03/2020,Business Support Community Services,Cultural Environmental Regulatory & Planning Services,http://opendatacommunities.org/def/concept/finance/sercop/objective/104,EK MOTOR FACTORS LTD,838524,11/03/2020,93489,15.98,0,Parts,381400,Vehicle Mgt Maintenance
South Lakeland District Council,http://opendatacommunities.org/id/district-council/south-lakeland,31/03/2020,Business Support Community Services,Cultural Environmental Regulatory & Planning Services,http://opendatacommunities.org/def/concept/finance/sercop/objective/104,DENNIS EAGLE LTD,3794455,11/03/2020,93490,199.62,0,Parts,381300,Vehicle Mgt Industrial
South Lakeland District Council,http://opendatacommunities.org/id/district-council/south-lakeland,31/03/2020,Business Support Community Services,Cultural Environmental Regulatory & Planning Services,http://opendatacommunities.org/def/concept/finance/sercop/objective/104,EK MOTOR FACTORS LTD,838524,11/03/2020,93491,11.15,0,Parts,381400,Vehicle Mgt Maintenance
South Lakeland District Council,http://opendatacommunities.org/id/district-council/south-lakeland,31/03/2020,Business Support Community Services,Cultural Environmental Regulatory & Planning Services,http://opendatacommunities.org/def/concept/finance/sercop/objective/104,HAKO MACHINES LIMITED,1414225,11/03/2020,93492,17.84,0,Parts,131000,Cleaning & Janitorial Cleaning Materials
South Lakeland District Council,http://opendatacommunities.org/id/district-council/south-lakeland,31/03/2020,Business Support Community Services,Cultural Environmental Regulatory & Planning Services,http://opendatacommunities.org/def/concept/finance/sercop/objective/104,DENNIS EAGLE LTD,3794455,11/03/2020,93493,11.94,0,Parts,381300,Vehicle Mgt Industrial
South Lakeland District Council,http://opendatacommunities.org/id/district-council/south-lakeland,31/03/2020,Business Support Community Services,Cultural Environmental Regulatory & Planning Services,http://opendatacommunities.org/def/concept/finance/sercop/objective/104,INNOVATIVE SAFETY SYSTEMS LTD,6875015,11/03/2020,93494,516,0,Cycle pass,192200,Facilities Security
South Lakeland District Council,http://opendatacommunities.org/id/district-council/south-lakeland,31/03/2020,Business Support Community Services,Cultural Environmental Regulatory & Planning Services,http://opendatacommunities.org/def/concept/finance/sercop/objective/104,TPS Preston,,11/03/2020,93495,40.7,0,Parts,381400,Vehicle Mgt Maintenance
South Lakeland District Council,http://opendatacommunities.org/id/district-council/south-lakeland,31/03/2020,Business Support Community Services,Cultural Environmental Regulatory & Planning Services,http://opendatacommunities.org/def/concept/finance/sercop/objective/104,HYDRAIR TRUCK & TRAILER PARTS LTD,,11/03/2020,93496,132.84,0,Parts,381500,Vehicle Mgt Parts
South Lakeland District Council,http://opendatacommunities.org/id/district-council/south-lakeland,31/03/2020,Business Support Community Services,Cultural Environmental Regulatory & Planning Services,http://opendatacommunities.org/def/concept/finance/sercop/objective/104,HYDRAIR TRUCK & TRAILER PARTS LTD,,11/03/2020,93498,215.94,0,Parts,381500,Vehicle Mgt Parts
South Lakeland District Council,http://opendatacommunities.org/id/district-council/south-lakeland,31/03/2020,Business Support Community Services,Cultural Environmental Regulatory & Planning Services,http://opendatacommunities.org/def/concept/finance/sercop/objective/104,AUTOPARTS (CUMBRIA) LTD,2579204,11/03/2020,93499,16.38,0,Filter,381500,Vehicle Mgt Parts
South Lakeland District Council,http://opendatacommunities.org/id/district-council/south-lakeland,31/03/2020,Business Support Community Services,Cultural Environmental Regulatory & Planning Services,http://opendatacommunities.org/def/concept/finance/sercop/objective/104,LANCASHIRE DAF,,11/03/2020,93500,176.44,0,Parts,381400,Vehicle Mgt Maintenance
South Lakeland District Council,http://opendatacommunities.org/id/district-council/south-lakeland,31/03/2020,Business Support Community Services,Cultural Environmental Regulatory & Planning Services,http://opendatacommunities.org/def/concept/finance/sercop/objective/104,EK MOTOR FACTORS LTD,838524,11/03/2020,93501,11.9,0,Parts,381400,Vehicle Mgt Maintenance
South Lakeland District Council,http://opendatacommunities.org/id/district-council/south-lakeland,31/03/2020,Business Support Community Services,Cultural Environmental Regulatory & Planning Services,http://opendatacommunities.org/def/concept/finance/sercop/objective/104,Masterstaff Limited,2777593,11/03/2020,93502,1598.4,0,Agency staff 2019/20,261300,HR Recruitment & Assessment
South Lakeland District Council,http://opendatacommunities.org/id/district-council/south-lakeland,31/03/2020,Business Support Community Services,Cultural Environmental Regulatory & Planning Services,http://opendatacommunities.org/def/concept/finance/sercop/objective/104,FURNESS FLUID POWER LTD,5675728,11/03/2020,93503,753.6,0,Pipe,260000,HR
South Lakeland District Council,http://opendatacommunities.org/id/district-council/south-lakeland,31/03/2020,Business Support Community Services,Cultural Environmental Regulatory & Planning Services,http://opendatacommunities.org/def/concept/finance/sercop/objective/104,EPIC Media Group Ltd,4914098,11/03/2020,93504,497.82,0,Fit graphics,191010,Facilities Advertising Promo & Recruit
South Lakeland District Council,http://opendatacommunities.org/id/district-council/south-lakeland,31/03/2020,Business Support Community Services,Cultural Environmental Regulatory & Planning Services,http://opendatacommunities.org/def/concept/finance/sercop/objective/104,EK MOTOR FACTORS LTD,838524,11/03/2020,93505,137.7,0,PArt,381400,Vehicle Mgt Maintenance
South Lakeland District Council,http://opendatacommunities.org/id/district-council/south-lakeland,31/03/2020,Support Services,Central Services,http://opendatacommunities.org/def/concept/finance/sercop/objective/102,GATES TRAVEL SERVICE,,16/03/2020,93506,36.95,0,Open return Kendal-Leeds on 10 March,261600,HR Travel & Subsistence
South Lakeland District Council,http://opendatacommunities.org/id/district-council/south-lakeland,31/03/2020,Case Management People,Housing Services,http://opendatacommunities.org/def/concept/finance/sercop/objective/108,BUNZL CLEANING & HYGIENE SUPPLIES,2902454,18/03/2020,93507,172.07,0,Blue dishcloth 001001,131011,Cleaning & Janitorial Cleaning Materials
South Lakeland District Council,http://opendatacommunities.org/id/district-council/south-lakeland,31/03/2020,Business Support Community Services,Cultural Environmental Regulatory & Planning Services,http://opendatacommunities.org/def/concept/finance/sercop/objective/104,LANCASHIRE DAF,,11/03/2020,93508,11.33,0,Parts,381400,Vehicle Mgt Maintenance
South Lakeland District Council,http://opendatacommunities.org/id/district-council/south-lakeland,31/03/2020,Business Support Community Services,Cultural Environmental Regulatory & Planning Services,http://opendatacommunities.org/def/concept/finance/sercop/objective/104,ALLSTAR BUSINESS SOLUTIONS LTD (NCR),2631112,01/03/2020,93509,4639.99,0,Fuel to 29/2,381600,Vehicle Mgt Leasing
South Lakeland District Council,http://opendatacommunities.org/id/district-council/south-lakeland,31/03/2020,Business Support Community Services,Cultural Environmental Regulatory & Planning Services,http://opendatacommunities.org/def/concept/finance/sercop/objective/104,ALLSTAR BUSINESS SOLUTIONS LTD (NCR),2631112,01/03/2020,93509,13426.73,0,Fuel to 29/2,381600,Vehicle Mgt Leasing
South Lakeland District Council,http://opendatacommunities.org/id/district-council/south-lakeland,31/03/2020,Business Support Community Services,Cultural Environmental Regulatory & Planning Services,http://opendatacommunities.org/def/concept/finance/sercop/objective/104,VOLVO GROUP UK LTD,2190944,11/03/2020,93510,289.25,0,parts,381000,Vehicle Mgt Commercial
South Lakeland District Council,http://opendatacommunities.org/id/district-council/south-lakeland,31/03/2020,Business Support Community Services,Cultural Environmental Regulatory & Planning Services,http://opendatacommunities.org/def/concept/finance/sercop/objective/104,ARCO LIMITED,133804,11/03/2020,93511,39,0,Cleaning materials,141100,Clothing Protective
South Lakeland District Council,http://opendatacommunities.org/id/district-council/south-lakeland,31/03/2020,Business Support Community Services,Cultural Environmental Regulatory & Planning Services,http://opendatacommunities.org/def/concept/finance/sercop/objective/104,GB Sign Solutions Ltd,9609330,11/03/2020,93512,90,0,Street nameplates 2019/20,102400,Building Signage
South Lakeland District Council,http://opendatacommunities.org/id/district-council/south-lakeland,31/03/2020,Business Support Community Services,Cultural Environmental Regulatory & Planning Services,http://opendatacommunities.org/def/concept/finance/sercop/objective/104,PENNINGTONS (KENDAL) LIMITED,434649,11/03/2020,93513,2750,0,Annual Charge for use of Link Road at,182013,Environment Waste Mgt Waste Collection
South Lakeland District Council,http://opendatacommunities.org/id/district-council/south-lakeland,31/03/2020,Business Support Community Services,Cultural Environmental Regulatory & Planning Services,http://opendatacommunities.org/def/concept/finance/sercop/objective/104,Enevo UK Ltd,9347391,11/03/2020,93514,416,0,Monthly subscriptions 2019/20,261517,ICT-Consultancy
South Lakeland District Council,http://opendatacommunities.org/id/district-council/south-lakeland,31/03/2020,Business Support Community Services,Cultural Environmental Regulatory & Planning Services,http://opendatacommunities.org/def/concept/finance/sercop/objective/104,M G D LTD,,11/03/2020,93515,35,0,MOTs 2019/20,381400,Vehicle Mgt Maintenance
South Lakeland District Council,http://opendatacommunities.org/id/district-council/south-lakeland,31/03/2020,Business Support Community Services,Transport Planning Policy,http://opendatacommunities.org/def/concept/finance/sercop/objective/107,ARCO LIMITED,133804,11/03/2020,93516,12.48,0,Cleaning materials,141100,Clothing Protective
South Lakeland District Council,http://opendatacommunities.org/id/district-council/south-lakeland,31/03/2020,Business Support Community Services,Cultural Environmental Regulatory & Planning Services,http://opendatacommunities.org/def/concept/finance/sercop/objective/104,EK MOTOR FACTORS LTD,838524,11/03/2020,93517,17.13,0,Parts,381400,Vehicle Mgt Maintenance
South Lakeland District Council,http://opendatacommunities.org/id/district-council/south-lakeland,31/03/2020,Development Implementation,SLDC as Agent,,PS BUSINESS MATTERS,8147185,16/03/2020,93518,2000,0,Kendal Futures Support Programme -,151900,Consultancy Management
South Lakeland District Council,http://opendatacommunities.org/id/district-council/south-lakeland,31/03/2020,ICT Group,Central Services,http://opendatacommunities.org/def/concept/finance/sercop/objective/102,TRILITHON LTD,3390011,27/03/2020,93519,2000,0,Waste Collection Application Build,271515,ICT Website Development
South Lakeland District Council,http://opendatacommunities.org/id/district-council/south-lakeland,31/03/2020,Development Implementation,Central Services,http://opendatacommunities.org/def/concept/finance/sercop/objective/102,ENVIROFIRST LTD,5999123,18/03/2020,93522,153.36,0,Lowther Street Wheelie Bin Mixed,182012,Environment Waste Management Recycling
South Lakeland District Council,http://opendatacommunities.org/id/district-council/south-lakeland,31/03/2020,Westmorland Centre Parking Office,Highways & Transport Services,http://opendatacommunities.org/def/concept/finance/sercop/objective/107,Security Plus   Limited,,11/03/2020,93524,25,0,Extra collection 01/01/ 2020,209999,Financial Services Not Elsewhere Classif
South Lakeland District Council,http://opendatacommunities.org/id/district-council/south-lakeland,31/03/2020,Business Support Community Services,Cultural Environmental Regulatory & Planning Services,http://opendatacommunities.org/def/concept/finance/sercop/objective/104,EK MOTOR FACTORS LTD,838524,16/03/2020,93525,44.9,0,Parts,381400,Vehicle Mgt Maintenance
South Lakeland District Council,http://opendatacommunities.org/id/district-council/south-lakeland,31/03/2020,Business Support Community Services,Cultural Environmental Regulatory & Planning Services,http://opendatacommunities.org/def/concept/finance/sercop/objective/104,EK MOTOR FACTORS LTD,838524,16/03/2020,93526,57.33,0,PArt,381400,Vehicle Mgt Maintenance
South Lakeland District Council,http://opendatacommunities.org/id/district-council/south-lakeland,31/03/2020,Business Support Community Services,Cultural Environmental Regulatory & Planning Services,http://opendatacommunities.org/def/concept/finance/sercop/objective/104,DAVID BREAKS,,16/03/2020,93527,435.8,0,Repair SL072,381500,Vehicle Mgt Parts
South Lakeland District Council,http://opendatacommunities.org/id/district-council/south-lakeland,31/03/2020,Business Support Community Services,Cultural Environmental Regulatory & Planning Services,http://opendatacommunities.org/def/concept/finance/sercop/objective/104,DENNIS EAGLE LTD,3794455,16/03/2020,93528,171.12,0,pARTS,381300,Vehicle Mgt Industrial
South Lakeland District Council,http://opendatacommunities.org/id/district-council/south-lakeland,31/03/2020,Business Support Community Services,Cultural Environmental Regulatory & Planning Services,http://opendatacommunities.org/def/concept/finance/sercop/objective/104,K & S Commercial Ltd,9068885,18/03/2020,93529,95,0,Repairs,381400,Vehicle Mgt Maintenance
South Lakeland District Council,http://opendatacommunities.org/id/district-council/south-lakeland,31/03/2020,Business Support Community Services,Cultural Environmental Regulatory & Planning Services,http://opendatacommunities.org/def/concept/finance/sercop/objective/104,EK MOTOR FACTORS LTD,838524,18/03/2020,93530,51.19,0,PArt,381400,Vehicle Mgt Maintenance
South Lakeland District Council,http://opendatacommunities.org/id/district-council/south-lakeland,31/03/2020,Business Support Community Services,Cultural Environmental Regulatory & Planning Services,http://opendatacommunities.org/def/concept/finance/sercop/objective/104,DENNIS EAGLE LTD,3794455,18/03/2020,93531,199.52,0,pARTS,381300,Vehicle Mgt Industrial
South Lakeland District Council,http://opendatacommunities.org/id/district-council/south-lakeland,31/03/2020,Case Management Regulatory,Cultural Environmental Regulatory & Planning Services,http://opendatacommunities.org/def/concept/finance/sercop/objective/104,LABC,,23/03/2020,93532,1326.04,0,LABC  Annual Membership 2020/2021,202100,Financial Services Subscriptions
South Lakeland District Council,http://opendatacommunities.org/id/district-council/south-lakeland,31/03/2020,Case Management Regulatory,Cultural Environmental Regulatory & Planning Services,http://opendatacommunities.org/def/concept/finance/sercop/objective/104,LABC,,23/03/2020,93532,795.63,0,LABC  Annual Membership 2020/2021,202100,Financial Services Subscriptions
South Lakeland District Council,http://opendatacommunities.org/id/district-council/south-lakeland,31/03/2020,Leisure and Wellbeing,Cultural Environmental Regulatory & Planning Services,http://opendatacommunities.org/def/concept/finance/sercop/objective/104,Greaves Tree Services,,18/03/2020,93533,5205,0,Fell two trees with root heave and,241600,Horticultural Trees & Shrubs
South Lakeland District Council,http://opendatacommunities.org/id/district-council/south-lakeland,31/03/2020,Technical Team,Cultural Environmental Regulatory & Planning Services,http://opendatacommunities.org/def/concept/finance/sercop/objective/104,Carrington West,,16/03/2020,93534,1795.5,0,AGENCY STAFF PLANNING,159999,Consultancy Not Elsewhere Classified
South Lakeland District Council,http://opendatacommunities.org/id/district-council/south-lakeland,31/03/2020,Development Implementation,Central Services,http://opendatacommunities.org/def/concept/finance/sercop/objective/102,LAMBERT SMITH HAMPTON GROUP,2521225,11/03/2020,93537,81543.5,0,Property Services Contract - April 2019,191700,Facilities Property Management
South Lakeland District Council,http://opendatacommunities.org/id/district-council/south-lakeland,31/03/2020,Democratic and Member Services,Central Services,http://opendatacommunities.org/def/concept/finance/sercop/objective/102,KIRKBY IRELETH PARISH COUNCIL,,11/03/2020,93538,100,0,Locality donation to fund the purchase,908000,Public Bodies Council support services
South Lakeland District Council,http://opendatacommunities.org/id/district-council/south-lakeland,31/03/2020,Development Implementation,Culture and Related Serv,http://opendatacommunities.org/def/concept/finance/sercop/objective/104,Hyde Harrington Ltd,3946511,11/03/2020,93539,1250,0,Kendal Castle Hill Path,191700,Facilities Property Management
South Lakeland District Council,http://opendatacommunities.org/id/district-council/south-lakeland,31/03/2020,Kendal Town Hall,External Trading Accounts,,THE SIGN MAN,5748839,11/03/2020,93540,99,0,Replacement sign to advertise Kendal,102400,Building Signage
South Lakeland District Council,http://opendatacommunities.org/id/district-council/south-lakeland,31/03/2020,Kendal Town Hall,Cultural Environmental Regulatory & Planning Services,http://opendatacommunities.org/def/concept/finance/sercop/objective/104,PPL PRS Limited,10376001,11/03/2020,93541,509.36,0,PPL and PRS for live music at KTH 2019,202100,Financial Services Subscriptions
South Lakeland District Council,http://opendatacommunities.org/id/district-council/south-lakeland,31/03/2020,Human Resources,Central Services,http://opendatacommunities.org/def/concept/finance/sercop/objective/102,Choose Occupational Health,7365943,18/03/2020,93542,252,0,Dyslexia Assessment,191800,Facilities Public Relations & Image
South Lakeland District Council,http://opendatacommunities.org/id/district-council/south-lakeland,31/03/2020,Human Resources,Central Services,http://opendatacommunities.org/def/concept/finance/sercop/objective/102,Choose Occupational Health,7365943,18/03/2020,93542,650,0, Dyslexia Assessment,191800,Facilities Public Relations & Image
South Lakeland District Council,http://opendatacommunities.org/id/district-council/south-lakeland,31/03/2020,Human Resources,Central Services,http://opendatacommunities.org/def/concept/finance/sercop/objective/102,Choose Occupational Health,7365943,18/03/2020,93542,555,0,Dyslexia Assessment,191800,Facilities Public Relations & Image
South Lakeland District Council,http://opendatacommunities.org/id/district-council/south-lakeland,31/03/2020,Lake Wardens,Cultural Environmental Regulatory & Planning Services,http://opendatacommunities.org/def/concept/finance/sercop/objective/104,DENIS FOXALL,,11/03/2020,93543,1024.5,0,280 Metres (1 Drum) of 10mm Galvanised,190000,Facilities & Management Services
South Lakeland District Council,http://opendatacommunities.org/id/district-council/south-lakeland,31/03/2020,ICT Group,Central Services,http://opendatacommunities.org/def/concept/finance/sercop/objective/102,Insight Direct (Uk) Ltd,2579852,18/03/2020,93544,5579.9,0,0009759053 VOSTRO 5590 CORE,271200,ICT Hardware
South Lakeland District Council,http://opendatacommunities.org/id/district-council/south-lakeland,31/03/2020,ICT Group,Central Services,http://opendatacommunities.org/def/concept/finance/sercop/objective/102,DAISY COMMUNICATIONS LTD,4145329,16/03/2020,93545,416.03,0,Daisy Line Rental costs,271700,ICT Telecommunications Fixed
South Lakeland District Council,http://opendatacommunities.org/id/district-council/south-lakeland,31/03/2020,ICT Group,Central Services,http://opendatacommunities.org/def/concept/finance/sercop/objective/102,DAISY COMMUNICATIONS LTD,4145329,16/03/2020,93545,47.33,0,Daisy Line Rental costs,271700,ICT Telecommunications Fixed
South Lakeland District Council,http://opendatacommunities.org/id/district-council/south-lakeland,31/03/2020,Support Services,Central Services,http://opendatacommunities.org/def/concept/finance/sercop/objective/102,ROYAL MAIL GROUP PLC,,11/03/2020,93547,488.92,0,"Reponse plus - weeks ending 18 Jan, 25",301200,Mail Services� Postage
South Lakeland District Council,http://opendatacommunities.org/id/district-council/south-lakeland,31/03/2020,Electoral Services,Central Services,http://opendatacommunities.org/def/concept/finance/sercop/objective/102,CFH Docmail Ltd,1716891,11/03/2020,93548,324,0,General printing,300000,Mail Services
South Lakeland District Council,http://opendatacommunities.org/id/district-council/south-lakeland,31/03/2020,Case Management Account Mgmt,Cultural Environmental Regulatory & Planning Services,http://opendatacommunities.org/def/concept/finance/sercop/objective/104,Supreme Labelling Ltd,,18/03/2020,93550,182,0,x2000 A6 peelable labels (highway block,191600,Facilities Printing
South Lakeland District Council,http://opendatacommunities.org/id/district-council/south-lakeland,31/03/2020,Development Implementation,Culture and Related Serv,http://opendatacommunities.org/def/concept/finance/sercop/objective/104,LAMBERT SMITH HAMPTON GROUP,2521225,18/03/2020,93552,13659.26,0,Grange Promenade - Structural Repairs,191700,Facilities Property Management
South Lakeland District Council,http://opendatacommunities.org/id/district-council/south-lakeland,31/03/2020,Business Support Community Services,SLDC as Agent,,CUMBRIA COUNTY COUNCIL,,23/03/2020,93553,54,0,DBS Checks for Taxi Drivers,908000,Public Bodies Council support services
South Lakeland District Council,http://opendatacommunities.org/id/district-council/south-lakeland,31/03/2020,ICT Group,Central Services,http://opendatacommunities.org/def/concept/finance/sercop/objective/102,Insight Direct (Uk) Ltd,2579852,18/03/2020,93554,573.79,0,"Dell Vostro 5590 - 15.6"" - Core i5",271200,ICT Hardware
South Lakeland District Council,http://opendatacommunities.org/id/district-council/south-lakeland,31/03/2020,Case Management Account Mgmt,Central Services,http://opendatacommunities.org/def/concept/finance/sercop/objective/102,Airey Consultancy Services Ltd,3518844,11/03/2020,93555,650,0,Consultancy - CTR  2020/21  Scheme,151000,Consultancy Business
South Lakeland District Council,http://opendatacommunities.org/id/district-council/south-lakeland,31/03/2020,Case Management Account Mgmt,Cultural Environmental Regulatory & Planning Services,http://opendatacommunities.org/def/concept/finance/sercop/objective/104,Weasdale Nurseries Ltd,,16/03/2020,93558,229.8,0,Trees for the Underbarrow WI Parish,241600,Horticultural Trees & Shrubs
South Lakeland District Council,http://opendatacommunities.org/id/district-council/south-lakeland,31/03/2020,Case Management Account Mgmt,Cultural Environmental Regulatory & Planning Services,http://opendatacommunities.org/def/concept/finance/sercop/objective/104,Cheviot Trees,2216545,18/03/2020,93559,606.76,0,"Supply of tree tubes, stakes and",241600,Horticultural Trees & Shrubs
South Lakeland District Council,http://opendatacommunities.org/id/district-council/south-lakeland,31/03/2020,Case Management Account Mgmt,Central Services,http://opendatacommunities.org/def/concept/finance/sercop/objective/102,STANDING STONE DRAWING OFFICE SUPPLIES,5128817,16/03/2020,93560,219.3,0,841x110m 90gsm,341100,Stationery Sundries
South Lakeland District Council,http://opendatacommunities.org/id/district-council/south-lakeland,31/03/2020,Support Services,Central Services,http://opendatacommunities.org/def/concept/finance/sercop/objective/102,GRANTS- MISCELLANEOUS,,18/03/2020,93562,700,0,Locality donations toward Nobles Rest,201700,Financial Services Grants
South Lakeland District Council,http://opendatacommunities.org/id/district-council/south-lakeland,31/03/2020,Support Services,Central Services,http://opendatacommunities.org/def/concept/finance/sercop/objective/102,GRANTS- MISCELLANEOUS,,23/03/2020,93563,200,0,Loclaity donation to fund club running,201700,Financial Services Grants
South Lakeland District Council,http://opendatacommunities.org/id/district-council/south-lakeland,31/03/2020,Case Management People,Housing Services,http://opendatacommunities.org/def/concept/finance/sercop/objective/108,Home and Finance,,18/03/2020,93564,1150,0,Rent payment,250010,Housing Letting Agents
South Lakeland District Council,http://opendatacommunities.org/id/district-council/south-lakeland,31/03/2020,Support Services,Central Services,http://opendatacommunities.org/def/concept/finance/sercop/objective/102,ULVERSTON TOWN COUNCIL,,18/03/2020,93565,287.5,0,Locality donation to fund Ulverston,908000,Public Bodies Council support services
South Lakeland District Council,http://opendatacommunities.org/id/district-council/south-lakeland,31/03/2020,Support Services,Cultural Environmental Regulatory & Planning Services,http://opendatacommunities.org/def/concept/finance/sercop/objective/104,Carus Green Ltd,7262136,23/03/2020,93566,1090.25,0,Tea & coffee for 89 people on arrival,192110,Facilities Room Hire
South Lakeland District Council,http://opendatacommunities.org/id/district-council/south-lakeland,31/03/2020,Business Support Community Services,Cultural Environmental Regulatory & Planning Services,http://opendatacommunities.org/def/concept/finance/sercop/objective/104,DENNIS EAGLE LTD,3794455,18/03/2020,93572,93.41,0,pARTS,381300,Vehicle Mgt Industrial
South Lakeland District Council,http://opendatacommunities.org/id/district-council/south-lakeland,31/03/2020,Business Support Community Services,Cultural Environmental Regulatory & Planning Services,http://opendatacommunities.org/def/concept/finance/sercop/objective/104,HAKO MACHINES LIMITED,1414225,18/03/2020,93573,979.8,0,Parts,131000,Cleaning & Janitorial Cleaning Materials
South Lakeland District Council,http://opendatacommunities.org/id/district-council/south-lakeland,31/03/2020,Business Support Community Services,Cultural Environmental Regulatory & Planning Services,http://opendatacommunities.org/def/concept/finance/sercop/objective/104,ARCO LIMITED,133804,16/03/2020,93574,200.43,0,Cleaning materials,141100,Clothing Protective
South Lakeland District Council,http://opendatacommunities.org/id/district-council/south-lakeland,31/03/2020,Business Support Community Services,Transport Planning Policy,http://opendatacommunities.org/def/concept/finance/sercop/objective/107,ARCO LIMITED,133804,16/03/2020,93575,23.46,0,Cleaning materials,141100,Clothing Protective
South Lakeland District Council,http://opendatacommunities.org/id/district-council/south-lakeland,31/03/2020,Business Support Community Services,Transport Planning Policy,http://opendatacommunities.org/def/concept/finance/sercop/objective/107,ARCO LIMITED,133804,16/03/2020,93576,16.65,0,Cleaning materials,141100,Clothing Protective
South Lakeland District Council,http://opendatacommunities.org/id/district-council/south-lakeland,31/03/2020,Business Support Community Services,Cultural Environmental Regulatory & Planning Services,http://opendatacommunities.org/def/concept/finance/sercop/objective/104,ARCO LIMITED,133804,16/03/2020,93576,8.52,0,Cleaning materials,141100,Clothing Protective
South Lakeland District Council,http://opendatacommunities.org/id/district-council/south-lakeland,31/03/2020,Business Support Community Services,Cultural Environmental Regulatory & Planning Services,http://opendatacommunities.org/def/concept/finance/sercop/objective/104,ARCO LIMITED,133804,16/03/2020,93576,37.53,0,Cleaning materials,141100,Clothing Protective
South Lakeland District Council,http://opendatacommunities.org/id/district-council/south-lakeland,31/03/2020,Business Support Community Services,Cultural Environmental Regulatory & Planning Services,http://opendatacommunities.org/def/concept/finance/sercop/objective/104,ARCO LIMITED,133804,16/03/2020,93576,675.01,0,Cleaning materials,141100,Clothing Protective
South Lakeland District Council,http://opendatacommunities.org/id/district-council/south-lakeland,31/03/2020,Business Support Community Services,Cultural Environmental Regulatory & Planning Services,http://opendatacommunities.org/def/concept/finance/sercop/objective/104,ARCO LIMITED,133804,16/03/2020,93582,343.59,0,Cleaning materials,141100,Clothing Protective
South Lakeland District Council,http://opendatacommunities.org/id/district-council/south-lakeland,31/03/2020,Business Support Community Services,Cultural Environmental Regulatory & Planning Services,http://opendatacommunities.org/def/concept/finance/sercop/objective/104,ARCO LIMITED,133804,16/03/2020,93584,70.47,0,Cleaning materials,141100,Clothing Protective
South Lakeland District Council,http://opendatacommunities.org/id/district-council/south-lakeland,31/03/2020,Business Support Community Services,Cultural Environmental Regulatory & Planning Services,http://opendatacommunities.org/def/concept/finance/sercop/objective/104,ARCO LIMITED,133804,16/03/2020,93585,177.07,0,Cleaning materials,141100,Clothing Protective
South Lakeland District Council,http://opendatacommunities.org/id/district-council/south-lakeland,31/03/2020,Business Support Community Services,Cultural Environmental Regulatory & Planning Services,http://opendatacommunities.org/def/concept/finance/sercop/objective/104,FUCHS LUBRICANTS (UK) PLC,2412689,18/03/2020,93587,405.9,0,Oil,381100,Vehicle Mgt Fuel
South Lakeland District Council,http://opendatacommunities.org/id/district-council/south-lakeland,31/03/2020,Business Support Community Services,Cultural Environmental Regulatory & Planning Services,http://opendatacommunities.org/def/concept/finance/sercop/objective/104,HAKO MACHINES LIMITED,1414225,18/03/2020,93588,444.76,0,Parts,131000,Cleaning & Janitorial Cleaning Materials
South Lakeland District Council,http://opendatacommunities.org/id/district-council/south-lakeland,31/03/2020,Business Support Community Services,Cultural Environmental Regulatory & Planning Services,http://opendatacommunities.org/def/concept/finance/sercop/objective/104,EK MOTOR FACTORS LTD,838524,18/03/2020,93589,-17.13,0,Parts,381400,Vehicle Mgt Maintenance
South Lakeland District Council,http://opendatacommunities.org/id/district-council/south-lakeland,31/03/2020,Business Support Community Services,Cultural Environmental Regulatory & Planning Services,http://opendatacommunities.org/def/concept/finance/sercop/objective/104,EK MOTOR FACTORS LTD,838524,18/03/2020,93590,63.48,0,Parts,381400,Vehicle Mgt Maintenance
South Lakeland District Council,http://opendatacommunities.org/id/district-council/south-lakeland,31/03/2020,Business Support Community Services,Cultural Environmental Regulatory & Planning Services,http://opendatacommunities.org/def/concept/finance/sercop/objective/104,AINSWORTH'S GARAGE,,18/03/2020,93591,31.5,0,Repairs,381400,Vehicle Mgt Maintenance
South Lakeland District Council,http://opendatacommunities.org/id/district-council/south-lakeland,31/03/2020,Business Support Community Services,Cultural Environmental Regulatory & Planning Services,http://opendatacommunities.org/def/concept/finance/sercop/objective/104,EK MOTOR FACTORS LTD,838524,18/03/2020,93592,42.73,0,Parts,381400,Vehicle Mgt Maintenance
South Lakeland District Council,http://opendatacommunities.org/id/district-council/south-lakeland,31/03/2020,Case Management Account Mgmt,Cultural Environmental Regulatory & Planning Services,http://opendatacommunities.org/def/concept/finance/sercop/objective/104,GLASDON UK LTD,2160576,18/03/2020,93593,390.49,0,1 black Glasdon Phoenix seat c/w,109999,Building Not Elsewhere Classified
South Lakeland District Council,http://opendatacommunities.org/id/district-council/south-lakeland,31/03/2020,Case Management People,Housing Services,http://opendatacommunities.org/def/concept/finance/sercop/objective/108,BUNZL CLEANING & HYGIENE SUPPLIES,2902454,18/03/2020,93594,30.04,0,Blue dishcloth 001001,131011,Cleaning & Janitorial Cleaning Materials
South Lakeland District Council,http://opendatacommunities.org/id/district-council/south-lakeland,31/03/2020,Business Support Community Services,Central Services,http://opendatacommunities.org/def/concept/finance/sercop/objective/102,The Oyster Partnership,5020374,18/03/2020,93596,826.2,0,Agency Environmental Health Officer,261300,HR Recruitment & Assessment
South Lakeland District Council,http://opendatacommunities.org/id/district-council/south-lakeland,31/03/2020,Business Support Community Services,Central Services,http://opendatacommunities.org/def/concept/finance/sercop/objective/102,The Oyster Partnership,5020374,18/03/2020,93597,1105.25,0,Agency Environmental Health Officer,261300,HR Recruitment & Assessment
South Lakeland District Council,http://opendatacommunities.org/id/district-council/south-lakeland,31/03/2020,Support Services,Central Services,http://opendatacommunities.org/def/concept/finance/sercop/objective/102,GRANTS- MISCELLANEOUS,,18/03/2020,93598,250,0,Locality donation to fund The Kentmere,201700,Financial Services Grants
South Lakeland District Council,http://opendatacommunities.org/id/district-council/south-lakeland,31/03/2020,Business Support Community Services,Cultural Environmental Regulatory & Planning Services,http://opendatacommunities.org/def/concept/finance/sercop/objective/104,ARCO LIMITED,133804,16/03/2020,93599,8.41,0,Cleaning materials,141100,Clothing Protective
South Lakeland District Council,http://opendatacommunities.org/id/district-council/south-lakeland,31/03/2020,Democratic and Member Services,Central Services,http://opendatacommunities.org/def/concept/finance/sercop/objective/102,GRANTS- MISCELLANEOUS,,18/03/2020,93600,200,0,Locality donation to fund litter signs,201700,Financial Services Grants
South Lakeland District Council,http://opendatacommunities.org/id/district-council/south-lakeland,31/03/2020,Business Support Community Services,Cultural Environmental Regulatory & Planning Services,http://opendatacommunities.org/def/concept/finance/sercop/objective/104,ARCO LIMITED,133804,16/03/2020,93601,165.48,0,Cleaning materials,141100,Clothing Protective
South Lakeland District Council,http://opendatacommunities.org/id/district-council/south-lakeland,31/03/2020,Case Management People,Housing Services,http://opendatacommunities.org/def/concept/finance/sercop/objective/108,KENTDALE FIRST AID TRAINING,,18/03/2020,93603,1375,0,First Aid Training for Town View Fields,261500,HR Training & Conferences
South Lakeland District Council,http://opendatacommunities.org/id/district-council/south-lakeland,31/03/2020,Human Resources,Central Services,http://opendatacommunities.org/def/concept/finance/sercop/objective/102,LAKES TRAINING SOLUTIONS LTD,7541345,16/03/2020,93604,1000,0,Customer Service Training ,261500,HR Training & Conferences
South Lakeland District Council,http://opendatacommunities.org/id/district-council/south-lakeland,31/03/2020,ICT Group,Central Services,http://opendatacommunities.org/def/concept/finance/sercop/objective/102,TRILITHON LTD,3390011,16/03/2020,93605,450,0,Parking Permits application.,271515,ICT Website Development
South Lakeland District Council,http://opendatacommunities.org/id/district-council/south-lakeland,31/03/2020,ICT Group,Central Services,http://opendatacommunities.org/def/concept/finance/sercop/objective/102,IT PROFESSIONAL SERVICES (ITPS),,16/03/2020,93606,11,0,"Call Costs for Town View Fields,",279999,ICT Not Elsewhere Classified
South Lakeland District Council,http://opendatacommunities.org/id/district-council/south-lakeland,31/03/2020,ICT Group,Central Services,http://opendatacommunities.org/def/concept/finance/sercop/objective/102,IT PROFESSIONAL SERVICES (ITPS),,16/03/2020,93606,28.6,0,"Call Costs for Town View Fields,",279999,ICT Not Elsewhere Classified
South Lakeland District Council,http://opendatacommunities.org/id/district-council/south-lakeland,31/03/2020,Business Support Community Services,Cultural Environmental Regulatory & Planning Services,http://opendatacommunities.org/def/concept/finance/sercop/objective/104,AINSWORTH'S GARAGE,,16/03/2020,93607,264.5,0,Repairs,381400,Vehicle Mgt Maintenance
South Lakeland District Council,http://opendatacommunities.org/id/district-council/south-lakeland,31/03/2020,Business Support Community Services,Cultural Environmental Regulatory & Planning Services,http://opendatacommunities.org/def/concept/finance/sercop/objective/104,AINSWORTH'S GARAGE,,16/03/2020,93607,11.75,0,Repairs,381400,Vehicle Mgt Maintenance
South Lakeland District Council,http://opendatacommunities.org/id/district-council/south-lakeland,31/03/2020,Business Support Community Services,Cultural Environmental Regulatory & Planning Services,http://opendatacommunities.org/def/concept/finance/sercop/objective/104,M G D LTD,,16/03/2020,93608,35,0,MOTs 2019/20,381400,Vehicle Mgt Maintenance
South Lakeland District Council,http://opendatacommunities.org/id/district-council/south-lakeland,31/03/2020,Business Support Community Services,Cultural Environmental Regulatory & Planning Services,http://opendatacommunities.org/def/concept/finance/sercop/objective/104,BRIAN ARMISTEAD LTD T/A SINKFALL RECYCLI,4133280,16/03/2020,93609,369.37,0,Tipping charges - green waste,391110,Construction Buildings Construction
South Lakeland District Council,http://opendatacommunities.org/id/district-council/south-lakeland,31/03/2020,Business Support Community Services,Cultural Environmental Regulatory & Planning Services,http://opendatacommunities.org/def/concept/finance/sercop/objective/104,BRIAN ARMISTEAD LTD T/A SINKFALL RECYCLI,4133280,16/03/2020,93610,436.88,0,Tipping charges - green waste,391110,Construction Buildings Construction
South Lakeland District Council,http://opendatacommunities.org/id/district-council/south-lakeland,31/03/2020,Business Support Community Services,Cultural Environmental Regulatory & Planning Services,http://opendatacommunities.org/def/concept/finance/sercop/objective/104,C T HAYTON LTD,1212766,16/03/2020,93611,44.97,0,Parts,391200,Construction Engineering
South Lakeland District Council,http://opendatacommunities.org/id/district-council/south-lakeland,31/03/2020,Business Support Community Services,Cultural Environmental Regulatory & Planning Services,http://opendatacommunities.org/def/concept/finance/sercop/objective/104,C T HAYTON LTD,1212766,16/03/2020,93612,25.09,0,Parts,391200,Construction Engineering
South Lakeland District Council,http://opendatacommunities.org/id/district-council/south-lakeland,31/03/2020,Business Support Community Services,Cultural Environmental Regulatory & Planning Services,http://opendatacommunities.org/def/concept/finance/sercop/objective/104,VOLVO GROUP UK LTD,2190944,16/03/2020,93613,132,0,parts,381000,Vehicle Mgt Commercial
South Lakeland District Council,http://opendatacommunities.org/id/district-council/south-lakeland,31/03/2020,Business Support Community Services,Transport Planning Policy,http://opendatacommunities.org/def/concept/finance/sercop/objective/107,ARCO LIMITED,133804,16/03/2020,93614,20.76,0,Cleaning materials,141100,Clothing Protective
South Lakeland District Council,http://opendatacommunities.org/id/district-council/south-lakeland,31/03/2020,Development Implementation,Cultural Environmental Regulatory & Planning Services,http://opendatacommunities.org/def/concept/finance/sercop/objective/104,CUMBRIA WASTE RECYCLING LTD,3162439,16/03/2020,93616,123.12,0,"Waste Collection at 124 Highgate,",182012,Environment Waste Management Recycling
South Lakeland District Council,http://opendatacommunities.org/id/district-council/south-lakeland,31/03/2020,Lake Wardens,Cultural Environmental Regulatory & Planning Services,http://opendatacommunities.org/def/concept/finance/sercop/objective/104,CUMBRIA WASTE RECYCLING LTD,3162439,16/03/2020,93617,130.16,0,Emptying of Normal Refuse Wheelie Bins,182012,Environment Waste Management Recycling
South Lakeland District Council,http://opendatacommunities.org/id/district-council/south-lakeland,31/03/2020,Leisure and Wellbeing,Highways & Transport Services,http://opendatacommunities.org/def/concept/finance/sercop/objective/107,CUMBRIA WASTE RECYCLING LTD,3162439,16/03/2020,93618,55.04,0,Skip hire at Westmorland multistorey,182012,Environment Waste Management Recycling
South Lakeland District Council,http://opendatacommunities.org/id/district-council/south-lakeland,31/03/2020,Kendal Town Hall,Cultural Environmental Regulatory & Planning Services,http://opendatacommunities.org/def/concept/finance/sercop/objective/104,CUMBRIA WASTE RECYCLING LTD,3162439,16/03/2020,93619,147,0,Kendal Town Hall mixed waste collection,182012,Environment Waste Management Recycling
South Lakeland District Council,http://opendatacommunities.org/id/district-council/south-lakeland,31/03/2020,Development Implementation,Central Services,http://opendatacommunities.org/def/concept/finance/sercop/objective/102,CUMBRIA WASTE RECYCLING LTD,3162439,27/03/2020,93620,245.88,0,South Lakeland House Bin & Skip Emptying,182012,Environment Waste Management Recycling
South Lakeland District Council,http://opendatacommunities.org/id/district-council/south-lakeland,31/03/2020,Lake Wardens,Cultural Environmental Regulatory & Planning Services,http://opendatacommunities.org/def/concept/finance/sercop/objective/104,CUMBRIA WASTE RECYCLING LTD,3162439,16/03/2020,93621,139.76,0,Emptying of Normal Refuse Wheelie Bins,182012,Environment Waste Management Recycling
South Lakeland District Council,http://opendatacommunities.org/id/district-council/south-lakeland,31/03/2020,Case Management People,Housing Services,http://opendatacommunities.org/def/concept/finance/sercop/objective/108,Affordable Man And Van Service,,16/03/2020,93622,120,0,Removals From Flat ,250000,Housing
South Lakeland District Council,http://opendatacommunities.org/id/district-council/south-lakeland,31/03/2020,Environment and Housing,Housing Services,http://opendatacommunities.org/def/concept/finance/sercop/objective/108,James Andrews Recruitment Solutions,6834852,16/03/2020,93623,1612.94,0,Agency worker for Community-led Housing,261400,HR Temporary & Agency Staff
South Lakeland District Council,http://opendatacommunities.org/id/district-council/south-lakeland,31/03/2020,Support Services,Central Services,http://opendatacommunities.org/def/concept/finance/sercop/objective/102,Ulverston Coronation Hall,,18/03/2020,93624,208.5,0,Coronation hall hire for Climate,291300,Arts & Leisure Services Performing Arts
South Lakeland District Council,http://opendatacommunities.org/id/district-council/south-lakeland,31/03/2020,Technical Team,Cultural Environmental Regulatory & Planning Services,http://opendatacommunities.org/def/concept/finance/sercop/objective/104,Carrington West,,16/03/2020,93625,1795.5,0,AGENCY STAFF PLANNING,159999,Consultancy Not Elsewhere Classified
South Lakeland District Council,http://opendatacommunities.org/id/district-council/south-lakeland,31/03/2020,Business Support Community Services,Central Services,,Richard A Majewicz,,16/03/2020,93627,450,0,Conservation advice,159999,Consultancy Not Elsewhere Classified
South Lakeland District Council,http://opendatacommunities.org/id/district-council/south-lakeland,31/03/2020,Business Support Community Services,Cultural Environmental Regulatory & Planning Services,,CALIBRATION & CONSULTANCY SERV (UK) LTD,,27/03/2020,93631,797,0,Parts,159999,Consultancy Not Elsewhere Classified
South Lakeland District Council,http://opendatacommunities.org/id/district-council/south-lakeland,31/03/2020,Support Services,Housing Services,,GRANTS- MISCELLANEOUS,,16/03/2020,93632,3000,0,Grant for Domestic Abuse Support Work,201700,Financial Services Grants
South Lakeland District Council,http://opendatacommunities.org/id/district-council/south-lakeland,31/03/2020,Support Services,Central Services,,GRANTS- MISCELLANEOUS,,23/03/2020,93635,300,0,Locality donation to fund equipment-New,201700,Financial Services Grants
South Lakeland District Council,http://opendatacommunities.org/id/district-council/south-lakeland,31/03/2020,Development Management,Cultural Environmental Regulatory & Planning Services,,The Oyster Partnership,5020374,23/03/2020,93636,2840.6,0,Supply of Contract workers for Planning,261300,HR Recruitment & Assessment
South Lakeland District Council,http://opendatacommunities.org/id/district-council/south-lakeland,31/03/2020,Development Management,Cultural Environmental Regulatory & Planning Services,,The Oyster Partnership,5020374,23/03/2020,93637,1223.15,0,Supply of Contract workers for Planning,261300,HR Recruitment & Assessment
South Lakeland District Council,http://opendatacommunities.org/id/district-council/south-lakeland,31/03/2020,Case Management People,Housing Services,,Thomson Hayton Winkley,,18/03/2020,93639,1250,0,Payment to clear rent arrears,250010,Housing Letting Agents
South Lakeland District Council,http://opendatacommunities.org/id/district-council/south-lakeland,31/03/2020,Support Services,Culture and Related Serv,,DUDDON PARISH COUNCIL,,16/03/2020,93642,1500,0,LIP Grant for Broughton in Furness,908000,Public Bodies Council support services
South Lakeland District Council,http://opendatacommunities.org/id/district-council/south-lakeland,31/03/2020,Environment and Housing,Housing Services,,Homes For Ulverston CLT Ltd,,16/03/2020,93655,745,0,H4US Brewery Development - Scheme Grant,250000,Housing
South Lakeland District Council,http://opendatacommunities.org/id/district-council/south-lakeland,31/03/2020,Environment and Housing,Housing,,Homes For Ulverston CLT Ltd,,23/03/2020,93656,2240,0,H4US Brewery Development Additional,250000,Housing
South Lakeland District Council,http://opendatacommunities.org/id/district-council/south-lakeland,31/03/2020,Business Support Community Services,Cultural Environmental Regulatory & Planning Services,,Initial,1298292,18/03/2020,93657,-11.27,0,Clinical waste collections - 2019/20,131011,Cleaning & Janitorial Cleaning Materials
South Lakeland District Council,http://opendatacommunities.org/id/district-council/south-lakeland,31/03/2020,Business Support Community Services,Cultural Environmental Regulatory & Planning Services,,Harry Park Tyres Ltd,8131208,16/03/2020,93658,177.5,0,Tyres,381500,Vehicle Mgt Parts
South Lakeland District Council,http://opendatacommunities.org/id/district-council/south-lakeland,31/03/2020,Business Support Community Services,Cultural Environmental Regulatory & Planning Services,,Harry Park Tyres Ltd,8131208,16/03/2020,93659,30,0,Tyres,381500,Vehicle Mgt Parts
South Lakeland District Council,http://opendatacommunities.org/id/district-council/south-lakeland,31/03/2020,Business Support Community Services,Cultural Environmental Regulatory & Planning Services,,ARCO LIMITED,133804,16/03/2020,93660,337.95,0,PPE 2019/20,141100,Clothing Protective
South Lakeland District Council,http://opendatacommunities.org/id/district-council/south-lakeland,31/03/2020,Business Support Community Services,Cultural Environmental Regulatory & Planning Services,,LANCASHIRE DAF,,16/03/2020,93661,117.62,0,Parts,381400,Vehicle Mgt Maintenance
South Lakeland District Council,http://opendatacommunities.org/id/district-council/south-lakeland,31/03/2020,Case Management People,Housing Services,,FIONA & JOHN ARMER,,16/03/2020,93663,58.61,0,Reimbursement of costs ,250000,Housing
South Lakeland District Council,http://opendatacommunities.org/id/district-council/south-lakeland,31/03/2020,Case Management People,Housing Services,,Ashberry Recruitment,7202591,18/03/2020,93664,1000,0,Release payment for Anna Dobras,261300,HR Recruitment & Assessment
South Lakeland District Council,http://opendatacommunities.org/id/district-council/south-lakeland,31/03/2020,Support Services,Central Services,,KENTDALE FIRST AID TRAINING,,18/03/2020,93665,95,0,Emergency First Aid at Work Training,261500,HR Training & Conferences
South Lakeland District Council,http://opendatacommunities.org/id/district-council/south-lakeland,31/03/2020,ICT Group,Central Services,,PROBRAND LTD,2653446,27/03/2020,93666,360,0,SL845/SM-A202FZKDB-TU/SP,271600,ICT Software Customised & Bespoke
South Lakeland District Council,http://opendatacommunities.org/id/district-council/south-lakeland,31/03/2020,Business Support Community Services,Cultural Environmental Regulatory & Planning Services,,LANCASHIRE DAF,,18/03/2020,93669,375,0,Parts,381400,Vehicle Mgt Maintenance
South Lakeland District Council,http://opendatacommunities.org/id/district-council/south-lakeland,31/03/2020,Business Support Community Services,Cultural Environmental Regulatory & Planning Services,,LANCASHIRE DAF,,18/03/2020,93670,358.15,0,Parts,381400,Vehicle Mgt Maintenance
South Lakeland District Council,http://opendatacommunities.org/id/district-council/south-lakeland,31/03/2020,Business Support Community Services,Cultural Environmental Regulatory & Planning Services,,LANCASHIRE DAF,,18/03/2020,93671,589.37,0,Parts,381400,Vehicle Mgt Maintenance
South Lakeland District Council,http://opendatacommunities.org/id/district-council/south-lakeland,31/03/2020,Business Support Community Services,Cultural Environmental Regulatory & Planning Services,,Verizon Connect UK Ltd,5265904,18/03/2020,93673,32,0,Annual fee for 70 vehicles from 01/06/19,361000,Public Transport Fleet Management
South Lakeland District Council,http://opendatacommunities.org/id/district-council/south-lakeland,31/03/2020,Business Support Community Services,Cultural Environmental Regulatory & Planning Services,,CUMBRIA WASTE RECYCLING LTD,3162439,18/03/2020,93675,1345.5,0,Skip emptying at Ecclerigg & Ulverston,182012,Environment Waste Management Recycling
South Lakeland District Council,http://opendatacommunities.org/id/district-council/south-lakeland,31/03/2020,Business Support Community Services,Cultural Environmental Regulatory & Planning Services,,CUMBRIA WASTE RECYCLING LTD,3162439,18/03/2020,93676,520,0,Skip emptying at Ecclerigg & Ulverston,182012,Environment Waste Management Recycling
South Lakeland District Council,http://opendatacommunities.org/id/district-council/south-lakeland,31/03/2020,Business Support Community Services,Cultural Environmental Regulatory & Planning Services,,Masterstaff Limited,2777593,18/03/2020,93678,1274.4,0,Agency staff 2019/20,261300,HR Recruitment & Assessment
South Lakeland District Council,http://opendatacommunities.org/id/district-council/south-lakeland,31/03/2020,Business Support Community Services,Cultural Environmental Regulatory & Planning Services,,Harry Park Tyres Ltd,8131208,18/03/2020,93679,790,0,Tyres,381500,Vehicle Mgt Parts
South Lakeland District Council,http://opendatacommunities.org/id/district-council/south-lakeland,31/03/2020,Business Support Community Services,Cultural Environmental Regulatory & Planning Services,,HAKO MACHINES LIMITED,1414225,18/03/2020,93681,493.97,0,Parts,131000,Cleaning & Janitorial Cleaning Materials
South Lakeland District Council,http://opendatacommunities.org/id/district-council/south-lakeland,31/03/2020,Business Support Community Services,Cultural Environmental Regulatory & Planning Services,,HAKO MACHINES LIMITED,1414225,18/03/2020,93682,35.68,0,Parts,131000,Cleaning & Janitorial Cleaning Materials
South Lakeland District Council,http://opendatacommunities.org/id/district-council/south-lakeland,31/03/2020,Business Support Community Services,Cultural Environmental Regulatory & Planning Services,,VOLVO GROUP UK LTD,2190944,18/03/2020,93684,199.53,0,parts,381000,Vehicle Mgt Commercial
South Lakeland District Council,http://opendatacommunities.org/id/district-council/south-lakeland,31/03/2020,Business Support Community Services,Cultural Environmental Regulatory & Planning Services,,DENNIS EAGLE LTD,3794455,18/03/2020,93686,162.45,0,pARTS,381300,Vehicle Mgt Industrial
South Lakeland District Council,http://opendatacommunities.org/id/district-council/south-lakeland,31/03/2020,Human Resources,Central Services,,ADECCO UK LIMITED,593232,18/03/2020,93687,653.63,0,Agency staff,261400,HR Temporary & Agency Staff
South Lakeland District Council,http://opendatacommunities.org/id/district-council/south-lakeland,31/03/2020,Case Management Account Mgmt,Central Services,,ADECCO UK LIMITED,593232,18/03/2020,93689,493.52,0,Permanent Employment Charges,261400,HR Temporary & Agency Staff
South Lakeland District Council,http://opendatacommunities.org/id/district-council/south-lakeland,31/03/2020,Financial Services,Central Services,,TIAA Ltd,4546319,18/03/2020,93692,3280,0,19/20 Internal Audit Service Quarterly.,201100,Financial Services Audit
South Lakeland District Council,http://opendatacommunities.org/id/district-council/south-lakeland,31/03/2020,Case Management Account Mgmt,Cultural Environmental Regulatory & Planning Services,,CONTINENTAL LANDSCAPES LTD,2108452,18/03/2020,93696,543.97,0,Supply and plant in small beds by,391310,Construction Open Spaces Construction
South Lakeland District Council,http://opendatacommunities.org/id/district-council/south-lakeland,31/03/2020,Social Enterprise Admin,SLDC as Agent,,PAY BY PHONE (PAYPOINT),,18/03/2020,93697,1159.58,0,Pay-by-Phone fees 2019-20,351400,Street & Traffic Traffic Control
South Lakeland District Council,http://opendatacommunities.org/id/district-council/south-lakeland,31/03/2020,Support Services,Central Services,,BEETHAM PARISH COUNCIL,,18/03/2020,93698,450,0,Locality donation to help fund a new,908000,Public Bodies Council support services
South Lakeland District Council,http://opendatacommunities.org/id/district-council/south-lakeland,31/03/2020,ICT Group,Central Services,,Insight Direct (Uk) Ltd,2579852,27/03/2020,93699,5579.9,0,9759053,271200,ICT Hardware
South Lakeland District Council,http://opendatacommunities.org/id/district-council/south-lakeland,31/03/2020,Lake Wardens,Cultural Environmental Regulatory & Planning Services,,MARINE WAREHOUSE LIMITED,5152483,23/03/2020,93700,321.55,0,Annual Service of 8 x Ergofit 290N,221000,Health & Safety� Products
South Lakeland District Council,http://opendatacommunities.org/id/district-council/south-lakeland,31/03/2020,Westmorland Centre Parking Office,Highways & Transport Services,,Security Plus   Limited,,18/03/2020,93701,625,0,Cash processing February,209999,Financial Services Not Elsewhere Classif
South Lakeland District Council,http://opendatacommunities.org/id/district-council/south-lakeland,31/03/2020,Westmorland Centre Parking Office,Highways & Transport Services,,Security Plus   Limited,,18/03/2020,93702,1292.19,0,Cash processing February,209999,Financial Services Not Elsewhere Classif
South Lakeland District Council,http://opendatacommunities.org/id/district-council/south-lakeland,31/03/2020,Kendal Town Hall,External Trading Accounts,,MK Illuminations,4366174,18/03/2020,93703,351,0,Kendal Indoor Market Christmas lights,109999,Building Not Elsewhere Classified
South Lakeland District Council,http://opendatacommunities.org/id/district-council/south-lakeland,31/03/2020,Development Implementation,Culture and Related Serv,,LAMBERT SMITH HAMPTON GROUP,2521225,18/03/2020,93704,6732,0,Grange Promenade - Structural Repairs,191700,Facilities Property Management
South Lakeland District Council,http://opendatacommunities.org/id/district-council/south-lakeland,31/03/2020,Revenues and Benefits,SLDC as Agent,,ROYAL MAIL GROUP PLC,,18/03/2020,93705,1718.49,0,2019 - 20 Postal Charges a/c 0198123013,301200,Mail Services� Postage
South Lakeland District Council,http://opendatacommunities.org/id/district-council/south-lakeland,31/03/2020,Electoral Services,Central Services,,CFH Docmail Ltd,1716891,27/03/2020,93706,18.7,0,General printing,300000,Mail Services
South Lakeland District Council,http://opendatacommunities.org/id/district-council/south-lakeland,31/03/2020,Support Services,Cultural Environmental Regulatory & Planning Services,,AECOM Ltd,1846493,18/03/2020,93707,700,0,Kendal Masterplan Updating,151911,Consultancy- Organisation & Planning
South Lakeland District Council,http://opendatacommunities.org/id/district-council/south-lakeland,31/03/2020,Development Implementation,Cultural Environmental Regulatory & Planning Services,,AECOM Ltd,1846493,18/03/2020,93708,3457.5,0,Additional work for Kendal Masterplan,151911,Consultancy- Organisation & Planning
South Lakeland District Council,http://opendatacommunities.org/id/district-council/south-lakeland,31/03/2020,ICT Group,Central Services,,CABLE & WIRELESS UK (VODAFONE),,18/03/2020,93709,8810.55,0,New GSi,271700,ICT Telecommunications Fixed
South Lakeland District Council,http://opendatacommunities.org/id/district-council/south-lakeland,31/03/2020,Support Services,Central Services,,Print.UK.Com,,18/03/2020,93710,780,0,Documail restock,191600,Facilities Printing
South Lakeland District Council,http://opendatacommunities.org/id/district-council/south-lakeland,31/03/2020,Business Support Community Services,SLDC as Agent,,CUMBRIA COUNTY COUNCIL,,23/03/2020,93712,108,0,DBS Checks for Taxi Drivers,908000,Public Bodies Council support services
South Lakeland District Council,http://opendatacommunities.org/id/district-council/south-lakeland,31/03/2020,Westmorland Centre Parking Office,Highways & Transport Services,,NEWSQUEST MEDIA GROUP LTD,3102566,23/03/2020,93713,2079,0,Advertising Off Street Parking Places,191000,Facilities Advertising
South Lakeland District Council,http://opendatacommunities.org/id/district-council/south-lakeland,31/03/2020,Development Implementation,Cultural Environmental Regulatory & Planning Services,,Green Small Business,,23/03/2020,93714,149.5,0,Green Small Business Advice,151000,Consultancy Business
South Lakeland District Council,http://opendatacommunities.org/id/district-council/south-lakeland,31/03/2020,Development Implementation,Culture and Related Serv,,NETWORK RAIL (INFRASTRUCTURE) LTD,2904587,23/03/2020,93715,2402.31,0,Redevelopment/Restoration of Grange,360000,Public Transport
South Lakeland District Council,http://opendatacommunities.org/id/district-council/south-lakeland,31/03/2020,Support Services,Central Services,,ASSOCIATION OF ELECTORAL ADMINISTRATORS,2406897,23/03/2020,93716,915,0,AEA conference (3-4 Feb) attendance for,202100,Financial Services Subscriptions
South Lakeland District Council,http://opendatacommunities.org/id/district-council/south-lakeland,31/03/2020,Support Services,Central Services,,Zest Publication Ltd,,23/03/2020,93717,225,0,Advert re: PCC and local elections 7,261200,HR Professional & Advisory Services
South Lakeland District Council,http://opendatacommunities.org/id/district-council/south-lakeland,31/03/2020,Revenues and Benefits,Central Services,,ALLPAY.NET LTD (NCR),6871069,01/03/2020,93718,108.17,0,2019-20 Internet Payment / bank charges,209999,Financial Services Not Elsewhere Classif
South Lakeland District Council,http://opendatacommunities.org/id/district-council/south-lakeland,31/03/2020,Revenues and Benefits,Central Services,,ALLPAY.NET LTD (NCR),6871069,01/03/2020,93719,14.14,0,2019-20 Internet Payment / bank charges,209999,Financial Services Not Elsewhere Classif
South Lakeland District Council,http://opendatacommunities.org/id/district-council/south-lakeland,31/03/2020,Revenues and Benefits,Central Services,,ALLPAY.NET LTD (NCR),6871069,01/03/2020,93720,232.15,0,2019-20 Internet Payment / bank charges,209999,Financial Services Not Elsewhere Classif
South Lakeland District Council,http://opendatacommunities.org/id/district-council/south-lakeland,31/03/2020,Revenues and Benefits,Central Services,,ALLPAY.NET LTD (NCR),6871069,01/03/2020,93721,14.59,0,2019-20 Internet Payment / bank charges,209999,Financial Services Not Elsewhere Classif
South Lakeland District Council,http://opendatacommunities.org/id/district-council/south-lakeland,31/03/2020,Revenues and Benefits,Central Services,,ALLPAY.NET LTD (NCR),6871069,01/03/2020,93722,13.13,0,2019-20 Internet Payment / bank charges,209999,Financial Services Not Elsewhere Classif
South Lakeland District Council,http://opendatacommunities.org/id/district-council/south-lakeland,31/03/2020,Revenues and Benefits,Central Services,,ALLPAY.NET LTD (NCR),6871069,01/03/2020,93723,11.09,0,2019-20 Internet Payment / bank charges,209999,Financial Services Not Elsewhere Classif
South Lakeland District Council,http://opendatacommunities.org/id/district-council/south-lakeland,31/03/2020,Revenues and Benefits,Central Services,,ALLPAY.NET LTD (NCR),6871069,01/03/2020,93724,10.6,0,2019-20 Internet Payment / bank charges,209999,Financial Services Not Elsewhere Classif
South Lakeland District Council,http://opendatacommunities.org/id/district-council/south-lakeland,31/03/2020,Revenues and Benefits,Central Services,,ALLPAY.NET LTD (NCR),6871069,01/03/2020,93725,20.67,0,2019-20 Internet Payment / bank charges,209999,Financial Services Not Elsewhere Classif
South Lakeland District Council,http://opendatacommunities.org/id/district-council/south-lakeland,31/03/2020,Kendal Town Hall,Cultural Environmental Regulatory & Planning Services,,FARRERS,9023215,23/03/2020,93726,256.55,0,1 box of filter coffee sachets -,111200,Catering Food & Beverages
South Lakeland District Council,http://opendatacommunities.org/id/district-council/south-lakeland,31/03/2020,Business Support Community Services,Cultural Environmental Regulatory & Planning Services,,K S INTERNATIONAL LTD,2703321,23/03/2020,93727,129,0,Parts,381500,Vehicle Mgt Parts
South Lakeland District Council,http://opendatacommunities.org/id/district-council/south-lakeland,31/03/2020,Business Support Community Services,Cultural Environmental Regulatory & Planning Services,,LANCASHIRE DAF,,18/03/2020,93728,-435,0,Parts,381400,Vehicle Mgt Maintenance
South Lakeland District Council,http://opendatacommunities.org/id/district-council/south-lakeland,31/03/2020,ICT Group,Central Services,,MERITEC LTD,3224622,27/03/2020,93729,6000,0,Merit Days,391200,Construction Engineering
South Lakeland District Council,http://opendatacommunities.org/id/district-council/south-lakeland,31/03/2020,Business Support Community Services,Cultural Environmental Regulatory & Planning Services,,DENNIS EAGLE LTD,3794455,23/03/2020,93730,132.47,0,pARTS,381300,Vehicle Mgt Industrial
South Lakeland District Council,http://opendatacommunities.org/id/district-council/south-lakeland,31/03/2020,Financial Services,Non-Service Payments,,COMPUTERSHARE VOUCHER SERVICES LTD,4968447,18/03/2020,93731,549.93,0,CHILD CARE VOUCHERS 18/19,202100,Financial Services Subscriptions
South Lakeland District Council,http://opendatacommunities.org/id/district-council/south-lakeland,31/03/2020,Financial Services,Central Services,,BUSY BEES BENEFITS LTD,6758298,18/03/2020,93732,30.1,0,CHILD CARE VOUCHER SERVICE CHARGE 18/19,202100,Financial Services Subscriptions
South Lakeland District Council,http://opendatacommunities.org/id/district-council/south-lakeland,31/03/2020,Financial Services,Non-Service Payments,,BUSY BEES BENEFITS LTD,6758298,18/03/2020,93733,860,0,CHILD CARE VOUCHERS 18/19,202100,Financial Services Subscriptions
South Lakeland District Council,http://opendatacommunities.org/id/district-council/south-lakeland,31/03/2020,Financial Services,Central Services,,Caboodle Technology Ltd,6784632,01/03/2020,93734,41.63,0,CHILD CARE VOUCHER SERVICE 18/19 DD,260000,HR
South Lakeland District Council,http://opendatacommunities.org/id/district-council/south-lakeland,31/03/2020,Support Services,Central Services,,MILNTHORPE PARISH COUNCIL,,18/03/2020,93735,1000,0,Locality donation to fund CCTV &,908000,Public Bodies Council support services
South Lakeland District Council,http://opendatacommunities.org/id/district-council/south-lakeland,31/03/2020,Social Enterprise Admin,Cultural Environmental Regulatory & Planning Services,,NEWSQUEST MEDIA GROUP LTD,3102566,18/03/2020,93736,140.5,0,PUBLIC NOTICES FOR PLANNING 1 APRIL - 31,191000,Facilities Advertising
South Lakeland District Council,http://opendatacommunities.org/id/district-council/south-lakeland,31/03/2020,Social Enterprise Admin,Cultural Environmental Regulatory & Planning Services,,NEWSQUEST MEDIA GROUP LTD,3102566,18/03/2020,93737,105.8,0,PUBLIC NOTICES FOR PLANNING 1 APRIL - 31,191000,Facilities Advertising
South Lakeland District Council,http://opendatacommunities.org/id/district-council/south-lakeland,31/03/2020,Revenues and Benefits,Central Services,,TAMESIDE METROPOLITAN BOROUGH,,23/03/2020,93738,484.45,0,2019 - 20 NAFN credit and other,202100,Financial Services Subscriptions
South Lakeland District Council,http://opendatacommunities.org/id/district-council/south-lakeland,31/03/2020,Business Support Community Services,Environment Regulatory,,CUMBRIA COUNTY COUNCIL,,18/03/2020,93739,2660,0,Install street lighting column at Low,908000,Public Bodies Council support services
South Lakeland District Council,http://opendatacommunities.org/id/district-council/south-lakeland,31/03/2020,Business Support Community Services,Cultural Environmental Regulatory & Planning Services,,CUMBRIA WASTE RECYCLING LTD,3162439,18/03/2020,93740,11602.75,0,Empty recycling banks in 2019/20,182012,Environment Waste Management Recycling
South Lakeland District Council,http://opendatacommunities.org/id/district-council/south-lakeland,31/03/2020,Business Support Community Services,Cultural Environmental Regulatory & Planning Services,,CUMBRIA WASTE RECYCLING LTD,3162439,18/03/2020,93741,11.14,0,Empty recycling banks in 2019/20,182012,Environment Waste Management Recycling
South Lakeland District Council,http://opendatacommunities.org/id/district-council/south-lakeland,31/03/2020,Business Support Community Services,Cultural Environmental Regulatory & Planning Services,,Initial,1298292,18/03/2020,93742,50.26,0,Clinical waste collections - 2019/20,131011,Cleaning & Janitorial Cleaning Materials
South Lakeland District Council,http://opendatacommunities.org/id/district-council/south-lakeland,31/03/2020,Business Support Community Services,Cultural Environmental Regulatory & Planning Services,,Initial,1298292,18/03/2020,93743,3491.86,0,Clinical waste collections - 2019/20,131011,Cleaning & Janitorial Cleaning Materials
South Lakeland District Council,http://opendatacommunities.org/id/district-council/south-lakeland,31/03/2020,Human Resources,Central Services,,LAKES TRAINING SOLUTIONS LTD,7541345,27/03/2020,93745,500,0,Customer Service Training ,261500,HR Training & Conferences
South Lakeland District Council,http://opendatacommunities.org/id/district-council/south-lakeland,31/03/2020,Case Management People,Housing,,Homes For Ulverston CLT Ltd,,18/03/2020,93746,675,0,Community Housing Fund - H4US,250000,Housing
South Lakeland District Council,http://opendatacommunities.org/id/district-council/south-lakeland,31/03/2020,Human Resources,Central Services,,LAKES TRAINING SOLUTIONS LTD,7541345,27/03/2020,93747,500,0,Customer Service Training,261500,HR Training & Conferences
South Lakeland District Council,http://opendatacommunities.org/id/district-council/south-lakeland,31/03/2020,Business Support Community Services,Cultural Environmental Regulatory & Planning Services,,EK MOTOR FACTORS LTD,838524,18/03/2020,93748,-32.72,0,Parts,381400,Vehicle Mgt Maintenance
South Lakeland District Council,http://opendatacommunities.org/id/district-council/south-lakeland,31/03/2020,Business Support Community Services,Cultural Environmental Regulatory & Planning Services,,EK MOTOR FACTORS LTD,838524,18/03/2020,93749,50.56,0,Parts,381400,Vehicle Mgt Maintenance
South Lakeland District Council,http://opendatacommunities.org/id/district-council/south-lakeland,31/03/2020,Business Support Community Services,Cultural Environmental Regulatory & Planning Services,,LANCASHIRE DAF,,18/03/2020,93750,79.36,0,Parts,381400,Vehicle Mgt Maintenance
South Lakeland District Council,http://opendatacommunities.org/id/district-council/south-lakeland,31/03/2020,Business Support Community Services,Cultural Environmental Regulatory & Planning Services,,FUCHS LUBRICANTS (UK) PLC,2412689,18/03/2020,93751,1133,0,Oil,381100,Vehicle Mgt Fuel
South Lakeland District Council,http://opendatacommunities.org/id/district-council/south-lakeland,31/03/2020,Business Support Community Services,Cultural Environmental Regulatory & Planning Services,,FUCHS LUBRICANTS (UK) PLC,2412689,18/03/2020,93752,783.9,0,Oil,381100,Vehicle Mgt Fuel
South Lakeland District Council,http://opendatacommunities.org/id/district-council/south-lakeland,31/03/2020,Case Management People,Housing Services,,Ashberry Recruitment,7202591,23/03/2020,93753,1719.51,0,Agency staff at Town View Fields,261300,HR Recruitment & Assessment
South Lakeland District Council,http://opendatacommunities.org/id/district-council/south-lakeland,31/03/2020,Support Services,Central Services,,GRANTS- MISCELLANEOUS,,18/03/2020,93754,500,0,Locality donation to help bring a mains,201700,Financial Services Grants
South Lakeland District Council,http://opendatacommunities.org/id/district-council/south-lakeland,31/03/2020,Environment and Housing,Housing Services,,James Andrews Recruitment Solutions,6834852,27/03/2020,93755,1593.27,0,Agency worker for Community-led Housing,261400,HR Temporary & Agency Staff
South Lakeland District Council,http://opendatacommunities.org/id/district-council/south-lakeland,31/03/2020,Case Management People,Cultural Environmental Regulatory & Planning Services,,CUMBRIA WASTE RECYCLING LTD,3162439,18/03/2020,93758,36.2,0,SLDC Cemetery waste bin emptying - Feb,182012,Environment Waste Management Recycling
South Lakeland District Council,http://opendatacommunities.org/id/district-council/south-lakeland,31/03/2020,Case Management People,Cultural Environmental Regulatory & Planning Services,,CUMBRIA WASTE RECYCLING LTD,3162439,18/03/2020,93759,31.36,0,SLDC Cemetery waste bin emptying - Feb,182012,Environment Waste Management Recycling
South Lakeland District Council,http://opendatacommunities.org/id/district-council/south-lakeland,31/03/2020,Case Management People,Cultural Environmental Regulatory & Planning Services,,CUMBRIA WASTE RECYCLING LTD,3162439,18/03/2020,93760,72.4,0,SLDC Cemetery waste bin emptying - Feb,182012,Environment Waste Management Recycling
South Lakeland District Council,http://opendatacommunities.org/id/district-council/south-lakeland,31/03/2020,Financial Services,Central Services,,REAL ASSET MANAGEMENT PLC,2454806,23/03/2020,93761,1773,0,"Annual software maintenance, April 2020",271600,ICT Software Customised & Bespoke
South Lakeland District Council,http://opendatacommunities.org/id/district-council/south-lakeland,31/03/2020,Case Management People,Cultural Environmental Regulatory & Planning Services,,CUMBRIA WASTE RECYCLING LTD,3162439,23/03/2020,93762,106.4,0,SLDC Cemetery waste bin emptying - Feb,182012,Environment Waste Management Recycling
South Lakeland District Council,http://opendatacommunities.org/id/district-council/south-lakeland,31/03/2020,Case Management People,Cultural Environmental Regulatory & Planning Services,,CUMBRIA WASTE RECYCLING LTD,3162439,23/03/2020,93763,56.8,0,SLDC Cemetery waste bin emptying - Feb,182012,Environment Waste Management Recycling
South Lakeland District Council,http://opendatacommunities.org/id/district-council/south-lakeland,31/03/2020,Case Management People,Cultural Environmental Regulatory & Planning Services,,CUMBRIA WASTE RECYCLING LTD,3162439,23/03/2020,93764,66.52,0,SLDC Cemetery waste bin emptying - Feb,182012,Environment Waste Management Recycling
South Lakeland District Council,http://opendatacommunities.org/id/district-council/south-lakeland,31/03/2020,Case Management People,Cultural Environmental Regulatory & Planning Services,,CUMBRIA WASTE RECYCLING LTD,3162439,23/03/2020,93765,92.84,0,SLDC Cemetery waste bin emptying - Feb,182012,Environment Waste Management Recycling
South Lakeland District Council,http://opendatacommunities.org/id/district-council/south-lakeland,31/03/2020,Leisure and Wellbeing,Cultural Environmental Regulatory & Planning Services,,SOUTH LAKES TREE SURGEONS & LANDSCAPES,5342745,23/03/2020,93766,680,0,Oct 19 specification - Rayrigg Road car,241210,Horticultural Tree Trimming
South Lakeland District Council,http://opendatacommunities.org/id/district-council/south-lakeland,31/03/2020,Leisure and Wellbeing,Cultural Environmental Regulatory & Planning Services,,SOUTH LAKES TREE SURGEONS & LANDSCAPES,5342745,23/03/2020,93767,660,0,Full tree works package June 2019,241210,Horticultural Tree Trimming
South Lakeland District Council,http://opendatacommunities.org/id/district-council/south-lakeland,31/03/2020,Leisure and Wellbeing,Cultural Environmental Regulatory & Planning Services,,SOUTH LAKES TREE SURGEONS & LANDSCAPES,5342745,23/03/2020,93768,2110,0,Oct 19 specification - Rayrigg Road car,241210,Horticultural Tree Trimming
South Lakeland District Council,http://opendatacommunities.org/id/district-council/south-lakeland,31/03/2020,Case Management Account Mgmt,Cultural Environmental Regulatory & Planning Services,,SOUTH LAKES TREE SURGEONS & LANDSCAPES,5342745,23/03/2020,93769,280,0,Clearance of storm damage at Ferry Nab,241210,Horticultural Tree Trimming
South Lakeland District Council,http://opendatacommunities.org/id/district-council/south-lakeland,31/03/2020,Lake Wardens,SLDC as Agent,,LAKE DISTRICT NATIONAL PARK AUTHORITY,,27/03/2020,93770,887,0,Monthly Invoices for 2019/2020 for Boat,201700,Financial Services Grants
South Lakeland District Council,http://opendatacommunities.org/id/district-council/south-lakeland,31/03/2020,Case Management People,Housing Services,,Robert Hogben,,18/03/2020,93773,576.92,0,Deposit Flat ,202000,Financial Services Rents
South Lakeland District Council,http://opendatacommunities.org/id/district-council/south-lakeland,31/03/2020,Business Support Community Services,Housing Services,,Ashley Bennett,8672920,18/03/2020,93778,400,0,Monthly rent ,202000,Financial Services Rents
South Lakeland District Council,http://opendatacommunities.org/id/district-council/south-lakeland,31/03/2020,Business Support Community Services,Housing Services,,FIONA & JOHN ARMER,,18/03/2020,93779,839.88,0,Monthly rent ,250000,Housing
South Lakeland District Council,http://opendatacommunities.org/id/district-council/south-lakeland,31/03/2020,Business Support Community Services,Housing Services,,Mr David Rigg,,18/03/2020,93780,1190,0,Monthly rent ,202000,Financial Services Rents
South Lakeland District Council,http://opendatacommunities.org/id/district-council/south-lakeland,31/03/2020,Development Implementation,Transport,,LAMBERT SMITH HAMPTON GROUP,2521225,23/03/2020,93781,1716,0,"Car Parks Resurfacinng Works (Grasmere,",999999,Unclassifiable
South Lakeland District Council,http://opendatacommunities.org/id/district-council/south-lakeland,31/03/2020,Development Implementation,Cultural Environmental Regulatory & Planning Services,,Helen Moriarty,,23/03/2020,93782,1320.15,0,Project Management Officer for Bowness,151000,Consultancy Business
South Lakeland District Council,http://opendatacommunities.org/id/district-council/south-lakeland,31/03/2020,Support Services,Cultural Environmental Regulatory & Planning Services,,Just H Design,,23/03/2020,93783,45,0,Work for BWF,191100,Facilities Design & Photography
South Lakeland District Council,http://opendatacommunities.org/id/district-council/south-lakeland,31/03/2020,Social Enterprise Admin,Cultural Environmental Regulatory & Planning Services,,NEWSQUEST MEDIA GROUP LTD,3102566,23/03/2020,93784,154,0,PUBLIC NOTICES FOR PLANNING 1 APRIL - 31,191000,Facilities Advertising
South Lakeland District Council,http://opendatacommunities.org/id/district-council/south-lakeland,31/03/2020,Business Support Community Services,Cultural Environmental Regulatory & Planning Services,,RIBBLESDALE AUTO ELECTRICS 1992 LTD,2732686,27/03/2020,93788,28.26,0,Parts,381500,Vehicle Mgt Parts
South Lakeland District Council,http://opendatacommunities.org/id/district-council/south-lakeland,31/03/2020,Business Support Community Services,Cultural Environmental Regulatory & Planning Services,,M G D LTD,,27/03/2020,93789,35,0,MOTs 2019/20,381400,Vehicle Mgt Maintenance
South Lakeland District Council,http://opendatacommunities.org/id/district-council/south-lakeland,31/03/2020,Business Support Community Services,Cultural Environmental Regulatory & Planning Services,,EK MOTOR FACTORS LTD,838524,27/03/2020,93790,23.96,0,Parts,381400,Vehicle Mgt Maintenance
South Lakeland District Council,http://opendatacommunities.org/id/district-council/south-lakeland,31/03/2020,Case Management People,Housing Services,,HOME GROUP LTD,IP22981R,27/03/2020,93792,300,0,Rent arrears payment ,250000,Housing
South Lakeland District Council,http://opendatacommunities.org/id/district-council/south-lakeland,31/03/2020,Development Implementation,Central Services,,LAMBERT SMITH HAMPTON GROUP,2521225,27/03/2020,93793,605,0,SLDC Energy Efficiency Modifications,191700,Facilities Property Management
South Lakeland District Council,http://opendatacommunities.org/id/district-council/south-lakeland,31/03/2020,Support Services,Central Services,,GRANTS- MISCELLANEOUS,,23/03/2020,93794,100,0,Locality donation to fund the Friends,201700,Financial Services Grants
South Lakeland District Council,http://opendatacommunities.org/id/district-council/south-lakeland,31/03/2020,Support Services,Central Services,,GRANTS- MISCELLANEOUS,,23/03/2020,93795,400,0,Locality donation to fund recruitment,201700,Financial Services Grants
South Lakeland District Council,http://opendatacommunities.org/id/district-council/south-lakeland,31/03/2020,Case Management People,Central Services,,MORGAN HUNT UK LIMITED,4349535,23/03/2020,93796,1533.84,0,Agency staff,269999,HR Not Elsewhere Classified
South Lakeland District Council,http://opendatacommunities.org/id/district-council/south-lakeland,31/03/2020,Business Support Community Services,Central Services,,CRAEMER UK LTD,2574815,27/03/2020,93797,11856,0, 280 grey bins and 560 green bins to,182012,Environment Waste Management Recycling
South Lakeland District Council,http://opendatacommunities.org/id/district-council/south-lakeland,31/03/2020,Support Services,Central Services,,GRANTS- MISCELLANEOUS,,27/03/2020,93798,250,0,Locality donation to support Upcycle,201700,Financial Services Grants
South Lakeland District Council,http://opendatacommunities.org/id/district-council/south-lakeland,31/03/2020,Business Support Community Services,Cultural Environmental Regulatory & Planning Services,,AINSWORTH'S GARAGE,,27/03/2020,93799,152.77,0,Repairs,381400,Vehicle Mgt Maintenance
South Lakeland District Council,http://opendatacommunities.org/id/district-council/south-lakeland,31/03/2020,Business Support Community Services,Cultural Environmental Regulatory & Planning Services,,EK MOTOR FACTORS LTD,838524,27/03/2020,93800,19.92,0,Parts,381400,Vehicle Mgt Maintenance
South Lakeland District Council,http://opendatacommunities.org/id/district-council/south-lakeland,31/03/2020,Support Services,Central Services,,GRANTS- MISCELLANEOUS,,23/03/2020,93801,100,0,Locality donation to fund room hire for,201700,Financial Services Grants
South Lakeland District Council,http://opendatacommunities.org/id/district-council/south-lakeland,31/03/2020,Business Support Community Services,Cultural Environmental Regulatory & Planning Services,,S J Bargh,532272,23/03/2020,93802,276.1,0,MOTs 2019/20 & vehicle cleaning,381400,Vehicle Mgt Maintenance
South Lakeland District Council,http://opendatacommunities.org/id/district-council/south-lakeland,31/03/2020,Support Services,Central Services,,GRANTS- MISCELLANEOUS,,23/03/2020,93803,500,0,Locality donation for the school to,201700,Financial Services Grants
South Lakeland District Council,http://opendatacommunities.org/id/district-council/south-lakeland,31/03/2020,Business Support Community Services,Cultural Environmental Regulatory & Planning Services,,S J Bargh,532272,23/03/2020,93804,276.1,0,MOTs 2019/20 & vehicle cleaning,381400,Vehicle Mgt Maintenance
South Lakeland District Council,http://opendatacommunities.org/id/district-council/south-lakeland,31/03/2020,Support Services,Central Services,,GRANTS- MISCELLANEOUS,,23/03/2020,93805,500,0,Locality donation to provide continuing,201700,Financial Services Grants
South Lakeland District Council,http://opendatacommunities.org/id/district-council/south-lakeland,31/03/2020,Business Support Community Services,Cultural Environmental Regulatory & Planning Services,,S J Bargh,532272,23/03/2020,93806,190.5,0,MOTs 2019/20 & vehicle cleaning,381400,Vehicle Mgt Maintenance
South Lakeland District Council,http://opendatacommunities.org/id/district-council/south-lakeland,31/03/2020,Business Support Community Services,Cultural Environmental Regulatory & Planning Services,,COMPASS COMPONENTS,,23/03/2020,93807,183.18,0,Consumables 2019/20,101400,Building General Materials
South Lakeland District Council,http://opendatacommunities.org/id/district-council/south-lakeland,31/03/2020,Business Support Community Services,Cultural Environmental Regulatory & Planning Services,,K & S Commercial Ltd,9068885,23/03/2020,93808,95,0,Tacho repair,381400,Vehicle Mgt Maintenance
South Lakeland District Council,http://opendatacommunities.org/id/district-council/south-lakeland,31/03/2020,Democratic and Member Services,Central Services,,GRANTS- MISCELLANEOUS,,23/03/2020,93809,500,0,Locality donation to fund Kendal,201700,Financial Services Grants
South Lakeland District Council,http://opendatacommunities.org/id/district-council/south-lakeland,31/03/2020,Business Support Community Services,Cultural Environmental Regulatory & Planning Services,,Harry Park Tyres Ltd,8131208,23/03/2020,93811,30,0,Tyres,381500,Vehicle Mgt Parts
South Lakeland District Council,http://opendatacommunities.org/id/district-council/south-lakeland,31/03/2020,Support Services,Central Services,,GRANTS- MISCELLANEOUS,,23/03/2020,93812,200,0,Locality donation to fund and support,201700,Financial Services Grants
South Lakeland District Council,http://opendatacommunities.org/id/district-council/south-lakeland,31/03/2020,Business Support Community Services,Cultural Environmental Regulatory & Planning Services,,Harry Park Tyres Ltd,8131208,23/03/2020,93813,2292.45,0,Tyres,381500,Vehicle Mgt Parts
South Lakeland District Council,http://opendatacommunities.org/id/district-council/south-lakeland,31/03/2020,Support Services,Central Services,,Idox Software Ltd,2933889,27/03/2020,93814,4674.36,0,"Idox renewal for licence, support and",271600,ICT Software Customised & Bespoke
South Lakeland District Council,http://opendatacommunities.org/id/district-council/south-lakeland,31/03/2020,Support Services,Central Services,,Idox Software Ltd,2933889,27/03/2020,93814,7011.53,0,"Idox renewal for licence, support and",271600,ICT Software Customised & Bespoke
South Lakeland District Council,http://opendatacommunities.org/id/district-council/south-lakeland,31/03/2020,Human Resources,Central Services,,TOTAL ID Ltd,6442013,27/03/2020,93815,204.95,0,"Custom Printed Lanyard: 20mm width, 1",192210,Facilities Security Access Control
South Lakeland District Council,http://opendatacommunities.org/id/district-council/south-lakeland,31/03/2020,Support Services,Central Services,,GRANTS- MISCELLANEOUS,,23/03/2020,93816,500,0,Locality donation to provide partical,201700,Financial Services Grants
South Lakeland District Council,http://opendatacommunities.org/id/district-council/south-lakeland,31/03/2020,Support Services,Central Services,,GRANGE OVER SANDS TOWN COUNCIL,,23/03/2020,93817,500,0,Locality donation ?to contribute to,908000,Public Bodies Council support services
South Lakeland District Council,http://opendatacommunities.org/id/district-council/south-lakeland,31/03/2020,Support Services,Central Services,,GRANGE OVER SANDS TOWN COUNCIL,,23/03/2020,93818,300,0,Locality donation to fund kitchen,908000,Public Bodies Council support services
South Lakeland District Council,http://opendatacommunities.org/id/district-council/south-lakeland,31/03/2020,Business Support Community Services,Central Services,,The Oyster Partnership,5020374,27/03/2020,93819,850.5,0,Agency Environmental Health Officer,261300,HR Recruitment & Assessment
South Lakeland District Council,http://opendatacommunities.org/id/district-council/south-lakeland,31/03/2020,Business Support Community Services,Central Services,,The Oyster Partnership,5020374,27/03/2020,93821,1076,0,Agency Environmental Health Officer,261300,HR Recruitment & Assessment
South Lakeland District Council,http://opendatacommunities.org/id/district-council/south-lakeland,31/03/2020,Support Services,Central Services,,GRANTS- MISCELLANEOUS,,23/03/2020,93823,500,0,Locality donation to help the,201700,Financial Services Grants
South Lakeland District Council,http://opendatacommunities.org/id/district-council/south-lakeland,31/03/2020,ICT Group,Central Services,,The Networking People (Northwest) LTD,,27/03/2020,93824,3096.68,0,as per quote SQ106688,270000,Information Communications Technology
South Lakeland District Council,http://opendatacommunities.org/id/district-council/south-lakeland,31/03/2020,Case Management Account Mgmt,Cultural Environmental Regulatory & Planning Services,,J A JONES & SONS (CHURCHTOWN) LTD,1697442,23/03/2020,93825,240.75,0,125 trees to deliver to Continenal,241600,Horticultural Trees & Shrubs
South Lakeland District Council,http://opendatacommunities.org/id/district-council/south-lakeland,31/03/2020,Technical Team,Central Services,,Macdonald & Company Freelance Ltd,3882135,23/03/2020,93826,2087.55,0,PLANNING CONTRACT STAFF,261400,HR Temporary & Agency Staff
South Lakeland District Council,http://opendatacommunities.org/id/district-council/south-lakeland,31/03/2020,Environment and Housing,Housing Services,,James Andrews Recruitment Solutions,6834852,23/03/2020,93831,1573.6,0,Agency worker for Community-led Housing,261400,HR Temporary & Agency Staff
South Lakeland District Council,http://opendatacommunities.org/id/district-council/south-lakeland,31/03/2020,Case Management Account Mgmt,Culture and Related Serv,,HAGS-SMP Ltd,908021,23/03/2020,93832,5363.1,0,To supply and lay tarmac path at,331000,Sports Playground Equipment
South Lakeland District Council,http://opendatacommunities.org/id/district-council/south-lakeland,31/03/2020,Development Implementation,Cultural Environmental Regulatory & Planning Services,,FMG CONSULTING LTD,7309324,27/03/2020,93833,1500,0,Business Plan for Grange Lido -,151900,Consultancy Management
South Lakeland District Council,http://opendatacommunities.org/id/district-council/south-lakeland,31/03/2020,Case Management People,SLDC as Agent,,NOWMEDICAL,4338252,23/03/2020,93834,35,0,Medical Report,311600,Healthcare Services
South Lakeland District Council,http://opendatacommunities.org/id/district-council/south-lakeland,31/03/2020,Business Support Community Services,Cultural Environmental Regulatory & Planning Services,,EK MOTOR FACTORS LTD,838524,23/03/2020,93835,25.62,0,Parts,381400,Vehicle Mgt Maintenance
South Lakeland District Council,http://opendatacommunities.org/id/district-council/south-lakeland,31/03/2020,Business Support Community Services,Cultural Environmental Regulatory & Planning Services,,EK MOTOR FACTORS LTD,838524,23/03/2020,93836,43.49,0,Parts,381400,Vehicle Mgt Maintenance
South Lakeland District Council,http://opendatacommunities.org/id/district-council/south-lakeland,31/03/2020,Business Support Community Services,Cultural Environmental Regulatory & Planning Services,,RIBBLESDALE AUTO ELECTRICS 1992 LTD,2732686,23/03/2020,93837,229,0,Parts,381500,Vehicle Mgt Parts
South Lakeland District Council,http://opendatacommunities.org/id/district-council/south-lakeland,31/03/2020,Business Support Community Services,Cultural Environmental Regulatory & Planning Services,,EK MOTOR FACTORS LTD,838524,23/03/2020,93838,82.88,0,Parts,381400,Vehicle Mgt Maintenance
South Lakeland District Council,http://opendatacommunities.org/id/district-council/south-lakeland,31/03/2020,Business Support Community Services,Cultural Environmental Regulatory & Planning Services,,EK MOTOR FACTORS LTD,838524,23/03/2020,93839,47.92,0,Parts,381400,Vehicle Mgt Maintenance
South Lakeland District Council,http://opendatacommunities.org/id/district-council/south-lakeland,31/03/2020,Business Support Community Services,Cultural Environmental Regulatory & Planning Services,,MILNTHORPE KENNELS & CATTERY,8932302,23/03/2020,93844,2791.67,0,Stray dog contract kennelling fees,181500,Environment Animal Services
South Lakeland District Council,http://opendatacommunities.org/id/district-council/south-lakeland,31/03/2020,Case Management People,Housing Services,,BUNZL CLEANING & HYGIENE SUPPLIES,2902454,23/03/2020,93846,31.6,0,Blue dishcloth 001001,131011,Cleaning & Janitorial Cleaning Materials
South Lakeland District Council,http://opendatacommunities.org/id/district-council/south-lakeland,31/03/2020,Case Management Account Mgmt,Cultural Environmental Regulatory & Planning Services,,CONTINENTAL LANDSCAPES LTD,2108452,27/03/2020,93849,178,0,For work at Abbot Hall playground as,391310,Construction Open Spaces Construction
South Lakeland District Council,http://opendatacommunities.org/id/district-council/south-lakeland,31/03/2020,Case Management Account Mgmt,Cultural Environmental Regulatory & Planning Services,,CONTINENTAL LANDSCAPES LTD,2108452,27/03/2020,93850,320.74,0,Supply of tree protection materials,391310,Construction Open Spaces Construction
South Lakeland District Council,http://opendatacommunities.org/id/district-council/south-lakeland,31/03/2020,Development Implementation,Planning and Development,,Cronshaw Electrical Ltd,4353019,27/03/2020,93853,2123.42,0,SLDC - Kendal Market Place Bollards,101100,Building Electrical
South Lakeland District Council,http://opendatacommunities.org/id/district-council/south-lakeland,31/03/2020,Case Management People,Housing Services,,Mint Homes,8345036,27/03/2020,93866,576,0,Deposit ,202000,Financial Services Rents
South Lakeland District Council,http://opendatacommunities.org/id/district-council/south-lakeland,31/03/2020,Case Management People,Housing Services,,Joanna Plumtree,,27/03/2020,93869,356,0,Rent payment,250000,Housing
South Lakeland District Council,http://opendatacommunities.org/id/district-council/south-lakeland,31/03/2020,Case Management Account Mgmt,Cultural Environmental Regulatory & Planning Services,,Weasdale Nurseries Ltd,,27/03/2020,93872,425.59,0,Quotation 19/014402 x15 apple trees,241600,Horticultural Trees & Shrubs
South Lakeland District Council,http://opendatacommunities.org/id/district-council/south-lakeland,31/03/2020,Environment and Housing,Housing,,Levens Community Project,,27/03/2020,93873,21851.76,0,Levens Community Project - Community,250000,Housing
South Lakeland District Council,http://opendatacommunities.org/id/district-council/south-lakeland,31/03/2020,Development Strategy,Cultural Environmental Regulatory & Planning Services,,Lunesdale Hall,,27/03/2020,93874,70,0,Room hire and use of kitchen for Local,192110,Facilities Room Hire
South Lakeland District Council,http://opendatacommunities.org/id/district-council/south-lakeland,31/03/2020,Development Management,Cultural Environmental Regulatory & Planning Services,,M & P Gadsden Ltd,,27/03/2020,93875,50,0,Checking of Structural calculations,391000,Construction Architect
South Lakeland District Council,http://opendatacommunities.org/id/district-council/south-lakeland,31/03/2020,Case Management Account Mgmt,Cultural Environmental Regulatory & Planning Services,,Bergen Arbortech,,27/03/2020,93876,685,0,Clearance of storm damaged conifer at,241210,Horticultural Tree Trimming
South Lakeland District Council,http://opendatacommunities.org/id/district-council/south-lakeland,31/03/2020,Business Support Community Services,Cultural Environmental Regulatory & Planning Services,,ARCO LIMITED,133804,27/03/2020,93877,15.55,0,Cleaning materials,141100,Clothing Protective
South Lakeland District Council,http://opendatacommunities.org/id/district-council/south-lakeland,31/03/2020,Business Support Community Services,Cultural Environmental Regulatory & Planning Services,,C T HAYTON LTD,1212766,27/03/2020,93878,57.16,0,Pipes,391200,Construction Engineering
South Lakeland District Council,http://opendatacommunities.org/id/district-council/south-lakeland,31/03/2020,Business Support Community Services,Cultural Environmental Regulatory & Planning Services,,RIBBLE FUEL OILS,,27/03/2020,93879,1823.75,0,Gas oil 2019/20,381100,Vehicle Mgt Fuel
South Lakeland District Council,http://opendatacommunities.org/id/district-council/south-lakeland,31/03/2020,Business Support Community Services,Cultural Environmental Regulatory & Planning Services,,GARWOOD EUROPE LTD,4333504,27/03/2020,93880,334.4,0,Parts,182011,Environment Waste Management Consumables
South Lakeland District Council,http://opendatacommunities.org/id/district-council/south-lakeland,31/03/2020,Democratic Services,Central Services,,THOMSON REUTERS (PROFESSIONAL) UK LTD,1679046,27/03/2020,93881,1550,0,Invoice No 6800913077,202100,Financial Services Subscriptions
South Lakeland District Council,http://opendatacommunities.org/id/district-council/south-lakeland,31/03/2020,Business Support Community Services,Cultural Environmental Regulatory & Planning Services,,DENNIS EAGLE LTD,3794455,27/03/2020,93882,88.03,0,pARTS,381300,Vehicle Mgt Industrial
South Lakeland District Council,http://opendatacommunities.org/id/district-council/south-lakeland,31/03/2020,Business Support Community Services,Cultural Environmental Regulatory & Planning Services,,EK MOTOR FACTORS LTD,838524,27/03/2020,93883,19,0,Parts,381400,Vehicle Mgt Maintenance
South Lakeland District Council,http://opendatacommunities.org/id/district-council/south-lakeland,31/03/2020,Business Support Community Services,Cultural Environmental Regulatory & Planning Services,,FAUN ZOELLER (UK) LTD,751804,27/03/2020,93884,269.8,0,Sweeper repairs,381400,Vehicle Mgt Maintenance
South Lakeland District Council,http://opendatacommunities.org/id/district-council/south-lakeland,31/03/2020,Development Strategy,Cultural Environmental Regulatory & Planning Services,,NEWSQUEST MEDIA GROUP LTD,3102566,27/03/2020,93885,1005.15,0,Your ref: KEN1605957 Advertising SLDC's,191000,Facilities Advertising
South Lakeland District Council,http://opendatacommunities.org/id/district-council/south-lakeland,31/03/2020,Human Resources,Central Services,,ADECCO UK LIMITED,593232,27/03/2020,93886,871.5,0,Agency staff,261400,HR Temporary & Agency Staff
South Lakeland District Council,http://opendatacommunities.org/id/district-council/south-lakeland,31/03/2020,Case Management People,Central Services,,ADECCO UK LIMITED,593232,27/03/2020,93887,742.67,0,Agency Staff to cover Affordable,261400,HR Temporary & Agency Staff
South Lakeland District Council,http://opendatacommunities.org/id/district-council/south-lakeland,31/03/2020,Case Management Account Mgmt,Central Services,,ADECCO UK LIMITED,593232,27/03/2020,93888,525.36,0,Permanent Employment Charges,261400,HR Temporary & Agency Staff
South Lakeland District Council,http://opendatacommunities.org/id/district-council/south-lakeland,31/03/2020,Case Management Account Mgmt,Cultural Environmental Regulatory & Planning Services,,Weasdale Nurseries Ltd,,27/03/2020,93889,16,0,Supply of trees as per quotation,241600,Horticultural Trees & Shrubs
South Lakeland District Council,http://opendatacommunities.org/id/district-council/south-lakeland,31/03/2020,Support Services,Central Services,,GRANTS- MISCELLANEOUS,,27/03/2020,93890,300,0,Locality donation to fund ?repair to,201700,Financial Services Grants
South Lakeland District Council,http://opendatacommunities.org/id/district-council/south-lakeland,31/03/2020,Leisure and Wellbeing,Cultural Environmental Regulatory & Planning Services,,CONTINENTAL LANDSCAPES LTD,2108452,27/03/2020,93891,450,0,Extra works for arboriculture for April,391310,Construction Open Spaces Construction
South Lakeland District Council,http://opendatacommunities.org/id/district-council/south-lakeland,31/03/2020,Leisure and Wellbeing,Cultural Environmental Regulatory & Planning Services,,CONTINENTAL LANDSCAPES LTD,2108452,27/03/2020,93892,1829.03,0,Extra works for arboriculture for April,391310,Construction Open Spaces Construction
South Lakeland District Council,http://opendatacommunities.org/id/district-council/south-lakeland,31/03/2020,Leisure and Wellbeing,Cultural Environmental Regulatory & Planning Services,,CONTINENTAL LANDSCAPES LTD,2108452,27/03/2020,93892,1922.89,0,Extra works for arboriculture for April,391310,Construction Open Spaces Construction
South Lakeland District Council,http://opendatacommunities.org/id/district-council/south-lakeland,31/03/2020,Case Management Regulatory,Cultural Environmental Regulatory & Planning Services,,Cirrus Research Plc,987160,27/03/2020,93893,413,0,Calibration of Trojan Noise Recorder,913000,Technical Support Equipment
South Lakeland District Council,http://opendatacommunities.org/id/district-council/south-lakeland,31/03/2020,Leisure and Wellbeing,Cultural Environmental Regulatory & Planning Services,,SOUTH LAKES TREE SURGEONS & LANDSCAPES,5342745,27/03/2020,93894,1635,0,Full tree works package June 2019,241210,Horticultural Tree Trimming
South Lakeland District Council,http://opendatacommunities.org/id/district-council/south-lakeland,31/03/2020,Case Management People,Housing Services,,Ashberry Recruitment,7202591,27/03/2020,93897,835.06,0,Agency staff at Town View Fields,261300,HR Recruitment & Assessment
South Lakeland District Council,http://opendatacommunities.org/id/district-council/south-lakeland,31/03/2020,Business Support Community Services,Cultural Environmental Regulatory & Planning Services,,Licence Bureau Ltd,4819897,27/03/2020,93898,51,0,Licence checks 2019/20,380000,Vehicle Management
South Lakeland District Council,http://opendatacommunities.org/id/district-council/south-lakeland,31/03/2020,Business Support Community Services,Cultural Environmental Regulatory & Planning Services,,HAKO MACHINES LIMITED,1414225,27/03/2020,93899,324.7,0,Repairs,131000,Cleaning & Janitorial Cleaning Materials
South Lakeland District Council,http://opendatacommunities.org/id/district-council/south-lakeland,31/03/2020,Business Support Community Services,Cultural Environmental Regulatory & Planning Services,,K & S Commercial Ltd,9068885,27/03/2020,93900,335,0,Tacho repair,381400,Vehicle Mgt Maintenance
South Lakeland District Council,http://opendatacommunities.org/id/district-council/south-lakeland,31/03/2020,ICT Group,Central Services,,EE UK LTD (NCR),,01/03/2020,93901,47.67,0,"Car Park SIMS, covers 2019/20",351000,Street & Traffic Parking Car Parks
South Lakeland District Council,http://opendatacommunities.org/id/district-council/south-lakeland,31/03/2020,ICT Group,Highways & Transport Services,,EE UK LTD (NCR),,01/03/2020,93901,144,0,"Car Park SIMS, covers 2019/20",351000,Street & Traffic Parking Car Parks
South Lakeland District Council,http://opendatacommunities.org/id/district-council/south-lakeland,31/03/2020,Business Support Community Services,Cultural Environmental Regulatory & Planning Services,,Harry Park Tyres Ltd,8131208,27/03/2020,93903,67.5,0,Tyres,381500,Vehicle Mgt Parts
South Lakeland District Council,http://opendatacommunities.org/id/district-council/south-lakeland,31/03/2020,Customer Services,Central Services,,Reach Printing Services Limited,2064914,27/03/2020,93904,9927.03,0,Printing od South Lakes News 3 March,191600,Facilities Printing
South Lakeland District Council,http://opendatacommunities.org/id/district-council/south-lakeland,31/03/2020,Support Services,Central Services,,HAVERTHWAITE PARISH COUNCIL,,27/03/2020,93906,150,0,Locality donation tofund the clearance,908000,Public Bodies Council support services
South Lakeland District Council,http://opendatacommunities.org/id/district-council/south-lakeland,31/03/2020,Support Services,Central Services,,GRANTS- MISCELLANEOUS,,27/03/2020,93907,1000,0,Locality donation to support taking,201700,Financial Services Grants
South Lakeland District Council,http://opendatacommunities.org/id/district-council/south-lakeland,31/03/2020,Democratic and Member Services,Central Services,,GRANTS- MISCELLANEOUS,,27/03/2020,93908,500,0,Contribution towards funding for,201700,Financial Services Grants
South Lakeland District Council,http://opendatacommunities.org/id/district-council/south-lakeland,31/03/2020,Environment and Housing,Housing Services,,GROWING CONCERNS LTD,,27/03/2020,93909,1620,0,Handy Person Scheme 2019/2020,391200,Construction Engineering
South Lakeland District Council,http://opendatacommunities.org/id/district-council/south-lakeland,31/03/2020,Support Services,Central Services,,HOLME PARISH COUNCIL,,27/03/2020,93910,500,0,Locality donation to fund clearing and,908000,Public Bodies Council support services
South Lakeland District Council,http://opendatacommunities.org/id/district-council/south-lakeland,31/03/2020,Case Management Account Mgmt,Central Services,,ROSEFOX PAPER LIMITED,1655083,27/03/2020,93911,49.5,0,A4 light green (1975) x2 boxes,341000,Stationery Paper
South Lakeland District Council,http://opendatacommunities.org/id/district-council/south-lakeland,31/03/2020,Case Management Account Mgmt,Cultural Environmental Regulatory & Planning Services,,RAINBOW SAFETY SURFACING LTD,4820611,27/03/2020,93912,5900,0,To supply and lay 100m2 of brown/green,331000,Sports Playground Equipment
South Lakeland District Council,http://opendatacommunities.org/id/district-council/south-lakeland,31/03/2020,Support Services,Central Services,,KENDAL TOWN COUNCIL,,27/03/2020,93913,300,0,Locality donation to help fund Kendal,908000,Public Bodies Council support services
South Lakeland District Council,http://opendatacommunities.org/id/district-council/south-lakeland,31/03/2020,ICT Group,Central Services,,IT PROFESSIONAL SERVICES (ITPS),,27/03/2020,93915,128.39,0,"Additional SIP call costs, covers until",279999,ICT Not Elsewhere Classified
South Lakeland District Council,http://opendatacommunities.org/id/district-council/south-lakeland,31/03/2020,Policy & Partnerships,Central Services,,GRANGE OVER SANDS TOWN COUNCIL,,27/03/2020,93917,90,0,Cost of room hire for the Grange,908000,Public Bodies Council support services
South Lakeland District Council,http://opendatacommunities.org/id/district-council/south-lakeland,31/03/2020,Support Services,Central Services,,GRANTS- MISCELLANEOUS,,27/03/2020,93918,300,0,Locality donation to fund supporting,201700,Financial Services Grants
South Lakeland District Council,http://opendatacommunities.org/id/district-council/south-lakeland,31/03/2020,Business Support Community Services,SLDC as Agent,,Viewdeck Consulting Limited,,27/03/2020,93919,930,0,Cumbria Choice Consultancy Work,150000,Consultancy
South Lakeland District Council,http://opendatacommunities.org/id/district-council/south-lakeland,31/03/2020,Business Support Community Services,Cultural Environmental Regulatory & Planning Services,,AUTOPARTS (CUMBRIA) LTD,2579204,27/03/2020,93920,431.44,0,Parts,381500,Vehicle Mgt Parts
South Lakeland District Council,http://opendatacommunities.org/id/district-council/south-lakeland,31/03/2020,Business Support Community Services,Cultural Environmental Regulatory & Planning Services,,EK MOTOR FACTORS LTD,838524,27/03/2020,93921,36.72,0,PArt,381400,Vehicle Mgt Maintenance
South Lakeland District Council,http://opendatacommunities.org/id/district-council/south-lakeland,31/03/2020,Business Support Community Services,Cultural Environmental Regulatory & Planning Services,,EK MOTOR FACTORS LTD,838524,27/03/2020,93922,24.75,0,Parts,381400,Vehicle Mgt Maintenance
South Lakeland District Council,http://opendatacommunities.org/id/district-council/south-lakeland,31/03/2020,Business Support Community Services,Cultural Environmental Regulatory & Planning Services,,DENNIS EAGLE LTD,3794455,27/03/2020,93923,138.83,0,pARTS,381300,Vehicle Mgt Industrial
South Lakeland District Council,http://opendatacommunities.org/id/district-council/south-lakeland,31/03/2020,Development Strategy,Cultural Environmental Regulatory & Planning Services,,GRANGE OVER SANDS TOWN COUNCIL,,27/03/2020,93924,60,0,"Hire of Room 4, Victoria Hall,",908000,Public Bodies Council support services
South Lakeland District Council,http://opendatacommunities.org/id/district-council/south-lakeland,31/03/2020,Case Management Regulatory,Central Services,,RH Environmental Limited,,27/03/2020,93925,2520,0,"RIAMS Premium Subscription, to include",202100,Financial Services Subscriptions
South Lakeland District Council,http://opendatacommunities.org/id/district-council/south-lakeland,31/03/2020,Support Services,Central Services,,GRANTS- MISCELLANEOUS,,27/03/2020,93926,1000,0,locality donation to help with park,201700,Financial Services Grants
South Lakeland District Council,http://opendatacommunities.org/id/district-council/south-lakeland,31/03/2020,Support Services,Central Services,,GRANTS- MISCELLANEOUS,,27/03/2020,93927,500,0,Locality donation to provide Improved,201700,Financial Services Grants
South Lakeland District Council,http://opendatacommunities.org/id/district-council/south-lakeland,31/03/2020,Development Strategy,Cultural Environmental Regulatory & Planning Services,,3KQ Limited,5087808,27/03/2020,93928,5124.87,0,Local Plan Review workshop planning,151911,Consultancy- Organisation & Planning
South Lakeland District Council,http://opendatacommunities.org/id/district-council/south-lakeland,31/03/2020,Locality,Culture and Related Serv,,HAGS-SMP Ltd,908021,27/03/2020,93929,11329,0,Beck centre outdoor gym,331000,Sports Playground Equipment
South Lakeland District Council,http://opendatacommunities.org/id/district-council/south-lakeland,31/03/2020,Development Implementation,Culture and Related Serv,,DSD Construction Limited,2818677,27/03/2020,93930,44165.96,0,"Burton in Kendal, The Square - Public",391300,Construction Open Spaces
South Lakeland District Council,http://opendatacommunities.org/id/district-council/south-lakeland,31/03/2020,Leisure and Wellbeing,Cultural Environmental Regulatory & Planning Services,,CONTINENTAL LANDSCAPES LTD,2108452,27/03/2020,93932,3946.22,0,Gravedigging for April 2019 - March 2020,391310,Construction Open Spaces Construction
South Lakeland District Council,http://opendatacommunities.org/id/district-council/south-lakeland,31/03/2020,Leisure and Wellbeing,Highways & Transport Services,,CONTINENTAL LANDSCAPES LTD,2108452,27/03/2020,93933,13.06,0,Parks Routine Maintenance,391310,Construction Open Spaces Construction
South Lakeland District Council,http://opendatacommunities.org/id/district-council/south-lakeland,31/03/2020,Leisure and Wellbeing,Highways & Transport Services,,CONTINENTAL LANDSCAPES LTD,2108452,27/03/2020,93933,130.55,0,Parks Routine Maintenance,391310,Construction Open Spaces Construction
South Lakeland District Council,http://opendatacommunities.org/id/district-council/south-lakeland,31/03/2020,Leisure and Wellbeing,Highways & Transport Services,,CONTINENTAL LANDSCAPES LTD,2108452,27/03/2020,93933,1.31,0,Parks Routine Maintenance,391310,Construction Open Spaces Construction
South Lakeland District Council,http://opendatacommunities.org/id/district-council/south-lakeland,31/03/2020,Leisure and Wellbeing,Highways & Transport Services,,CONTINENTAL LANDSCAPES LTD,2108452,27/03/2020,93933,13.06,0,Parks Routine Maintenance,391310,Construction Open Spaces Construction
South Lakeland District Council,http://opendatacommunities.org/id/district-council/south-lakeland,31/03/2020,Leisure and Wellbeing,Highways & Transport Services,,CONTINENTAL LANDSCAPES LTD,2108452,27/03/2020,93933,130.55,0,Parks Routine Maintenance,391310,Construction Open Spaces Construction
South Lakeland District Council,http://opendatacommunities.org/id/district-council/south-lakeland,31/03/2020,Leisure and Wellbeing,Highways & Transport Services,,CONTINENTAL LANDSCAPES LTD,2108452,27/03/2020,93933,13.06,0,Parks Routine Maintenance,391310,Construction Open Spaces Construction
